Body Name,Body,Service Division Label,Service Division Code,Organisational Unit,Expenditure Category,Expenditure Code,CIPFA detailed expediture type,CIPFA detailed expediture code,Narrative,Date,Transaction number,Net Amount,Capital and Revenue,Supplier Name,Supplier ID,,
Chorley Borough Council,http://statistics.data.gov.uk/id/local-authority/30UE,Central Support Services,1009,EARL - Communities,Core Funding Grants,40133,Grants and Subscriptions,5031,Small community grant,23/09/2022,0170977,400.00,Revenue,#Watch Us Grow,78296,,
Chorley Borough Council,http://statistics.data.gov.uk/id/local-authority/30UE,Central Support Services,1009,EARL - Communities,Core Funding Grants,40133,Grants and Subscriptions,5031,Small community grant,23/09/2022,0170984,429.00,Revenue,1st Clayton Brook Scout Group,65993,,
Chorley Borough Council,http://statistics.data.gov.uk/id/local-authority/30UE,Corporate Management,1008,EARL - Communities,External Contractor,40198,Miscellaneous Expenses,5034,Support with deep clean from Hoarding CONF fund for vulnerable customer,02/09/2022,0170040,297.50,Revenue,3D Environmental Limited,76994,,
Chorley Borough Council,http://statistics.data.gov.uk/id/local-authority/30UE,Central Support Services,1009,EARL - Communities,Works In Default,40199,Miscellaneous Expenses,5034,To carry out the following works at ADDRESS REDACTED. To remove large amount of contaminated waste items from property,09/09/2022,0170041,"5,845.28",Revenue,3D Environmental Limited,76994,,
Chorley Borough Council,http://statistics.data.gov.uk/id/local-authority/30UE,Central Support Services,1009,EARL - Communities,Works In Default,40199,Miscellaneous Expenses,5034,"Clearance of domestic waste, animal faeces and contaminated items from ADDRESS REDACTED",16/09/2022,0170725,"3,268.44",Revenue,3D Environmental Limited,76994,,
Chorley Borough Council,http://statistics.data.gov.uk/id/local-authority/30UE,Capital,Capital,GROW - Commercial & Property,Other Capital Related Fees,03024,Capital Expenditure,Capital,"Produce drawings for building regulation purposes, Submit application and liaise with building control",09/09/2022,0170602,750.00,Capital,3DG Design Ltd,80861,,
Chorley Borough Council,http://statistics.data.gov.uk/id/local-authority/30UE,Capital,Capital,GROW - Commercial & Property,Other Capital Related Fees,03024,Capital Expenditure,Capital,Allowance for site visits 1 visit,09/09/2022,0170602,150.00,Capital,3DG Design Ltd,80861,,
Chorley Borough Council,http://statistics.data.gov.uk/id/local-authority/30UE,Tourism,1039,GOVN - Policy & Governance,Tools & Equipment - Hire,40004,"Equipment, Furniture & Materia",5023,3 x 100 Kva super silent 1 x 45 Kva super silent stage power supply 2 x Bunded tanks ,02/09/2022,0169792,859.00,Revenue,Adlington Welding Supplies Ltd,21942,,
Chorley Borough Council,http://statistics.data.gov.uk/id/local-authority/30UE,Tourism,1039,GOVN - Policy & Governance,Tools & Equipment - Hire,40004,"Equipment, Furniture & Materia",5023,Fuel for generators for Chorley Flower Show,02/09/2022,0169793,"4,000.00",Revenue,Adlington Welding Supplies Ltd,21942,,
Chorley Borough Council,http://statistics.data.gov.uk/id/local-authority/30UE,Capital,Capital,GOVN - Policy & Governance,Architects Fees,03022,Capital Expenditure,Capital,Instruction of 3D surveys for the following sites as per scope of works reference number 12189,23/09/2022,0168838,"29,382.50",Capital,AEW Architects & Designers Ltd,66520,,
Chorley Borough Council,http://statistics.data.gov.uk/id/local-authority/30UE,Central Support Services,1009,EARL - Communities,Grants To Other Organisations,40127,Grants and Subscriptions,5031,"Procurement, building and distribution of internet enabled tablets and preloaded data sim cards for vulnerable Chorley residents",23/09/2022,0170923,"7,500.00",Revenue,Age UK,21252,,
Chorley Borough Council,http://statistics.data.gov.uk/id/local-authority/30UE,Tourism,1039,GOVN - Policy & Governance,Misc Expenses,40200,Miscellaneous Expenses,5034,CFS prize money,02/09/2022,0170396,400.00,Revenue,Alchemy Ferns,78237,,
Chorley Borough Council,http://statistics.data.gov.uk/id/local-authority/30UE,Unapportionable Central OHeads,1009,CUST - Customer & Digital,Bank Charges,40151,Miscellaneous Expenses,5034,add acc fee,16/09/2022,0170593,10.00,Revenue,Allpay Net Ltd,17242,,
Chorley Borough Council,http://statistics.data.gov.uk/id/local-authority/30UE,Unapportionable Central OHeads,1009,CUST - Customer & Digital,Bank Charges,40151,Miscellaneous Expenses,5034,post office,16/09/2022,0170593,549.24,Revenue,Allpay Net Ltd,17242,,
Chorley Borough Council,http://statistics.data.gov.uk/id/local-authority/30UE,Unapportionable Central OHeads,1009,CUST - Customer & Digital,Bank Charges,40151,Miscellaneous Expenses,5034,paypoint,16/09/2022,0170593,167.34,Revenue,Allpay Net Ltd,17242,,
Chorley Borough Council,http://statistics.data.gov.uk/id/local-authority/30UE,Unapportionable Central OHeads,1009,CUST - Customer & Digital,Bank Charges,40151,Miscellaneous Expenses,5034,webconnect,16/09/2022,0170593,46.00,Revenue,Allpay Net Ltd,17242,,
Chorley Borough Council,http://statistics.data.gov.uk/id/local-authority/30UE,Central Support Services,1009,EARL - Communities,External Contractor,40198,Miscellaneous Expenses,5034,Domestic pest control service delivery,02/09/2022,0169790,"1,564.30",Revenue,ALPHA PEST CONTROL LIMITED,18208,,
Chorley Borough Council,http://statistics.data.gov.uk/id/local-authority/30UE,Central Support Services,1009,EARL - Communities,External Contractor,40198,Miscellaneous Expenses,5034,Domestic pest control service delivery,02/09/2022,0169848,"1,891.20",Revenue,ALPHA PEST CONTROL LIMITED,18208,,
Chorley Borough Council,http://statistics.data.gov.uk/id/local-authority/30UE,Central Support Services,1009,EARL - Communities,External Contractor,40198,Miscellaneous Expenses,5034,Domestic pest control service delivery,02/09/2022,0169849,905.90,Revenue,ALPHA PEST CONTROL LIMITED,18208,,
Chorley Borough Council,http://statistics.data.gov.uk/id/local-authority/30UE,Central Support Services,1009,EARL - Communities,External Contractor,40198,Miscellaneous Expenses,5034,Domestic pest control service delivery,09/09/2022,0170144,"2,402.07",Revenue,ALPHA PEST CONTROL LIMITED,18208,,
Chorley Borough Council,http://statistics.data.gov.uk/id/local-authority/30UE,Central Support Services,1009,EARL - Communities,External Contractor,40198,Miscellaneous Expenses,5034,Domestic pest control service delivery,09/09/2022,0170311,"3,312.20",Revenue,ALPHA PEST CONTROL LIMITED,18208,,
Chorley Borough Council,http://statistics.data.gov.uk/id/local-authority/30UE,Central Support Services,1009,EARL - Communities,External Contractor,40198,Miscellaneous Expenses,5034,Domestic pest control service delivery,09/09/2022,0170439,"1,531.35",Revenue,ALPHA PEST CONTROL LIMITED,18208,,
Chorley Borough Council,http://statistics.data.gov.uk/id/local-authority/30UE,Unapportionable Central OHeads,1009,GROW - Commercial & Property,Planned Maintenance,20006,Repairs Maintenance & Alts,5005,Union St  - Security systems Planned Maintenance and remedials,30/09/2022,0171221,291.20,Revenue,Amalgamated Ltd,78289,,
Chorley Borough Council,http://statistics.data.gov.uk/id/local-authority/30UE,Unapportionable Central OHeads,1009,GROW - Commercial & Property,General Repairs - Reactive,20004,Repairs Maintenance & Alts,5005,Community Centres   - Security Systems Reactive Repairs,30/09/2022,0171224,264.25,Revenue,Amalgamated Ltd,78289,,
Chorley Borough Council,http://statistics.data.gov.uk/id/local-authority/30UE,Central Support Services,1009,CUST - Customer & Digital,Computer Software-Additional,40102,Communication and Computing,5028,Amazon AWS web services - Cloud charges September 2022,16/09/2022,0170605,"5,501.97",Revenue,Amazon Web Services EMEA SARL,80604,,
Chorley Borough Council,http://statistics.data.gov.uk/id/local-authority/30UE,Central Support Services,1009,CUST - Customer & Digital,Computer Software-Additional,40102,Communication and Computing,5028,Amazon AWS web services - Cloud charges September 2022,16/09/2022,0170628,"5,440.54",Revenue,Amazon Web Services EMEA SARL,80604,,
Chorley Borough Council,http://statistics.data.gov.uk/id/local-authority/30UE,Central Support Services,1009,CUST - Customer & Digital,Computer Software-Additional,40102,Communication and Computing,5028,Amazon AWS web services - Cloud charges September 2022,16/09/2022,0170629,"5,279.63",Revenue,Amazon Web Services EMEA SARL,80604,,
Chorley Borough Council,http://statistics.data.gov.uk/id/local-authority/30UE,Central Support Services,1009,CUST - Customer & Digital,Computer Equipment-Purchase,40098,Communication and Computing,5028,Installation of single mode 24 core fibre link between existing server room and new server room,02/09/2022,0170415,650.00,Revenue,Ampec,76813,,
Chorley Borough Council,http://statistics.data.gov.uk/id/local-authority/30UE,Unapportionable Central OHeads,1009,GOVN - Policy & Governance,Misc Expenses,40200,Miscellaneous Expenses,5034,Augusts hosting of WordPress websites,09/09/2022,0170000,297.55,Revenue,ANS Group Limited,74638,,
Chorley Borough Council,http://statistics.data.gov.uk/id/local-authority/30UE,Unapportionable Central OHeads,1009,GOVN - Policy & Governance,Misc Expenses,40200,Miscellaneous Expenses,5034,September`s website hosting (WordPress sites) - UK Fast,16/09/2022,0170808,297.55,Revenue,ANS Group Limited,74638,,
Chorley Borough Council,http://statistics.data.gov.uk/id/local-authority/30UE,Capital,Capital,GROW - Commercial & Property,Consultants Fees,03025,Capital Expenditure,Capital,Independent cladding / roofing inspection and reports - Alker Lane Industrial Unit Development,09/09/2022,0170479,"3,930.00",Capital,AP WILLIAMSON CONSULTANTS LTD,85472,,
Chorley Borough Council,http://statistics.data.gov.uk/id/local-authority/30UE,Homelessness,1075,GROW - Commercial & Property,Tools & Equipment - Purchase,40003,"Equipment, Furniture & Materia",5023,Keys @ 6 per key as per conversation with NAME REDACTED,16/09/2022,0169853,260.00,Revenue,Asc Timber Supplies Ltd,16240,,
Chorley Borough Council,http://statistics.data.gov.uk/id/local-authority/30UE,Business Support,1095,GROW - Commercial & Property,Professional Fees,40063,Services,5027,360 Google Virtual Tour of Market Walk Shopping Centre,02/09/2022,0170271,550.00,Revenue,Azizi Media Ltd,85546,,
Chorley Borough Council,http://statistics.data.gov.uk/id/local-authority/30UE,Service Management & Support,1009,CUST - Customer & Digital,Hire Of Vehicles and Plant,30028,Contrct Hire & Operating Lease,5018,ITT invitation to Tender for the contract hire with service and maintenance of Grounds Maintenance Machinery,16/09/2022,0170327,"1,242.40",Revenue,Balmers Garden Machinery,17075,,
Chorley Borough Council,http://statistics.data.gov.uk/id/local-authority/30UE,Control Accounts,Control,GOVN - Policy & Governance,General Balances,00100,Balance Sheet,Balance,28th April 22,01/09/2022,0170050,"9,436.08",Revenue,Barclaycard Commercial,59848,,
Chorley Borough Council,http://statistics.data.gov.uk/id/local-authority/30UE,Control Accounts,Control,GOVN - Policy & Governance,General Balances,00100,Balance Sheet,Balance,28 july 2022,01/09/2022,0170051,"10,509.69",Revenue,Barclaycard Commercial,59848,,
Chorley Borough Council,http://statistics.data.gov.uk/id/local-authority/30UE,Control Accounts,Control,GOVN - Policy & Governance,General Balances,00100,Balance Sheet,Balance,28 june 2022,01/09/2022,0170052,"10,658.90",Revenue,Barclaycard Commercial,59848,,
Chorley Borough Council,http://statistics.data.gov.uk/id/local-authority/30UE,Control Accounts,Control,GOVN - Policy & Governance,General Balances,00100,Balance Sheet,Balance,28 may 2022,01/09/2022,0170053,"14,068.87",Revenue,Barclaycard Commercial,59848,,
Chorley Borough Council,http://statistics.data.gov.uk/id/local-authority/30UE,Corporate Management,1008,GOVN - Policy & Governance,Bank Charges,40151,Miscellaneous Expenses,5034,31 jul 2022,01/09/2022,0170042,"1,383.24",Revenue,Barclaycard Merchant Services,61601,,
Chorley Borough Council,http://statistics.data.gov.uk/id/local-authority/30UE,Corporate Management,1008,GOVN - Policy & Governance,Bank Charges,40151,Miscellaneous Expenses,5034,31 jul 2022,01/09/2022,0170042,400.00,Revenue,Barclaycard Merchant Services,61601,,
Chorley Borough Council,http://statistics.data.gov.uk/id/local-authority/30UE,Corporate Management,1008,GOVN - Policy & Governance,Bank Charges,40151,Miscellaneous Expenses,5034,31 jul 2022,01/09/2022,0170043,590.36,Revenue,Barclaycard Merchant Services,61601,,
Chorley Borough Council,http://statistics.data.gov.uk/id/local-authority/30UE,Corporate Management,1008,GOVN - Policy & Governance,Bank Charges,40151,Miscellaneous Expenses,5034,31 july 22,01/09/2022,0170045,"2,861.53",Revenue,Barclaycard Merchant Services,61601,,
Chorley Borough Council,http://statistics.data.gov.uk/id/local-authority/30UE,Central Support Services,1009,GOVN - Policy & Governance,Publicity - Advertising,40157,Miscellaneous Expenses,5034,Item: Chorley Flower Show airtime on Rock FM and Greatest Hits Radio Supplier: Bauer Media,02/09/2022,0170270,"2,995.00",Revenue,Bauer Active Ltd,50574,,
Chorley Borough Council,http://statistics.data.gov.uk/id/local-authority/30UE,Service Management & Support,1009,CUST - Customer & Digital,Grounds Maintenance Contractor,20043,Grounds Maintenance Costs,5013,Invoice 1293. Various tree work near NAME REDACTED,16/09/2022,0170522,910.00,Revenue,Beardwood Tree Services,77437,,
Chorley Borough Council,http://statistics.data.gov.uk/id/local-authority/30UE,Service Management & Support,1009,CUST - Customer & Digital,Grounds Maintenance Contractor,20043,Grounds Maintenance Costs,5013,Invoice 1294. Pruning of Poplars and other trees near ADDRESS REDACTED,16/09/2022,0170523,380.00,Revenue,Beardwood Tree Services,77437,,
Chorley Borough Council,http://statistics.data.gov.uk/id/local-authority/30UE,Service Management & Support,1009,CUST - Customer & Digital,Grounds Maintenance Contractor,20043,Grounds Maintenance Costs,5013,Invoice 1295. Overhanging branches at ADDRESSES REDACTED,16/09/2022,0170524,640.00,Revenue,Beardwood Tree Services,77437,,
Chorley Borough Council,http://statistics.data.gov.uk/id/local-authority/30UE,Capital,Capital,CUST - Customer & Digital,Main Contractor,03007,Capital Expenditure,Capital,Crown raise Norway Maple and remove Limes on Queens Rd Car Park,23/09/2022,0170931,400.00,Capital,Beardwood Tree Services,77437,,
Chorley Borough Council,http://statistics.data.gov.uk/id/local-authority/30UE,Service Management & Support,1009,CUST - Customer & Digital,Grounds Maintenance Contractor,20043,Grounds Maintenance Costs,5013,Back Railway View. Fell trees to ground level and remove arisings.,23/09/2022,0170932,650.00,Revenue,Beardwood Tree Services,77437,,
Chorley Borough Council,http://statistics.data.gov.uk/id/local-authority/30UE,Tourism,1039,GOVN - Policy & Governance,Tools & Equipment - Hire,40004,"Equipment, Furniture & Materia",5023,Fairground ride provision,02/09/2022,0170349,750.00,Revenue,Bewleys,76203,,
Chorley Borough Council,http://statistics.data.gov.uk/id/local-authority/30UE,Central Support Services,1009,EARL - Communities,Misc Expenses,40200,Miscellaneous Expenses,5034,Small environmental improvement funding,23/09/2022,0170986,500.00,Revenue,Bibbys Farm Scout Camp Site & Activity Centre,85621,,
Chorley Borough Council,http://statistics.data.gov.uk/id/local-authority/30UE,Development Control,1091,GOVN - Policy & Governance,Computer Software-Maintenance,40107,Communication and Computing,5028,Heritage Services from April 2021 to March 2022,02/09/2022,0168344,"5,446.50",Revenue,Blackburn with Darwen Borough Council,21000,,
Chorley Borough Council,http://statistics.data.gov.uk/id/local-authority/30UE,Capital,Capital,GROW - Commercial & Property,Architects Fees,03022,Capital Expenditure,Capital,Asbestos Refurbishment Survey � The White Hart Bar & Restaurant,23/09/2022,0170994,"1,495.00",Capital,Bradley Environmental Consultants Ltd,77154,,
Chorley Borough Council,http://statistics.data.gov.uk/id/local-authority/30UE,Building Control,1090,PLAN - Planning & Development,Agency Staff,13000,Direct Employee Expenses,5001,Agency fees for NAME REDACTED Building Control Officer effective 15.08.2022 for an initial period of 6 months,16/09/2022,0170697,"2,275.00",Revenue,BRG Interim Solutions Ltd,85601,,
Chorley Borough Council,http://statistics.data.gov.uk/id/local-authority/30UE,Building Control,1090,PLAN - Planning & Development,Agency Staff,13000,Direct Employee Expenses,5001,Agency fees for NAME REDACTED Building Control Officer effective 15.08.2022 for an initial period of 6 months,23/09/2022,0170742,"4,777.50",Revenue,BRG Interim Solutions Ltd,85601,,
Chorley Borough Council,http://statistics.data.gov.uk/id/local-authority/30UE,Business Support,1095,GROW - Commercial & Property,Exhibitions & Special Events,40158,Miscellaneous Expenses,5034,"Supply entertainment (Punch and Judy & balloon modelling) for fun Thursday, Market Walk on the 18th August 22",09/09/2022,0170316,360.00,Revenue,Brian Gore,18370,,
Chorley Borough Council,http://statistics.data.gov.uk/id/local-authority/30UE,Tourism,1039,GOVN - Policy & Governance,Misc Expenses,40200,Miscellaneous Expenses,5034,CFS prize money,02/09/2022,0170395,400.00,Revenue,Brighter Blooms,71496,,
Chorley Borough Council,http://statistics.data.gov.uk/id/local-authority/30UE,Business Support,1095,GROW - Commercial & Property,Electricity,20013,Energy Costs,5006,21/4 to 15/7/22,23/09/2022,0169724,"1,097.37",Revenue,British Gas Business,22242,,
Chorley Borough Council,http://statistics.data.gov.uk/id/local-authority/30UE,Business Support,1095,GROW - Commercial & Property,Electricity,20013,Energy Costs,5006,29/7 to 28/8/22,23/09/2022,0170872,401.15,Revenue,British Gas Business,22242,,
Chorley Borough Council,http://statistics.data.gov.uk/id/local-authority/30UE,Central Support Services,1009,CUST - Customer & Digital,Telephones - Rentals,40083,Communication and Computing,5028,charges,16/09/2022,0170770,204.95,Revenue,British Telecommunications Plc,17131,,
Chorley Borough Council,http://statistics.data.gov.uk/id/local-authority/30UE,Central Support Services,1009,CUST - Customer & Digital,Telephones - Calls,40084,Communication and Computing,5028,use,16/09/2022,0170770,9.48,Revenue,British Telecommunications Plc,17131,,
Chorley Borough Council,http://statistics.data.gov.uk/id/local-authority/30UE,Central Support Services,1009,CUST - Customer & Digital,Telephones - Other,40085,Communication and Computing,5028,one off,16/09/2022,0170770,40.00,Revenue,British Telecommunications Plc,17131,,
Chorley Borough Council,http://statistics.data.gov.uk/id/local-authority/30UE,Capital,Capital,GROW - Commercial & Property,Other Capital Related Fees,03024,Capital Expenditure,Capital,Sheffield Stainless Steel Root Fixed Bollard Semi dome topped,09/09/2022,0170046,630.00,Capital,Broxap Ltd,16718,,
Chorley Borough Council,http://statistics.data.gov.uk/id/local-authority/30UE,Capital,Capital,GROW - Commercial & Property,Other Capital Related Fees,03024,Capital Expenditure,Capital,Sheffield Stainless Steel Root Fixed Bollard Semi dome topped,09/09/2022,0170046,336.00,Capital,Broxap Ltd,16718,,
Chorley Borough Council,http://statistics.data.gov.uk/id/local-authority/30UE,Capital,Capital,GROW - Commercial & Property,Other Capital Related Fees,03024,Capital Expenditure,Capital,BX47 Socket  Spare socket To suit the above 114mm diameter bollard Grade 316,09/09/2022,0170046,231.00,Capital,Broxap Ltd,16718,,
Chorley Borough Council,http://statistics.data.gov.uk/id/local-authority/30UE,Capital,Capital,GROW - Commercial & Property,Other Capital Related Fees,03024,Capital Expenditure,Capital,1 x Delivery charge based on carriage to PR7 postcode area (No off-loading),09/09/2022,0170046,92.00,Capital,Broxap Ltd,16718,,
Chorley Borough Council,http://statistics.data.gov.uk/id/local-authority/30UE,Service Management & Support,1009,GROW - Commercial & Property,Supplies-Grounds Maintenance,40025,"Equipment, Furniture & Materia",5023,Heavyweight 76mm Steel Socketed Football Goals Package - 24` x 8`,30/09/2022,0171103,"3,560.00",Revenue,Broxap Ltd,16718,,
Chorley Borough Council,http://statistics.data.gov.uk/id/local-authority/30UE,Service Management & Support,1009,GROW - Commercial & Property,Supplies-Grounds Maintenance,40025,"Equipment, Furniture & Materia",5023,Carriage cost ,30/09/2022,0171103,250.00,Revenue,Broxap Ltd,16718,,
Chorley Borough Council,http://statistics.data.gov.uk/id/local-authority/30UE,Service Management & Support,1009,CUST - Customer & Digital,External Contractor,40198,Miscellaneous Expenses,5034,"Bengal St Depot � Empty yard catch pits each month, interceptor. Rowan Croft Pond � Jet outlet pipe and clear trash screen ",23/09/2022,0170668,400.00,Revenue,C J Lyon,16579,,
Chorley Borough Council,http://statistics.data.gov.uk/id/local-authority/30UE,Corporate Management,1008,EARL - Communities,Grants to Voluntary Organisations,40124,Grants and Subscriptions,5031,HSF - Utilities Emptying a Septic Tank,16/09/2022,0170722,250.00,Revenue,C J Lyon,16579,,
Chorley Borough Council,http://statistics.data.gov.uk/id/local-authority/30UE,Service Management & Support,1009,CUST - Customer & Digital,External Contractor,40198,Miscellaneous Expenses,5034,"Bengal St Depot � Empty yard catch pits each month, interceptor. Rowan Croft Pond � Jet outlet pipe and clear trash screen ",23/09/2022,0170750,390.00,Revenue,C J Lyon,16579,,
Chorley Borough Council,http://statistics.data.gov.uk/id/local-authority/30UE,Tourism,1039,GOVN - Policy & Governance,Refreshments,40036,Catering,5024,"Food and drink for judges, and VIPs",16/09/2022,0170601,293.08,Revenue,Cafe Ambio,22328,,
Chorley Borough Council,http://statistics.data.gov.uk/id/local-authority/30UE,Open Spaces,1038,CUST - Customer & Digital,Supplies-Grounds Maintenance,40025,"Equipment, Furniture & Materia",5023,Supply buffet lunch for the In Bloom judges and 35 guests,30/09/2022,0171095,621.25,Revenue,Cafe Ambio,22328,,
Chorley Borough Council,http://statistics.data.gov.uk/id/local-authority/30UE,Business Support,1095,GROW - Commercial & Property,Exhibitions & Special Events,40158,Miscellaneous Expenses,5034,To supply entertainment for summer Fun Thursdays on Market Walk: Seaside Summer sand bottles Face Painter ,23/09/2022,0170630,"1,970.00",Revenue,Candy House Events and Entertainment,85030,,
Chorley Borough Council,http://statistics.data.gov.uk/id/local-authority/30UE,Central Support Services,1009,CUST - Customer & Digital,IT Software - Annual Licences,40101,Communication and Computing,5028,Migration from On premise solution to SaaS solution for period from 1st Nov 2021 to 31st Mar 2022 - Instalment 1,30/09/2022,0168666,"50,000.00",Revenue,Capita Business Services Ltd,17151,,
Chorley Borough Council,http://statistics.data.gov.uk/id/local-authority/30UE,Building Control,1090,PLAN - Planning & Development,Agency Staff,13000,Direct Employee Expenses,5001,Agency fees for NAME REDACTED  Building Control Officer - initial 6 months contract effective 13.06.2022,09/09/2022,0169778,374.00,Revenue,Carrington West Ltd,83124,,
Chorley Borough Council,http://statistics.data.gov.uk/id/local-authority/30UE,Building Control,1090,PLAN - Planning & Development,Agency Staff,13000,Direct Employee Expenses,5001,Agency fees for Building Control Officer NAME REDACTED July 2022 ongoing contract,16/09/2022,0170510,"1,236.00",Revenue,Carrington West Ltd,83124,,
Chorley Borough Council,http://statistics.data.gov.uk/id/local-authority/30UE,Building Control,1090,PLAN - Planning & Development,Agency Staff,13000,Direct Employee Expenses,5001,Agency fees for Building Control Officer NAME REDACTED July 2022 ongoing contract,09/09/2022,0170609,"1,080.00",Revenue,Carrington West Ltd,83124,,
Chorley Borough Council,http://statistics.data.gov.uk/id/local-authority/30UE,Central Support Services,1009,CUST - Customer & Digital,CCTV Camera Maintenance,40007,"Equipment, Furniture & Materia",5023,all seasons work,16/09/2022,0170604,"2,474.55",Revenue,CCTV Services Limited,71330,,
Chorley Borough Council,http://statistics.data.gov.uk/id/local-authority/30UE,Central Support Services,1009,EARL - Communities,Misc Expenses,40200,Miscellaneous Expenses,5034,"Support with moving items from a residents current property to where they are moving to, also picking up household items",30/09/2022,0170920,295.00,Revenue,Chell Deliveries,75926,,
Chorley Borough Council,http://statistics.data.gov.uk/id/local-authority/30UE,Tourism,1039,GOVN - Policy & Governance,Misc Expenses,40200,Miscellaneous Expenses,5034,CFS contribution,02/09/2022,0170368,587.50,Revenue,Chorley & District Gardening Society,21287,,
Chorley Borough Council,http://statistics.data.gov.uk/id/local-authority/30UE,Regulatory Services,1048,PLAN - Planning & Development,Taxi Testing & Vehicle Safety Report,40234,Services,5027,mot,16/09/2022,0170779,"1,097.00",Revenue,Chorley Autocare Ltd,17110,,
Chorley Borough Council,http://statistics.data.gov.uk/id/local-authority/30UE,Regulatory Services,1048,PLAN - Planning & Development,Taxi Testing & Vehicle Safety Report,40234,Services,5027,taxi test,16/09/2022,0170779,171.00,Revenue,Chorley Autocare Ltd,17110,,
Chorley Borough Council,http://statistics.data.gov.uk/id/local-authority/30UE,Homelessness,1075,EARL - Communities,Misc Expenses,40200,Miscellaneous Expenses,5034,cash on arrival UKRS,02/09/2022,0169989,600.00,Revenue,Chorley BC Petty Cash,16301,,
Chorley Borough Council,http://statistics.data.gov.uk/id/local-authority/30UE,Unapportionable Central OHeads,1009,GOVN - Policy & Governance,Tools & Equipment - Purchase,40003,"Equipment, Furniture & Materia",5023,Product code 14WT5840 - 14W T5 Col 840 Tube.,09/09/2022,0170431,410.40,Revenue,Chorley Electrical Traders Ltd,16330,,
Chorley Borough Council,http://statistics.data.gov.uk/id/local-authority/30UE,Unapportionable Central OHeads,1009,GOVN - Policy & Governance,Tools & Equipment - Purchase,40003,"Equipment, Furniture & Materia",5023,Product code: 2`18W840 - 2`18W 4000K Col840 Tube .,09/09/2022,0170431,199.00,Revenue,Chorley Electrical Traders Ltd,16330,,
Chorley Borough Council,http://statistics.data.gov.uk/id/local-authority/30UE,Central Support Services,1009,EARL - Communities,Misc Expenses,40200,Miscellaneous Expenses,5034,Small environmental improvement funding,23/09/2022,0170985,650.00,Revenue,Chorley In Bloom group,70247,,
Chorley Borough Council,http://statistics.data.gov.uk/id/local-authority/30UE,Recreation & Sport,1037,GOVN - Policy & Governance,External Contractors,50008,Private Contractors,5042,2nd quarter subsidy payment,01/09/2022,0169032,"82,750.00",Revenue,Chorley Leisure Ltd,83376,,
Chorley Borough Council,http://statistics.data.gov.uk/id/local-authority/30UE,Central Support Services,1009,EARL - Communities,Core Funding Grants,40133,Grants and Subscriptions,5031,Small community grant,23/09/2022,0170982,480.00,Revenue,Chorley Runners,78271,,
Chorley Borough Council,http://statistics.data.gov.uk/id/local-authority/30UE,Central Support Services,1009,EARL - Communities,Core Funding Grants,40133,Grants and Subscriptions,5031,Small community grant,23/09/2022,0170963,370.00,Revenue,Chorley Theatre,84187,,
Chorley Borough Council,http://statistics.data.gov.uk/id/local-authority/30UE,Central Support Services,1009,EARL - Communities,Misc Expenses,40200,Miscellaneous Expenses,5034,Small environmental improvement funding,23/09/2022,0170998,400.00,Revenue,Chorley Theatre,84187,,
Chorley Borough Council,http://statistics.data.gov.uk/id/local-authority/30UE,Service Management & Support,1009,CUST - Customer & Digital,Vehicles and Plant Maintenance,30045,Direct Transport Costs,5016,YM70 GXBCalloutNew tyredisposal,16/09/2022,0170058,292.05,Revenue,Chorley Tyres,53719,,
Chorley Borough Council,http://statistics.data.gov.uk/id/local-authority/30UE,Service Management & Support,1009,CUST - Customer & Digital,Vehicles and Plant Maintenance,30045,Direct Transport Costs,5016,4 x new tyres 4 x disposal,16/09/2022,0170763,251.46,Revenue,Chorley Tyres,53719,,
Chorley Borough Council,http://statistics.data.gov.uk/id/local-authority/30UE,Homelessness,1075,EARL - Communities,External Contractor,40198,Miscellaneous Expenses,5034,Chorley Council/Inspire Youth Zone Youth Hub Project,09/09/2022,0169856,"6,869.99",Revenue,Chorley Youth Zone,77339,,
Chorley Borough Council,http://statistics.data.gov.uk/id/local-authority/30UE,Central Support Services,1009,EARL - Communities,Children's Activities,40188,Miscellaneous Expenses,5034,Delivery of Summer Holiday Activity and Food programme (HAF),16/09/2022,0170704,"187,774.00",Revenue,Chorley Youth Zone,77339,,
Chorley Borough Council,http://statistics.data.gov.uk/id/local-authority/30UE,Corporate Management,1008,EARL - Communities,Grants to Voluntary Organisations,40124,Grants and Subscriptions,5031,HSF - Phase two Contingency for Energy Support delivered by Citizens Advice Bureau,02/09/2022,0170297,"16,055.00",Revenue,Citizens Advice Lancashire,17035,,
Chorley Borough Council,http://statistics.data.gov.uk/id/local-authority/30UE,Community Development,1097,EARL - Communities,Citizens Advice Bureau,40125,Grants and Subscriptions,5031,Delivery of Advice Services. Second Year - 2nd of 3 payments,02/09/2022,0170301,"18,933.00",Revenue,Citizens Advice Lancashire,17035,,
Chorley Borough Council,http://statistics.data.gov.uk/id/local-authority/30UE,Unapportionable Central OHeads,1009,GOVN - Policy & Governance,Computer Software-Additional,40102,Communication and Computing,5028,Chorley SSIS for Payroll Interfaces ,16/09/2022,0170328,"5,145.00",Revenue,Civica UK Limited,17463,,
Chorley Borough Council,http://statistics.data.gov.uk/id/local-authority/30UE,Unapportionable Central OHeads,1009,GROW - Commercial & Property,Planned Maintenance,20006,Repairs Maintenance & Alts,5005,"Union St lift, To get our specialist contractor to attend site to tackle the lift, fit new suspension chains, check the lift",16/09/2022,0170511,"2,545.45",Revenue,Classic Lifts Limited,20897,,
Chorley Borough Council,http://statistics.data.gov.uk/id/local-authority/30UE,Unapportionable Central OHeads,1009,GROW - Commercial & Property,Planned Maintenance,20006,Repairs Maintenance & Alts,5005,"Town Hall - service remedial, To supply and fit an emergency battery for the emergency rescue backup and for the car top control ",16/09/2022,0170512,354.49,Revenue,Classic Lifts Limited,20897,,
Chorley Borough Council,http://statistics.data.gov.uk/id/local-authority/30UE,Unapportionable Central OHeads,1009,GROW - Commercial & Property,General Repairs - Reactive,20004,Repairs Maintenance & Alts,5005,Primrose  - Lifts Reactive Repairs,16/09/2022,0170518,"1,277.64",Revenue,Classic Lifts Limited,20897,,
Chorley Borough Council,http://statistics.data.gov.uk/id/local-authority/30UE,Unapportionable Central OHeads,1009,GROW - Commercial & Property,General Repairs - Reactive,20004,Repairs Maintenance & Alts,5005,Town Hall  - Lifts Reactive Repairs,16/09/2022,0170520,972.27,Revenue,Classic Lifts Limited,20897,,
Chorley Borough Council,http://statistics.data.gov.uk/id/local-authority/30UE,Central Support Services,1009,EARL - Communities,Misc Expenses,40200,Miscellaneous Expenses,5034,Small environmental improvement funding,23/09/2022,0170987,500.00,Revenue,Clayton Brook Residents Group,78021,,
Chorley Borough Council,http://statistics.data.gov.uk/id/local-authority/30UE,Democratic Represent and  Mgnt,1007,PLAN - Planning & Development,Maintenance/Nature Reserves,20045,Grounds Maintenance Costs,5013,"Landscape enhancement at The Hawthorns -  weed removal, control and general tidy. ",09/09/2022,0170264,659.14,Revenue,Conservation Contracts North West,20520,,
Chorley Borough Council,http://statistics.data.gov.uk/id/local-authority/30UE,Central Support Services,1009,EARL - Communities,Core Funding Grants,40133,Grants and Subscriptions,5031,Small community grant,23/09/2022,0170960,300.00,Revenue,Coppull in Bloom,59973,,
Chorley Borough Council,http://statistics.data.gov.uk/id/local-authority/30UE,Central Support Services,1009,CUST - Customer & Digital,Computer Equipment-Purchase,40098,Communication and Computing,5028,Astley Park Fibre Connection ASTLEY HALL CCTV DUCT INVESTIGATION & CONNECTION WORKS COST,16/09/2022,0170675,"4,900.00",Revenue,Core Integrated Solutions,77043,,
Chorley Borough Council,http://statistics.data.gov.uk/id/local-authority/30UE,Central Support Services,1009,CUST - Customer & Digital,CCTV Camera Maintenance,40007,"Equipment, Furniture & Materia",5023,The requirement is to install a new concrete base in the position highlighted in Astley Park. ,16/09/2022,0170676,"2,601.22",Revenue,Core Integrated Solutions,77043,,
Chorley Borough Council,http://statistics.data.gov.uk/id/local-authority/30UE,Central Support Services,1009,GROW - Commercial & Property,Gas,20014,Energy Costs,5006,jul-aug22,16/09/2022,0170634,288.53,Revenue,Corona Energy Retail 2 Ltd,67249,,
Chorley Borough Council,http://statistics.data.gov.uk/id/local-authority/30UE,Homelessness,1075,GROW - Commercial & Property,Gas,20014,Energy Costs,5006,jul-aug 22,16/09/2022,0170637,"1,821.57",Revenue,Corona Energy Retail 2 Ltd,67249,,
Chorley Borough Council,http://statistics.data.gov.uk/id/local-authority/30UE,Democratic Represent and  Mgnt,1007,GROW - Commercial & Property,Gas,20014,Energy Costs,5006,jul-aug-22,16/09/2022,0170642,531.85,Revenue,Corona Energy Retail 2 Ltd,67249,,
Chorley Borough Council,http://statistics.data.gov.uk/id/local-authority/30UE,Democratic Represent and  Mgnt,1007,GROW - Commercial & Property,Gas,20014,Energy Costs,5006,jul-aug-22,16/09/2022,0170644,481.84,Revenue,Corona Energy Retail 2 Ltd,67249,,
Chorley Borough Council,http://statistics.data.gov.uk/id/local-authority/30UE,Central Support Services,1009,GROW - Commercial & Property,Gas,20014,Energy Costs,5006,jul-aug-22,16/09/2022,0170645,"1,523.67",Revenue,Corona Energy Retail 2 Ltd,67249,,
Chorley Borough Council,http://statistics.data.gov.uk/id/local-authority/30UE,Recreation & Sport,1037,GROW - Commercial & Property,Gas,20014,Energy Costs,5006,jul-aug-22,16/09/2022,0170647,343.41,Revenue,Corona Energy Retail 2 Ltd,67249,,
Chorley Borough Council,http://statistics.data.gov.uk/id/local-authority/30UE,Business Support,1095,GROW - Commercial & Property,Gas,20014,Energy Costs,5006,jul-aug-22,16/09/2022,0170654,"3,123.55",Revenue,Corona Energy Retail 2 Ltd,67249,,
Chorley Borough Council,http://statistics.data.gov.uk/id/local-authority/30UE,Recreation & Sport,1037,GROW - Commercial & Property,Gas,20014,Energy Costs,5006,jul-aug22,16/09/2022,0170655,"1,389.04",Revenue,Corona Energy Retail 2 Ltd,67249,,
Chorley Borough Council,http://statistics.data.gov.uk/id/local-authority/30UE,Recreation & Sport,1037,GROW - Commercial & Property,Gas,20014,Energy Costs,5006,jul-aug-22,16/09/2022,0170656,"3,848.11",Revenue,Corona Energy Retail 2 Ltd,67249,,
Chorley Borough Council,http://statistics.data.gov.uk/id/local-authority/30UE,Democratic Represent and  Mgnt,1007,GROW - Commercial & Property,Gas,20014,Energy Costs,5006,jul-aug22,16/09/2022,0170659,"15,961.72",Revenue,Corona Energy Retail 2 Ltd,67249,,
Chorley Borough Council,http://statistics.data.gov.uk/id/local-authority/30UE,Central Support Services,1009,CUST - Customer & Digital,Computer Equipment-Purchase,40098,Communication and Computing,5028,Jabra BIZ1500 Mon headsets x 8 - Jabra Link 265 QD USB for PC ,02/09/2022,0170345,475.35,Revenue,Corporate Direct (Europe) Ltd,22135,,
Chorley Borough Council,http://statistics.data.gov.uk/id/local-authority/30UE,Central Support Services,1009,EARL - Communities,Bailiffs' Fees,40071,Services,5027,3x GRT Evictions,16/09/2022,0170615,"1,550.00",Revenue,COURT ENFORCEMENT SPECIALISTS LTD,77924,,
Chorley Borough Council,http://statistics.data.gov.uk/id/local-authority/30UE,Central Support Services,1009,EARL - Communities,Bailiffs' Fees,40071,Services,5027,3x GRT Evictions,16/09/2022,0170680,"1,400.00",Revenue,COURT ENFORCEMENT SPECIALISTS LTD,77924,,
Chorley Borough Council,http://statistics.data.gov.uk/id/local-authority/30UE,Tourism,1039,GOVN - Policy & Governance,Misc Expenses,40200,Miscellaneous Expenses,5034,CFS prize money,02/09/2022,0170384,400.00,Revenue,Craig House Cacti,71499,,
Chorley Borough Council,http://statistics.data.gov.uk/id/local-authority/30UE,Service Management & Support,1009,CUST - Customer & Digital,Supplies-Grounds Maintenance,40025,"Equipment, Furniture & Materia",5023,Supply 2 x 1.8m Balmoral wooden benches. Deliver to Bengal St depot,30/09/2022,0171159,733.33,Revenue,Cyan t/a Lindsey,61782,,
Chorley Borough Council,http://statistics.data.gov.uk/id/local-authority/30UE,Capital,Capital,EARL - Communities,Grants,03002,Capital Expenditure,Capital,ADDRESS REDACTED,16/09/2022,0170649,"4,506.00",Capital,D J Bathing,78482,,
Chorley Borough Council,http://statistics.data.gov.uk/id/local-authority/30UE,Central Support Services,1009,EARL - Communities,Core Funding Grants,40133,Grants and Subscriptions,5031,Small Community Grant,23/09/2022,0170961,350.00,Revenue,DanceSyndrome,85620,,
Chorley Borough Council,http://statistics.data.gov.uk/id/local-authority/30UE,Business Support,1095,GROW - Commercial & Property,Agency Staff,13000,Direct Employee Expenses,5001,Reception/admin cover for week ending 14/08/22,02/09/2022,0170263,821.06,Revenue,Daniel Adams Recruitment,78104,,
Chorley Borough Council,http://statistics.data.gov.uk/id/local-authority/30UE,Business Support,1095,GROW - Commercial & Property,Cleaning/Attendants' Services,20041,Cleaning and Domestic Supplies,5012,cleaning cover week ending 14/08/22,02/09/2022,0170263,276.00,Revenue,Daniel Adams Recruitment,78104,,
Chorley Borough Council,http://statistics.data.gov.uk/id/local-authority/30UE,Unapportionable Central OHeads,1009,CUST - Customer & Digital,Agency Staff,13000,Direct Employee Expenses,5001,Temporary staff to provide additional cover within Customer Services,16/09/2022,0170483,277.20,Revenue,Daniel Adams Recruitment,78104,,
Chorley Borough Council,http://statistics.data.gov.uk/id/local-authority/30UE,Business Support,1095,GROW - Commercial & Property,Agency Staff,13000,Direct Employee Expenses,5001,Reception/Admin cover week ending 21/08/22,23/09/2022,0170897,821.06,Revenue,Daniel Adams Recruitment,78104,,
Chorley Borough Council,http://statistics.data.gov.uk/id/local-authority/30UE,Business Support,1095,GROW - Commercial & Property,Cleaning/Attendants' Services,20041,Cleaning and Domestic Supplies,5012,Cleaning cover for 4 hours,23/09/2022,0170897,55.20,Revenue,Daniel Adams Recruitment,78104,,
Chorley Borough Council,http://statistics.data.gov.uk/id/local-authority/30UE,Business Support,1095,GROW - Commercial & Property,Cleaning/Attendants' Services,20041,Cleaning and Domestic Supplies,5012,"Per your week 22 invoice week ending 28/08/22 for cleaning cover, 24 hours ",23/09/2022,0170898,331.20,Revenue,Daniel Adams Recruitment,78104,,
Chorley Borough Council,http://statistics.data.gov.uk/id/local-authority/30UE,Development Control,1091,CUST - Customer & Digital,Professional Fees,40063,Services,5027,Appeal Costs ADDRESS REDACTED - Fees as agreed for Certificate of Lawfulness Application,30/09/2022,0169829,"2,400.00",Revenue,De Pol Associates Ltd,68423,,
Chorley Borough Council,http://statistics.data.gov.uk/id/local-authority/30UE,Tourism,1039,GOVN - Policy & Governance,Misc Expenses,40200,Miscellaneous Expenses,5034,CFS prize money 2022,02/09/2022,0170383,250.00,Revenue,Dedrah Moss,58138,,
Chorley Borough Council,http://statistics.data.gov.uk/id/local-authority/30UE,Tourism,1039,GOVN - Policy & Governance,Misc Expenses,40200,Miscellaneous Expenses,5034,CFS prize money 2021,02/09/2022,0170383,200.00,Revenue,Dedrah Moss,58138,,
Chorley Borough Council,http://statistics.data.gov.uk/id/local-authority/30UE,Corporate Management,1008,GOVN - Policy & Governance,Grants To Other Organisations,40127,Grants and Subscriptions,5031,Omicron Hospitality and Leisure Grant. Unspent to return to BEIS,23/09/2022,0170894,"31,325.00",Revenue,Dept for Business Energy & Ind. Strategy (BEIS),82937,,
Chorley Borough Council,http://statistics.data.gov.uk/id/local-authority/30UE,Tourism,1039,GOVN - Policy & Governance,Misc Expenses,40200,Miscellaneous Expenses,5034,CFS prize money,02/09/2022,0170389,400.00,Revenue,Derbyshire Bonsai,71502,,
Chorley Borough Council,http://statistics.data.gov.uk/id/local-authority/30UE,Tourism,1039,GOVN - Policy & Governance,Misc Expenses,40200,Miscellaneous Expenses,5034,CFS Prize money,02/09/2022,0170375,650.00,Revenue,Devine Nurseries,71497,,
Chorley Borough Council,http://statistics.data.gov.uk/id/local-authority/30UE,Corporate Management,1008,GOVN - Policy & Governance,Corp Training Organisational Development,17006,Indirect Employee Expenses,5002,Streetscene First Aid Training July 2022,30/09/2022,0170014,850.00,Revenue,DGF First Aid Training,72087,,
Chorley Borough Council,http://statistics.data.gov.uk/id/local-authority/30UE,Central Support Services,1009,GOVN - Policy & Governance,Exhibitions & Special Events,40158,Miscellaneous Expenses,5034,With regards to Invoice No: 130962 Code: ESSSC Stand A29 - Second 25%,02/09/2022,0170406,800.00,Revenue,Diversified Business Communications UK,68712,,
Chorley Borough Council,http://statistics.data.gov.uk/id/local-authority/30UE,Central Support Services,1009,EARL - Communities,Misc Expenses,40200,Miscellaneous Expenses,5034,Small environmental improvement funding,23/09/2022,0170995,400.00,Revenue,Drakes Hollow Community Improvement Group,78317,,
Chorley Borough Council,http://statistics.data.gov.uk/id/local-authority/30UE,Capital,Capital,PLAN - Planning & Development,Main Contractor,03007,Capital Expenditure,Capital,Grass pitch improvement works at Westway Playing Fields,09/09/2022,0169767,"9,068.72",Capital,Duncan Ross Ltd,76803,,
Chorley Borough Council,http://statistics.data.gov.uk/id/local-authority/30UE,Tourism,1039,GOVN - Policy & Governance,Misc Expenses,40200,Miscellaneous Expenses,5034,CFS Prize money,02/09/2022,0170390,325.00,Revenue,East of Eden Nursery,71506,,
Chorley Borough Council,http://statistics.data.gov.uk/id/local-authority/30UE,Central Support Services,1009,GROW - Commercial & Property,Professional Fees,40063,Services,5027,Charnock Richard GV scheme - Stage 1 works (Options/Design Review),30/09/2022,0170352,"7,500.00",Revenue,Eddisons Commercial Ltd,85509,,
Chorley Borough Council,http://statistics.data.gov.uk/id/local-authority/30UE,Central Support Services,1009,CUST - Customer & Digital,Mobile Voice and Data,40086,Communication and Computing,5028,03 sept 22,30/09/2022,0171245,"9,007.33",Revenue,EE - Orange,16486,,
Chorley Borough Council,http://statistics.data.gov.uk/id/local-authority/30UE,Business Support,1095,GROW - Commercial & Property,General Repairs - Reactive,20004,Repairs Maintenance & Alts,5005,100112 Old EFT invoice Strawberry Fields,16/09/2022,0170425,415.11,Revenue,EFT Construction,78195,,
Chorley Borough Council,http://statistics.data.gov.uk/id/local-authority/30UE,Unapportionable Central OHeads,1009,GROW - Commercial & Property,General Repairs - Reactive,20004,Repairs Maintenance & Alts,5005,100001 Old EFT invoice  Primrose gardens,16/09/2022,0170427,262.55,Revenue,EFT Construction,78195,,
Chorley Borough Council,http://statistics.data.gov.uk/id/local-authority/30UE,Unapportionable Central OHeads,1009,GROW - Commercial & Property,General Repairs - Reactive,20004,Repairs Maintenance & Alts,5005,1725Old EFT missed invoice 2 Woodchat works,09/09/2022,0170509,311.85,Revenue,EFT Construction,78195,,
Chorley Borough Council,http://statistics.data.gov.uk/id/local-authority/30UE,Homelessness,1075,GROW - Commercial & Property,Laundry,40042,"Clothing, Uniforms and Laundry",5025,For the laundry services provided to Cotswold House,16/09/2022,0170626,927.17,Revenue,Elis UK Ltd,20799,,
Chorley Borough Council,http://statistics.data.gov.uk/id/local-authority/30UE,Corporate Management,1008,EARL - Communities,Other Contributions,40145,Grants and Subscriptions,5031,Delivery of Household Support Fund - phase 2,02/09/2022,0170308,"5,500.00",Revenue,Emerging Futures CiC,81216,,
Chorley Borough Council,http://statistics.data.gov.uk/id/local-authority/30UE,Capital,Capital,GROW - Commercial & Property,Main Contractor,03007,Capital Expenditure,Capital,Outstanding retention money for MW phase 2,23/09/2022,0170275,"14,034.69",Capital,Eric Wright Construction Ltd,76464,,
Chorley Borough Council,http://statistics.data.gov.uk/id/local-authority/30UE,Central Support Services,1009,CUST - Customer & Digital,IT Software - Annual Licences,40101,Communication and Computing,5028,3 year agreement esri uk EA `QUO-38045-P3L1S5`,16/09/2022,0169375,"22,712.00",Revenue,ESRI (UK) Ltd,19692,,
Chorley Borough Council,http://statistics.data.gov.uk/id/local-authority/30UE,Business Support,1095,GROW - Commercial & Property,Internet Charges,40104,Communication and Computing,5028,"``Call Off`` order for: Operate Growth Connect Growth, Call charges and IP addresses for March 2022 to February 2023, ",09/09/2022,0170606,325.00,Revenue,Essensys Ltd,77836,,
Chorley Borough Council,http://statistics.data.gov.uk/id/local-authority/30UE,Business Support,1095,GROW - Commercial & Property,Internet Charges,40104,Communication and Computing,5028,"``Call Off`` order for: Operate Growth Connect Growth, Call charges and IP addresses for March 2022 to February 2023, ",23/09/2022,0170904,"2,950.00",Revenue,Essensys Ltd,77836,,
Chorley Borough Council,http://statistics.data.gov.uk/id/local-authority/30UE,Business Support,1095,GROW - Commercial & Property,Internet Charges,40104,Communication and Computing,5028,"``Call Off`` order for: Operate Growth Connect Growth, Call charges and IP addresses for March 2022 to February 2023, ",23/09/2022,0170954,"2,950.00",Revenue,Essensys Ltd,77836,,
Chorley Borough Council,http://statistics.data.gov.uk/id/local-authority/30UE,Unapportionable Central OHeads,1009,GROW - Commercial & Property,Planned Maintenance,20006,Repairs Maintenance & Alts,5005,Union St Quote ERQ038182/1  Intrusive Survey to enable pricing of remedial works required,16/09/2022,0167932,"1,263.00",Revenue,Eurosafe Solutions Limited,66302,,
Chorley Borough Council,http://statistics.data.gov.uk/id/local-authority/30UE,Business Support,1095,GROW - Commercial & Property,Planned Maintenance,20006,Repairs Maintenance & Alts,5005,Market Walk Extension Annual service of mansafe systems,23/09/2022,0170988,400.00,Revenue,Eurosafe Solutions Limited,66302,,
Chorley Borough Council,http://statistics.data.gov.uk/id/local-authority/30UE,Tourism,1039,GOVN - Policy & Governance,External Contractor,40198,Miscellaneous Expenses,5034,Irish Music Night including security and first aid,02/09/2022,0170432,"2,875.00",Revenue,Event Chorley,85464,,
Chorley Borough Council,http://statistics.data.gov.uk/id/local-authority/30UE,Tourism,1039,GOVN - Policy & Governance,External Contractor,40198,Miscellaneous Expenses,5034,Daytime Entertainment CFS,02/09/2022,0170433,"2,800.00",Revenue,Event Chorley,85464,,
Chorley Borough Council,http://statistics.data.gov.uk/id/local-authority/30UE,Tourism,1039,GOVN - Policy & Governance,External Contractor,40198,Miscellaneous Expenses,5034,Soul Music Night Saturday Night including security and first aid,02/09/2022,0170440,"4,000.00",Revenue,Event Chorley,85464,,
Chorley Borough Council,http://statistics.data.gov.uk/id/local-authority/30UE,Tourism,1039,GOVN - Policy & Governance,External Contractor,40198,Miscellaneous Expenses,5034,First aid cover,02/09/2022,0170440,125.00,Revenue,Event Chorley,85464,,
Chorley Borough Council,http://statistics.data.gov.uk/id/local-authority/30UE,Tourism,1039,GOVN - Policy & Governance,Misc Expenses,40200,Miscellaneous Expenses,5034,CFS prize money,02/09/2022,0170386,550.00,Revenue,Every Picture Tells A Story,71500,,
Chorley Borough Council,http://statistics.data.gov.uk/id/local-authority/30UE,Service Management & Support,1009,CUST - Customer & Digital,Supplies - Workshop,40246,"Equipment, Furniture & Materia",5023,As per Pro forma 158856,09/09/2022,0169996,297.26,Revenue,F R Sharrock Ltd,18091,,
Chorley Borough Council,http://statistics.data.gov.uk/id/local-authority/30UE,Service Management & Support,1009,CUST - Customer & Digital,Supplies - Workshop,40246,"Equipment, Furniture & Materia",5023,As per pro forma 159378,16/09/2022,0170478,312.08,Revenue,F R Sharrock Ltd,18091,,
Chorley Borough Council,http://statistics.data.gov.uk/id/local-authority/30UE,Service Management & Support,1009,CUST - Customer & Digital,Supplies-Grounds Maintenance,40025,"Equipment, Furniture & Materia",5023,As per quotation Q16706 9 x RA-4192422 WLDMT-8``X4K CUTTING CY,23/09/2022,0170525,"1,723.95",Revenue,F R Sharrock Ltd,18091,,
Chorley Borough Council,http://statistics.data.gov.uk/id/local-authority/30UE,Central Support Services,1009,CUST - Customer & Digital,Tools & Equipment - Maintenance,40005,"Equipment, Furniture & Materia",5023,Repair of 9 1100L containters,02/09/2022,0170160,765.00,Revenue,Fairport Containers Ltd,17735,,
Chorley Borough Council,http://statistics.data.gov.uk/id/local-authority/30UE,Central Support Services,1009,CUST - Customer & Digital,Unitary Payment(S),50009,Private Contractors,5042,Provision of Waste and Recycling Services to Chorley Council 2022/23,30/09/2022,0170646,"188,364.50",Revenue,FCC Environment Services (UK) Limited,77903,,
Chorley Borough Council,http://statistics.data.gov.uk/id/local-authority/30UE,Tourism,1039,GOVN - Policy & Governance,External Contractor,40198,Miscellaneous Expenses,5034,"Floating pontoon, delivery, build, hire and take down",09/09/2022,0170475,"3,750.00",Revenue,Floating Pontoon Solutions Ltd,77486,,
Chorley Borough Council,http://statistics.data.gov.uk/id/local-authority/30UE,Central Support Services,1009,GOVN - Policy & Governance,Legal Fees,40171,Miscellaneous Expenses,5034,Licensing appeal - NAME REDACTED,16/09/2022,0170616,750.00,Revenue,Freddie Humphreys,78375,,
Chorley Borough Council,http://statistics.data.gov.uk/id/local-authority/30UE,Business Support,1095,GROW - Commercial & Property,Fixtures & Fittings - Repair/Mtnce,20028,Fixtures and Fittings,5010,As per quote reference: 613109 Please supply x5  SLAT-AXL120,02/09/2022,0170292,400.00,Revenue,Furnitubes International Limited,78326,,
Chorley Borough Council,http://statistics.data.gov.uk/id/local-authority/30UE,Business Support,1095,GROW - Commercial & Property,Fixtures & Fittings - Repair/Mtnce,20028,Fixtures and Fittings,5010,Delivery charge,02/09/2022,0170292,75.00,Revenue,Furnitubes International Limited,78326,,
Chorley Borough Council,http://statistics.data.gov.uk/id/local-authority/30UE,Homelessness,1075,GROW - Commercial & Property,Furniture - Purchase,40012,"Equipment, Furniture & Materia",5023,2 x single bed frames 2 x Single mattresses  1 x wardrobe,30/09/2022,0171108,597.05,Revenue,Furniture Resource Centre Ltd,22085,,
Chorley Borough Council,http://statistics.data.gov.uk/id/local-authority/30UE,Tourism,1039,GOVN - Policy & Governance,Misc Expenses,40200,Miscellaneous Expenses,5034,CFS Prize show,02/09/2022,0170393,400.00,Revenue,G & K Carnations,85571,,
Chorley Borough Council,http://statistics.data.gov.uk/id/local-authority/30UE,Central Support Services,1009,EARL - Communities,Core Funding Grants,40133,Grants and Subscriptions,5031,Small community grant,23/09/2022,0170973,398.25,Revenue,Genesis Care (North West) Ltd,53287,,
Chorley Borough Council,http://statistics.data.gov.uk/id/local-authority/30UE,Capital,Capital,GROW - Commercial & Property,Main Contractor,03007,Capital Expenditure,Capital,Astley Hall Project Archaeological Standing Buildings Watching Brief Buildings archaeologist ,23/09/2022,0170993,330.00,Capital,Geoff W Maybank,64389,,
Chorley Borough Council,http://statistics.data.gov.uk/id/local-authority/30UE,Service Management & Support,1009,CUST - Customer & Digital,Vehicles and Plant Maintenance,30045,Direct Transport Costs,5016,As per estimate No Q22886 Repairs to PO14 BFX,23/09/2022,0170711,"1,221.24",Revenue,Gibsons Garden Machinery Ltd,17550,,
Chorley Borough Council,http://statistics.data.gov.uk/id/local-authority/30UE,Culture & Heritage,1036,GOVN - Policy & Governance,Souvenirs,40033,"Equipment, Furniture & Materia",5023,"Mood Rings, Gemstone Charm Bracelet, Aura Quartz Cluster Pendants",09/09/2022,0170664,459.40,Revenue,Giftstones Ltd T/A British Fossils,80856,,
Chorley Borough Council,http://statistics.data.gov.uk/id/local-authority/30UE,Service Management & Support,1009,CUST - Customer & Digital,Supplies-Grounds Maintenance,40025,"Equipment, Furniture & Materia",5023,Quantity x 10Schmidt poly wire mix brushes ,09/09/2022,0169766,552.92,Revenue,Go Plant Fleet Services Ltd,80857,,
Chorley Borough Council,http://statistics.data.gov.uk/id/local-authority/30UE,Service Management & Support,1009,CUST - Customer & Digital,Hire Of Vehicles and Plant,30028,Contrct Hire & Operating Lease,5018,3 Year Contract Hire Chassis mounted sweeper as per ITT. Including servicing and Maintenance. ,23/09/2022,0170527,"7,042.13",Revenue,Go Plant Fleet Services Ltd,80857,,
Chorley Borough Council,http://statistics.data.gov.uk/id/local-authority/30UE,Service Management & Support,1009,CUST - Customer & Digital,Hire Of Vehicles and Plant,30028,Contrct Hire & Operating Lease,5018,3 Year Contract Hire Chassis mounted sweeper as per ITT. Including servicing and Maintenance. ,23/09/2022,0170528,"1,290.17",Revenue,Go Plant Fleet Services Ltd,80857,,
Chorley Borough Council,http://statistics.data.gov.uk/id/local-authority/30UE,Central Support Services,1009,CUST - Customer & Digital,Professional Fees,40063,Services,5027,Garden waste subscription payments 2022/23 for Chorley and South Ribble,02/09/2022,0170154,711.03,Revenue,GoCardless,77457,,
Chorley Borough Council,http://statistics.data.gov.uk/id/local-authority/30UE,Capital,Capital,GROW - Commercial & Property,Consultants Fees,03025,Capital Expenditure,Capital,Alker Lane Consultancy Fees (July 2022) as requested by name redacted,09/09/2022,0170492,"1,806.25",Capital,Gosling Consulting Limited,78380,,
Chorley Borough Council,http://statistics.data.gov.uk/id/local-authority/30UE,Central Support Services,1009,PLAN - Planning & Development,Vandalism Repairs,20005,Repairs Maintenance & Alts,5005,Graffiti removal contract August 2022 ongoing,09/09/2022,0170490,"1,070.00",Revenue,Graffiti Away Ltd,78340,,
Chorley Borough Council,http://statistics.data.gov.uk/id/local-authority/30UE,Central Support Services,1009,PLAN - Planning & Development,Vandalism Repairs,20005,Repairs Maintenance & Alts,5005,Graffiti removal contract August 2022 ongoing,23/09/2022,0170915,"1,460.00",Revenue,Graffiti Away Ltd,78340,,
Chorley Borough Council,http://statistics.data.gov.uk/id/local-authority/30UE,Capital,Capital,GROW - Commercial & Property,Other Capital Related Fees,03024,Capital Expenditure,Capital,P-SSCT-150 Premium Stainless Steel Centre table � qty ordered,23/09/2022,0170705,990.00,Capital,Grafton Projects Limited,76545,,
Chorley Borough Council,http://statistics.data.gov.uk/id/local-authority/30UE,Capital,Capital,GROW - Commercial & Property,Other Capital Related Fees,03024,Capital Expenditure,Capital,1400-600LHD 1.4m Commercial stainless steel LHD Double Bowl sink  600 series,23/09/2022,0170705,499.00,Capital,Grafton Projects Limited,76545,,
Chorley Borough Council,http://statistics.data.gov.uk/id/local-authority/30UE,Capital,Capital,GROW - Commercial & Property,Other Capital Related Fees,03024,Capital Expenditure,Capital,Mixer-1 Commercial Mixer Tap � qty ordered 2 off ,23/09/2022,0170705,170.00,Capital,Grafton Projects Limited,76545,,
Chorley Borough Council,http://statistics.data.gov.uk/id/local-authority/30UE,Capital,Capital,GROW - Commercial & Property,Other Capital Related Fees,03024,Capital Expenditure,Capital,HWB-1 Stainless Steel Hand Wash Basin with Tap ,23/09/2022,0170705,230.00,Capital,Grafton Projects Limited,76545,,
Chorley Borough Council,http://statistics.data.gov.uk/id/local-authority/30UE,Corporate Management,1008,GROW - Commercial & Property,Publicity - Advertising,40157,Miscellaneous Expenses,5034,Social media for Market Walk SHopping  Centre Chorley. April - September 2022 ,16/09/2022,0170508,500.00,Revenue,Gravity,77837,,
Chorley Borough Council,http://statistics.data.gov.uk/id/local-authority/30UE,Service Management & Support,1009,CUST - Customer & Digital,Supplies-Grounds Maintenance,40025,"Equipment, Furniture & Materia",5023,As per Quote Number QU-0195,23/09/2022,0170795,750.00,Revenue,Greenfield Removals Limited,78440,,
Chorley Borough Council,http://statistics.data.gov.uk/id/local-authority/30UE,Central Support Services,1009,EARL - Communities,Core Funding Grants,40133,Grants and Subscriptions,5031,Small community grant,23/09/2022,0170983,300.00,Revenue,Guide Dogs,77462,,
Chorley Borough Council,http://statistics.data.gov.uk/id/local-authority/30UE,Central Support Services,1009,EARL - Communities,Core Funding Grants,40133,Grants and Subscriptions,5031,small comm grant,30/09/2022,0171122,300.00,Revenue,Guide Dogs,77462,,
Chorley Borough Council,http://statistics.data.gov.uk/id/local-authority/30UE,Service Management & Support,1009,CUST - Customer & Digital,Supplies-Grounds Maintenance,40025,"Equipment, Furniture & Materia",5023,White Printed Chorley Sacks Bimodal Super Plus Material As Previous,09/09/2022,0170486,"6,870.00",Revenue,Harrisons Packaging Ltd,17555,,
Chorley Borough Council,http://statistics.data.gov.uk/id/local-authority/30UE,Central Support Services,1009,GROW - Commercial & Property,Agency Staff,13000,Direct Employee Expenses,5001,Building surveyor costs for NAME REDACTED 54 hours,23/09/2022,0168983,840.00,Revenue,Hays Senior Finance,20078,,
Chorley Borough Council,http://statistics.data.gov.uk/id/local-authority/30UE,Central Support Services,1009,GROW - Commercial & Property,Agency Staff,13000,Direct Employee Expenses,5001,Building surveyor costs for NAME REDACTED 54 hours,23/09/2022,0168984,"1,050.00",Revenue,Hays Senior Finance,20078,,
Chorley Borough Council,http://statistics.data.gov.uk/id/local-authority/30UE,Central Support Services,1009,GROW - Commercial & Property,Agency Staff,13000,Direct Employee Expenses,5001,NAME REDACTED - Estates Surveyor Chorley Council,23/09/2022,0170314,"1,785.00",Revenue,Hays Senior Finance,20078,,
Chorley Borough Council,http://statistics.data.gov.uk/id/local-authority/30UE,Central Support Services,1009,GROW - Commercial & Property,Agency Staff,13000,Direct Employee Expenses,5001,NAME REDACTED - Estates Surveyor Chorley Council,23/09/2022,0170315,"1,785.00",Revenue,Hays Senior Finance,20078,,
Chorley Borough Council,http://statistics.data.gov.uk/id/local-authority/30UE,Central Support Services,1009,GROW - Commercial & Property,Agency Staff,13000,Direct Employee Expenses,5001,NAME REDACTED - Estates Surveyor Chorley Council,23/09/2022,0170353,"1,785.00",Revenue,Hays Senior Finance,20078,,
Chorley Borough Council,http://statistics.data.gov.uk/id/local-authority/30UE,Central Support Services,1009,GROW - Commercial & Property,Agency Staff,13000,Direct Employee Expenses,5001,NAME REDACTED - Estates Surveyor Chorley Council,23/09/2022,0170503,"1,785.00",Revenue,Hays Senior Finance,20078,,
Chorley Borough Council,http://statistics.data.gov.uk/id/local-authority/30UE,Economic Development,1096,GROW - Commercial & Property,Agency Staff,13000,Direct Employee Expenses,5001,NAME REDACTED - 24 week contract ,16/09/2022,0170670,"2,208.00",Revenue,Hays Senior Finance,20078,,
Chorley Borough Council,http://statistics.data.gov.uk/id/local-authority/30UE,Economic Development,1096,GROW - Commercial & Property,Agency Staff,13000,Direct Employee Expenses,5001,NAME REDACTED - 24 week contract ,16/09/2022,0170712,"2,587.50",Revenue,Hays Senior Finance,20078,,
Chorley Borough Council,http://statistics.data.gov.uk/id/local-authority/30UE,Central Support Services,1009,EARL - Communities,Core Funding Grants,40133,Grants and Subscriptions,5031,Small community grant,23/09/2022,0170975,310.00,Revenue,Heartbeat NWCC,61777,,
Chorley Borough Council,http://statistics.data.gov.uk/id/local-authority/30UE,Unapportionable Central OHeads,1009,GROW - Commercial & Property,General Repairs - Reactive,20004,Repairs Maintenance & Alts,5005,Cotswold House - Painting and Decorating,09/09/2022,0170529,270.00,Revenue,Henry Nightingale & Son,17923,,
Chorley Borough Council,http://statistics.data.gov.uk/id/local-authority/30UE,Unapportionable Central OHeads,1009,GROW - Commercial & Property,General Repairs - Reactive,20004,Repairs Maintenance & Alts,5005,Cotswold House - Painting and Decorating,09/09/2022,0170531,270.00,Revenue,Henry Nightingale & Son,17923,,
Chorley Borough Council,http://statistics.data.gov.uk/id/local-authority/30UE,Unapportionable Central OHeads,1009,GROW - Commercial & Property,General Repairs - Reactive,20004,Repairs Maintenance & Alts,5005,Cotswold House - Painting and Decorating,09/09/2022,0170535,270.00,Revenue,Henry Nightingale & Son,17923,,
Chorley Borough Council,http://statistics.data.gov.uk/id/local-authority/30UE,Unapportionable Central OHeads,1009,GROW - Commercial & Property,General Repairs - Reactive,20004,Repairs Maintenance & Alts,5005,Primrose Gardens - Painting and Decorating,09/09/2022,0170536,275.00,Revenue,Henry Nightingale & Son,17923,,
Chorley Borough Council,http://statistics.data.gov.uk/id/local-authority/30UE,Unapportionable Central OHeads,1009,GROW - Commercial & Property,General Repairs - Reactive,20004,Repairs Maintenance & Alts,5005,Cotswold House - Painting and Decorating,09/09/2022,0170538,270.00,Revenue,Henry Nightingale & Son,17923,,
Chorley Borough Council,http://statistics.data.gov.uk/id/local-authority/30UE,Unapportionable Central OHeads,1009,GROW - Commercial & Property,General Repairs - Reactive,20004,Repairs Maintenance & Alts,5005,Primrose Gardens - Painting and Decorating,09/09/2022,0170546,285.00,Revenue,Henry Nightingale & Son,17923,,
Chorley Borough Council,http://statistics.data.gov.uk/id/local-authority/30UE,Unapportionable Central OHeads,1009,GROW - Commercial & Property,General Repairs - Reactive,20004,Repairs Maintenance & Alts,5005,Cotswold House - Painting and Decorating,09/09/2022,0170547,540.00,Revenue,Henry Nightingale & Son,17923,,
Chorley Borough Council,http://statistics.data.gov.uk/id/local-authority/30UE,Unapportionable Central OHeads,1009,GOVN - Policy & Governance,IT Software - Annual Licences,40101,Communication and Computing,5028,Additional project hours required as per information contained ,09/09/2022,0168880,"16,900.00",Revenue,Hfx Ltd,17164,,
Chorley Borough Council,http://statistics.data.gov.uk/id/local-authority/30UE,Tourism,1039,GOVN - Policy & Governance,Misc Expenses,40200,Miscellaneous Expenses,5034,CFS Prize money,02/09/2022,0170385,500.00,Revenue,High Park Nurseries,71509,,
Chorley Borough Council,http://statistics.data.gov.uk/id/local-authority/30UE,Central Support Services,1009,EARL - Communities,Core Funding Grants,40133,Grants and Subscriptions,5031,Small community grant,23/09/2022,0170968,360.00,Revenue,Hoghton Social & Sports Centre,18425,,
Chorley Borough Council,http://statistics.data.gov.uk/id/local-authority/30UE,Tourism,1039,GOVN - Policy & Governance,Supplies-Grounds Maintenance,40025,"Equipment, Furniture & Materia",5023,Creation of the Children`s design a Garden Competition winner for the Chorley Flower Show 2022. ,16/09/2022,0170721,"2,000.00",Revenue,Homescapes 1990 Ltd,83511,,
Chorley Borough Council,http://statistics.data.gov.uk/id/local-authority/30UE,Central Support Services,1009,CUST - Customer & Digital,Consultants` Fees,40077,Services,5027,citrix support,09/09/2022,0169681,"3,750.00",Revenue,Hybrit LLP,77925,,
Chorley Borough Council,http://statistics.data.gov.uk/id/local-authority/30UE,Central Support Services,1009,CUST - Customer & Digital,Telephones - Other,40085,Communication and Computing,5028,Hybrit SIP charges July 22,09/09/2022,0170317,585.00,Revenue,Hybrit LLP,77925,,
Chorley Borough Council,http://statistics.data.gov.uk/id/local-authority/30UE,Central Support Services,1009,CUST - Customer & Digital,Telephones - Other,40085,Communication and Computing,5028,Hybrit SIP charges August 22,09/09/2022,0170318,585.00,Revenue,Hybrit LLP,77925,,
Chorley Borough Council,http://statistics.data.gov.uk/id/local-authority/30UE,Central Support Services,1009,CUST - Customer & Digital,Consultants` Fees,40077,Services,5027,NAME REDACTED TPM,09/09/2022,0170499,"6,500.00",Revenue,Hybrit LLP,77925,,
Chorley Borough Council,http://statistics.data.gov.uk/id/local-authority/30UE,Central Support Services,1009,CUST - Customer & Digital,Consultants` Fees,40077,Services,5027,"CREDIT - SBC Manufacture Annual Maintenance, 3rd",16/09/2022,0170500,"1,629.60",Revenue,Hybrit LLP,77925,,
Chorley Borough Council,http://statistics.data.gov.uk/id/local-authority/30UE,Corporate Management,1008,GOVN - Policy & Governance,Other Fees,40212,Miscellaneous Expenses,5034,Subsidy for the provision of a meals on wheels service in Chorley up to 14 August 2022,09/09/2022,0170159,"2,071.13",Revenue,I Care GB Ltd,77247,,
Chorley Borough Council,http://statistics.data.gov.uk/id/local-authority/30UE,Business Support,1095,GROW - Commercial & Property,Refreshments,40036,Catering,5024,AUGUST W/C 04.08.22-,16/09/2022,0170660,86.80,Revenue,I W Critchley & Son,77615,,
Chorley Borough Council,http://statistics.data.gov.uk/id/local-authority/30UE,Business Support,1095,GROW - Commercial & Property,Refreshments,40036,Catering,5024,AUGUST W/C 11.08.22-,16/09/2022,0170660,74.40,Revenue,I W Critchley & Son,77615,,
Chorley Borough Council,http://statistics.data.gov.uk/id/local-authority/30UE,Business Support,1095,GROW - Commercial & Property,Refreshments,40036,Catering,5024,AUGUST W/C 18.08.22-,16/09/2022,0170660,71.92,Revenue,I W Critchley & Son,77615,,
Chorley Borough Council,http://statistics.data.gov.uk/id/local-authority/30UE,Business Support,1095,GROW - Commercial & Property,Refreshments,40036,Catering,5024,AUGUST W/C 25.08.22-,16/09/2022,0170660,74.40,Revenue,I W Critchley & Son,77615,,
Chorley Borough Council,http://statistics.data.gov.uk/id/local-authority/30UE,Business Support,1095,GROW - Commercial & Property,Refreshments,40036,Catering,5024,SEPT W/C 01.01.22- x23-,16/09/2022,0170660,57.04,Revenue,I W Critchley & Son,77615,,
Chorley Borough Council,http://statistics.data.gov.uk/id/local-authority/30UE,Central Support Services,1009,CUST - Customer & Digital,Computer Equipment - Security,40106,Communication and Computing,5028,collection of redundant it equipment and secure disposal.,09/09/2022,0169722,399.00,Revenue,ICT Reverse asset Management Limited,77276,,
Chorley Borough Council,http://statistics.data.gov.uk/id/local-authority/30UE,Central Support Services,1009,GOVN - Policy & Governance,Refuse Collection,20037,Cleaning and Domestic Supplies,5012,supply of hygiene services to all council sites,02/09/2022,0170266,"2,451.44",Revenue,Initial,78488,,
Chorley Borough Council,http://statistics.data.gov.uk/id/local-authority/30UE,Central Support Services,1009,GOVN - Policy & Governance,Fixtures & Fittings - Repair/Mtnce,20028,Fixtures and Fittings,5010,"Maintenance of modular air fresh at Union Street Civic Offices, both ladies and gents toilets.",09/09/2022,0170418,621.42,Revenue,Initial,78488,,
Chorley Borough Council,http://statistics.data.gov.uk/id/local-authority/30UE,Control Accounts,Control,System,Manual Control Account,00001,Balance Sheet,Balance,,30/09/2022,0170269,259.18,Revenue,Inland Revenue 065py00102078,17445,,
Chorley Borough Council,http://statistics.data.gov.uk/id/local-authority/30UE,Planning Policy,1092,GROW - Commercial & Property,Training Course Fees,17010,Indirect Employee Expenses,5002,Neighbourhood Plan Training Event,23/09/2022,0170665,510.00,Revenue,Intelligent Plans and Examinations Limited,85600,,
Chorley Borough Council,http://statistics.data.gov.uk/id/local-authority/30UE,Community Development,1097,GROW - Commercial & Property,Rent/Hire Of Premises,20017,Premises Rents,5007,ADDRESS REDACTED,23/09/2022,0171048,"7,218.75",Revenue,J R Keys,17124,,
Chorley Borough Council,http://statistics.data.gov.uk/id/local-authority/30UE,Business Support,1095,GROW - Commercial & Property,Tools & Equipment - Purchase,40003,"Equipment, Furniture & Materia",5023,For the maintenance and services provided at Primrose gardens,02/09/2022,0170284,333.09,Revenue,JLA Total Care LTD,78420,,
Chorley Borough Council,http://statistics.data.gov.uk/id/local-authority/30UE,Business Support,1095,GROW - Commercial & Property,Tools & Equipment - Purchase,40003,"Equipment, Furniture & Materia",5023,For the maintenance and services provided at Primrose gardens,30/09/2022,0171090,333.09,Revenue,JLA Total Care LTD,78420,,
Chorley Borough Council,http://statistics.data.gov.uk/id/local-authority/30UE,Tourism,1039,GOVN - Policy & Governance,Misc Expenses,40200,Miscellaneous Expenses,5034,CFS Prize money,02/09/2022,0170376,325.00,Revenue,Joe Appleton,77540,,
Chorley Borough Council,http://statistics.data.gov.uk/id/local-authority/30UE,Service Management & Support,1009,CUST - Customer & Digital,Supplies-Grounds Maintenance,40025,"Equipment, Furniture & Materia",5023,Suppy 55 wooden posts with 100m rope,16/09/2022,0170695,821.70,Revenue,John H Mayor & Sons Ltd,16635,,
Chorley Borough Council,http://statistics.data.gov.uk/id/local-authority/30UE,Service Management & Support,1009,CUST - Customer & Digital,Supplies-Grounds Maintenance,40025,"Equipment, Furniture & Materia",5023,10 @ 1.8m x 150mm x 75mm green timber,16/09/2022,0170709,109.40,Revenue,John H Mayor & Sons Ltd,16635,,
Chorley Borough Council,http://statistics.data.gov.uk/id/local-authority/30UE,Service Management & Support,1009,CUST - Customer & Digital,Supplies-Grounds Maintenance,40025,"Equipment, Furniture & Materia",5023,10 @ 4.2m x 100mm x 38mm green timber,16/09/2022,0170709,86.20,Revenue,John H Mayor & Sons Ltd,16635,,
Chorley Borough Council,http://statistics.data.gov.uk/id/local-authority/30UE,Service Management & Support,1009,CUST - Customer & Digital,Supplies-Grounds Maintenance,40025,"Equipment, Furniture & Materia",5023,10 @ 3.6m x 150mm x 50mm timber,16/09/2022,0170709,145.80,Revenue,John H Mayor & Sons Ltd,16635,,
Chorley Borough Council,http://statistics.data.gov.uk/id/local-authority/30UE,Central Support Services,1009,GROW - Commercial & Property,Main Contractor,03007,Capital Expenditure,Capital,Alker Lane Design & Build Contract,23/09/2022,0170775,"164,455.20",Revenue,John Turner Construction Group Limited,82376,,
Chorley Borough Council,http://statistics.data.gov.uk/id/local-authority/30UE,Tourism,1039,GOVN - Policy & Governance,Misc Expenses,40200,Miscellaneous Expenses,5034,CFS prize money,02/09/2022,0170387,325.00,Revenue,K Partington,76216,,
Chorley Borough Council,http://statistics.data.gov.uk/id/local-authority/30UE,Cemetery Cremation & Mortuary,1041,CUST - Customer & Digital,Refunds,40220,Miscellaneous Expenses,5034,Burial Grant/Transfer,30/09/2022,0170367,-27.00,Revenue,Karen Astall,85593,,
Chorley Borough Council,http://statistics.data.gov.uk/id/local-authority/30UE,Cemetery Cremation & Mortuary,1041,CUST - Customer & Digital,Refunds,40220,Miscellaneous Expenses,5034,Grave Marker/Headstone,30/09/2022,0170367,22.00,Revenue,Karen Astall,85593,,
Chorley Borough Council,http://statistics.data.gov.uk/id/local-authority/30UE,Cemetery Cremation & Mortuary,1041,CUST - Customer & Digital,Refunds,40220,Miscellaneous Expenses,5034,Exclusive Right of Burial,30/09/2022,0170367,927.00,Revenue,Karen Astall,85593,,
Chorley Borough Council,http://statistics.data.gov.uk/id/local-authority/30UE,Homelessness,1075,EARL - Communities,Grants to Voluntary Organisations,40124,Grants and Subscriptions,5031,"Ukraine Welcome Event 12th August 2022 13:00-16:00 Lancastrian Suite, Town Hall",16/09/2022,0170698,375.00,Revenue,Kash.SJBLimited,78455,,
Chorley Borough Council,http://statistics.data.gov.uk/id/local-authority/30UE,Business Support,1095,GROW - Commercial & Property,Uniforms,40039,"Clothing, Uniforms and Laundry",5025,3 x red/black patrol shirts � size M 2 x black sweatshirts � size M 1 x yellow Ambassador II Jacket � size M,23/09/2022,0170859,363.85,Revenue,Keltic Clothing,21988,,
Chorley Borough Council,http://statistics.data.gov.uk/id/local-authority/30UE,Homelessness,1075,EARL - Communities,Service Fees,40056,Services,5027,Provision of Young People`s Housing Drop in Service for ChorleyQuarter 2 (July -  September 2022),09/09/2022,0170507,"3,750.00",Revenue,Key,61252,,
Chorley Borough Council,http://statistics.data.gov.uk/id/local-authority/30UE,Precepts and Collection Fund,Precepts,GOVN - Policy & Governance,LCC Precept,02009,Precepts & Collection Fund,Precept,LCC CTax precept,01/09/2022,0169093,"5,841,829.00",Revenue,Lancashire County Council,18386,,
Chorley Borough Council,http://statistics.data.gov.uk/id/local-authority/30UE,Collection Fund Revenue Accoun,,GOVN - Policy & Governance,NNDR County Share,02036,Precepts & Collection Fund,Precept,LCC BRates precept,01/09/2022,0169093,"154,328.00",Revenue,Lancashire County Council,18386,,
Chorley Borough Council,http://statistics.data.gov.uk/id/local-authority/30UE,Precepts and Collection Fund,Precepts,GOVN - Policy & Governance,LCC Precept,02009,Precepts & Collection Fund,Precept,LCC CTax precepts,01/09/2022,0170023,"5,841,829.00",Revenue,Lancashire County Council,18386,,
Chorley Borough Council,http://statistics.data.gov.uk/id/local-authority/30UE,Collection Fund Revenue Accoun,,GOVN - Policy & Governance,NNDR County Share,02036,Precepts & Collection Fund,Precept,LCC BRates precepts,01/09/2022,0170023,"154,328.00",Revenue,Lancashire County Council,18386,,
Chorley Borough Council,http://statistics.data.gov.uk/id/local-authority/30UE,Development Control,1091,CUST - Customer & Digital,Professional Fees,40063,Services,5027,The provision of specialist archaeological advice 2021-24 - Year 2 2022-23,30/09/2022,0170549,"5,978.00",Revenue,Lancashire County Council,17758,,
Chorley Borough Council,http://statistics.data.gov.uk/id/local-authority/30UE,Service Management & Support,1009,CUST - Customer & Digital,Training Course Fees,17010,Indirect Employee Expenses,5002,6 Chorley Council attendees on the `Trailers & Towing`  `CPC Course` 12th May 2022` at 07:45am  15:30pm  ,16/09/2022,0170168,540.00,Revenue,Lancashire County Council Highways,18845,,
Chorley Borough Council,http://statistics.data.gov.uk/id/local-authority/30UE,Service Management & Support,1009,CUST - Customer & Digital,Training Course Fees,17010,Indirect Employee Expenses,5002,Trailer training to commence at Bengal Street Depot PR7 1SA 20th September total of 10 drivers,16/09/2022,0170169,350.00,Revenue,Lancashire County Council Highways,18845,,
Chorley Borough Council,http://statistics.data.gov.uk/id/local-authority/30UE,Unapportionable Central OHeads,1009,GROW - Commercial & Property,General Repairs - Reactive,20004,Repairs Maintenance & Alts,5005,"Whittle Surgery Door repairs as per discussion with NAME REDACTED Replace the lock, a D handle and an engineers",16/09/2022,0170504,650.00,Revenue,Lancashire Double Glazing Group,20188,,
Chorley Borough Council,http://statistics.data.gov.uk/id/local-authority/30UE,Capital,Capital,PLAN - Planning & Development,Architects Fees,03022,Capital Expenditure,Capital,third party contribution,02/09/2022,0170095,966.00,Capital,Lancashire Environmental Fund,75440,,
Chorley Borough Council,http://statistics.data.gov.uk/id/local-authority/30UE,Capital,Capital,GROW - Commercial & Property,Main Contractor,03007,Capital Expenditure,Capital,ADDRESS REDACTED: At the recent gas safety inspection the engineer found that the boiler was is in very poor condition. ,30/09/2022,0170289,"3,536.50",Capital,Lancashire Gas Services Ltd,78192,,
Chorley Borough Council,http://statistics.data.gov.uk/id/local-authority/30UE,Unapportionable Central OHeads,1009,GROW - Commercial & Property,General Repairs - Reactive,20004,Repairs Maintenance & Alts,5005,All seasons Install 1 x Flamco Midi 125 press unit and 1 x 200 litre expansion vessel. ,30/09/2022,0170291,"2,044.40",Revenue,Lancashire Gas Services Ltd,78192,,
Chorley Borough Council,http://statistics.data.gov.uk/id/local-authority/30UE,Unapportionable Central OHeads,1009,GROW - Commercial & Property,General Repairs - Reactive,20004,Repairs Maintenance & Alts,5005,Primrose   - Gas / Air Con / Plumbing  Reactive Repairs,09/09/2022,0170585,389.07,Revenue,Lancashire Gas Services Ltd,78192,,
Chorley Borough Council,http://statistics.data.gov.uk/id/local-authority/30UE,Unapportionable Central OHeads,1009,GROW - Commercial & Property,General Repairs - Reactive,20004,Repairs Maintenance & Alts,5005,Housing   - Gas / Air Con / Plumbing  Reactive Repairs,09/09/2022,0170588,"1,422.22",Revenue,Lancashire Gas Services Ltd,78192,,
Chorley Borough Council,http://statistics.data.gov.uk/id/local-authority/30UE,Capital,Capital,GROW - Commercial & Property,Main Contractor,03007,Capital Expenditure,Capital,All Seasons Leisure Centre At the recent service inspection the engineer found water heater No.2 has failed the heat exchanger,30/09/2022,0171002,"12,376.00",Capital,Lancashire Gas Services Ltd,78192,,
Chorley Borough Council,http://statistics.data.gov.uk/id/local-authority/30UE,Unapportionable Central OHeads,1009,GROW - Commercial & Property,General Repairs - Reactive,20004,Repairs Maintenance & Alts,5005,Primrose   - Gas / Air Con / Plumbing  Reactive Repairs,30/09/2022,0171049,"1,560.88",Revenue,Lancashire Gas Services Ltd,78192,,
Chorley Borough Council,http://statistics.data.gov.uk/id/local-authority/30UE,Unapportionable Central OHeads,1009,GROW - Commercial & Property,General Repairs - Reactive,20004,Repairs Maintenance & Alts,5005,Cotswold   - Gas / Air Con / Plumbing  Reactive Repairs,30/09/2022,0171050,556.78,Revenue,Lancashire Gas Services Ltd,78192,,
Chorley Borough Council,http://statistics.data.gov.uk/id/local-authority/30UE,Business Support,1095,GROW - Commercial & Property,General Repairs - Reactive,20004,Repairs Maintenance & Alts,5005,Strawberry Fields  - Gas / Air Con / Plumbing  Reactive Repairs,30/09/2022,0171051,"1,040.15",Revenue,Lancashire Gas Services Ltd,78192,,
Chorley Borough Council,http://statistics.data.gov.uk/id/local-authority/30UE,Unapportionable Central OHeads,1009,GROW - Commercial & Property,General Repairs - Reactive,20004,Repairs Maintenance & Alts,5005,Town Hall   - Gas / Air Con / Plumbing  Reactive Repairs,30/09/2022,0171052,289.25,Revenue,Lancashire Gas Services Ltd,78192,,
Chorley Borough Council,http://statistics.data.gov.uk/id/local-authority/30UE,Unapportionable Central OHeads,1009,GROW - Commercial & Property,General Repairs - Reactive,20004,Repairs Maintenance & Alts,5005,Union St   - Gas / Air Con / Plumbing  Reactive Repairs,30/09/2022,0171053,800.13,Revenue,Lancashire Gas Services Ltd,78192,,
Chorley Borough Council,http://statistics.data.gov.uk/id/local-authority/30UE,Unapportionable Central OHeads,1009,GROW - Commercial & Property,General Repairs - Reactive,20004,Repairs Maintenance & Alts,5005,Community Centres   - Gas / Air Con / Plumbing  Reactive Repairs,30/09/2022,0171054,456.86,Revenue,Lancashire Gas Services Ltd,78192,,
Chorley Borough Council,http://statistics.data.gov.uk/id/local-authority/30UE,Unapportionable Central OHeads,1009,GROW - Commercial & Property,General Repairs - Reactive,20004,Repairs Maintenance & Alts,5005,Astley hall and Buildings   - Gas / Air Con / Plumbing  Reactive Repairs,30/09/2022,0171055,403.65,Revenue,Lancashire Gas Services Ltd,78192,,
Chorley Borough Council,http://statistics.data.gov.uk/id/local-authority/30UE,Unapportionable Central OHeads,1009,GROW - Commercial & Property,General Repairs - Reactive,20004,Repairs Maintenance & Alts,5005,Market   - Gas / Air Con / Plumbing  Reactive Repairs,30/09/2022,0171056,609.27,Revenue,Lancashire Gas Services Ltd,78192,,
Chorley Borough Council,http://statistics.data.gov.uk/id/local-authority/30UE,Unapportionable Central OHeads,1009,GROW - Commercial & Property,General Repairs - Reactive,20004,Repairs Maintenance & Alts,5005,Housing   - Gas / Air Con / Plumbing  Reactive Repairs,30/09/2022,0171058,743.57,Revenue,Lancashire Gas Services Ltd,78192,,
Chorley Borough Council,http://statistics.data.gov.uk/id/local-authority/30UE,Corporate Management,1008,EARL - Communities,External Contractor,40198,Miscellaneous Expenses,5034,support for resident with removal of items (hoarding),23/09/2022,0170938,290.00,Revenue,Lancashire House Clearance & Rubbish Removals,85549,,
Chorley Borough Council,http://statistics.data.gov.uk/id/local-authority/30UE,Unapportionable Central OHeads,1009,GOVN - Policy & Governance,Pensions Increase Act Payments,18005,Indirect Employee Expenses,5002,CAY may 22,01/09/2022,0169108,"17,400.26",Revenue,Lancashire Pensions Services DD ONLY,16696,,
Chorley Borough Council,http://statistics.data.gov.uk/id/local-authority/30UE,Other Short Term Creditors,,GOVN - Policy & Governance,General Balances,00100,Balance Sheet,Balance,contributions june22,01/09/2022,0169418,"46,005.92",Revenue,Lancashire Pensions Services DD ONLY,16696,,
Chorley Borough Council,http://statistics.data.gov.uk/id/local-authority/30UE,Precepts and Collection Fund,Precepts,GOVN - Policy & Governance,LCFA Precept,02011,Precepts & Collection Fund,Precept,LCFA CTac precepts,01/09/2022,0169107,"297,967.00",Revenue,Lancs Combined Fire Authority,17768,,
Chorley Borough Council,http://statistics.data.gov.uk/id/local-authority/30UE,Collection Fund Revenue Accoun,,GOVN - Policy & Governance,NNDR Fire Share,02037,Precepts & Collection Fund,Precept,LCFA BRates,01/09/2022,0169107,"17,147.00",Revenue,Lancs Combined Fire Authority,17768,,
Chorley Borough Council,http://statistics.data.gov.uk/id/local-authority/30UE,Precepts and Collection Fund,Precepts,GOVN - Policy & Governance,LCFA Precept,02011,Precepts & Collection Fund,Precept,LCFA Council Tax Precept,01/09/2022,0170077,"297,967.00",Revenue,Lancs Combined Fire Authority,17768,,
Chorley Borough Council,http://statistics.data.gov.uk/id/local-authority/30UE,Collection Fund Revenue Accoun,,GOVN - Policy & Governance,NNDR Fire Share,02037,Precepts & Collection Fund,Precept,LCFA Business Rates Precept,01/09/2022,0170077,"17,147.00",Revenue,Lancs Combined Fire Authority,17768,,
Chorley Borough Council,http://statistics.data.gov.uk/id/local-authority/30UE,Capital,Capital,GROW - Commercial & Property,Main Contractor,03007,Capital Expenditure,Capital,"Supply & erection of height restriction barriers, lifting barrier, permanent bollards and minor paving works at various car parks",16/09/2022,0170793,"26,164.29",Capital,Landscape Engineering Ltd,54727,,
Chorley Borough Council,http://statistics.data.gov.uk/id/local-authority/30UE,Central Support Services,1009,GROW - Commercial & Property,Professional Fees,40063,Services,5027,Cowling Farm - RICS Valuation Report (based on proposal as detailed within NAME REDACTED email dated 08.06.22),09/09/2022,0168818,"2,000.00",Revenue,Lea Hough & Co LLP,76318,,
Chorley Borough Council,http://statistics.data.gov.uk/id/local-authority/30UE,Unapportionable Central OHeads,1009,CUST - Customer & Digital,Professional Fees,14011,Direct Employee Expenses,5001,Empty Homes Review 2022,23/09/2022,0170469,"7,645.64",Revenue,Liberata (Capacity Grid),67989,,
Chorley Borough Council,http://statistics.data.gov.uk/id/local-authority/30UE,Unapportionable Central OHeads,1009,CUST - Customer & Digital,Professional Fees,14011,Direct Employee Expenses,5001,Empty Homes Review 2022,23/09/2022,0170911,"4,412.62",Revenue,Liberata (Capacity Grid),67989,,
Chorley Borough Council,http://statistics.data.gov.uk/id/local-authority/30UE,Unapportionable Central OHeads,1009,CUST - Customer & Digital,Professional Fees,14011,Direct Employee Expenses,5001,Empty Homes Review 2022,23/09/2022,0170917,"4,347.08",Revenue,Liberata (Capacity Grid),67989,,
Chorley Borough Council,http://statistics.data.gov.uk/id/local-authority/30UE,Capital,Capital,GROW - Commercial & Property,Main Contractor,03007,Capital Expenditure,Capital,Project Management for Astley Restoration Project,09/09/2022,0169825,"1,250.00",Capital,Linchpin Ltd,80779,,
Chorley Borough Council,http://statistics.data.gov.uk/id/local-authority/30UE,Corporate Management,1008,GOVN - Policy & Governance,Treasury Management Service,40065,Services,5027,Treasury Management Services for the period 01/04/2022 - 30/09/2022,16/09/2022,0170720,"7,975.00",Revenue,Link Treasury Services Limited,16428,,
Chorley Borough Council,http://statistics.data.gov.uk/id/local-authority/30UE,Unapportionable Central OHeads,1009,GOVN - Policy & Governance,HR Approved Occ Health Fees,15201,Indirect Employee Expenses,5002,Counselling sessions for Staff - July 2022,30/09/2022,0170170,450.00,Revenue,Livewell Counselling Service,63084,,
Chorley Borough Council,http://statistics.data.gov.uk/id/local-authority/30UE,Unapportionable Central OHeads,1009,GOVN - Policy & Governance,HR Approved Occ Health Fees,15201,Indirect Employee Expenses,5002,Counselling sessions for staff - August 2022,30/09/2022,0170924,540.00,Revenue,Livewell Counselling Service,63084,,
Chorley Borough Council,http://statistics.data.gov.uk/id/local-authority/30UE,Central Support Services,1009,GOVN - Policy & Governance,Publicity - Advertising,40157,Miscellaneous Expenses,5034,Full page advert in Northern Life Magazine (Sept/Oct edition) to promote Astley Hall.,09/09/2022,0170171,550.00,Revenue,Loop Publishing Ltd,18770,,
Chorley Borough Council,http://statistics.data.gov.uk/id/local-authority/30UE,Business Support,1095,GROW - Commercial & Property,Exhibitions & Special Events,40158,Miscellaneous Expenses,5034,Fun Thursday summer activities at Market Walk Shopping Centre Chorley on the following dates,23/09/2022,0170944,"2,200.00",Revenue,Louby Lou Ltd,76335,,
Chorley Borough Council,http://statistics.data.gov.uk/id/local-authority/30UE,Central Support Services,1009,EARL - Communities,Core Funding Grants,40133,Grants and Subscriptions,5031,Small community grant,23/09/2022,0170969,250.00,Revenue,Marathon Kids Chorley (Kids Run Free),85118,,
Chorley Borough Council,http://statistics.data.gov.uk/id/local-authority/30UE,Central Support Services,1009,GOVN - Policy & Governance,Legal Fees,40171,Miscellaneous Expenses,5034,"Case type: Planning TVS Logistics House Buckshaw Avenue, Chorley",02/09/2022,0170463,"1,500.00",Revenue,Mark Howells,85514,,
Chorley Borough Council,http://statistics.data.gov.uk/id/local-authority/30UE,Tourism,1039,GOVN - Policy & Governance,Publicity - Advertising,40157,Miscellaneous Expenses,5034,Chorley Flower Show advertisement in Visit Lancashire events guide,09/09/2022,0170666,650.00,Revenue,Marketing Lancashire,65208,,
Chorley Borough Council,http://statistics.data.gov.uk/id/local-authority/30UE,Culture & Heritage,1036,GOVN - Policy & Governance,Furniture - Purchase,40012,"Equipment, Furniture & Materia",5023,"Wedding flower arrangements for Astley Hall, as arranged.2 x Large front facing arrangements in wild and creams, ",09/09/2022,0170505,650.00,Revenue,Marshalls Florist,20614,,
Chorley Borough Council,http://statistics.data.gov.uk/id/local-authority/30UE,Homelessness,1075,EARL - Communities,Internal Decorating,20008,Repairs Maintenance & Alts,5005,"Carpet flooring with underlay and vinyl for 3 bedrooms, 1 living room, 1 dining room (vinyl), landing & stairs,",16/09/2022,0170589,"1,190.00",Revenue,Master Carpets Ltd,84717,,
Chorley Borough Council,http://statistics.data.gov.uk/id/local-authority/30UE,Building Control,1090,PLAN - Planning & Development,Agency Staff,13000,Direct Employee Expenses,5001,Agency fees for NAME REDACTED Building Control Officer for the period 07.07.2022 - 29.07.2022,09/09/2022,0170354,"2,172.50",Revenue,Matchtech,77343,,
Chorley Borough Council,http://statistics.data.gov.uk/id/local-authority/30UE,Building Control,1090,PLAN - Planning & Development,Agency Staff,13000,Direct Employee Expenses,5001,Agency fees for NAME REDACTED Building Control Officer for the period 07.07.2022 - 29.07.2022,09/09/2022,0170355,"2,062.50",Revenue,Matchtech,77343,,
Chorley Borough Council,http://statistics.data.gov.uk/id/local-authority/30UE,Building Control,1090,PLAN - Planning & Development,Agency Staff,13000,Direct Employee Expenses,5001,Agency fees for NAME REDACTED Building Control Officer for the period 07.07.2022 - 29.07.2022,09/09/2022,0170357,825.00,Revenue,Matchtech,77343,,
Chorley Borough Council,http://statistics.data.gov.uk/id/local-authority/30UE,Corporate Management,1008,GOVN - Policy & Governance,Agency Staff,13000,Direct Employee Expenses,5001,NAME REDACTED,30/09/2022,0170361,599.44,Revenue,Matrix SCM Ltd,22128,,
Chorley Borough Council,http://statistics.data.gov.uk/id/local-authority/30UE,Corporate Management,1008,GOVN - Policy & Governance,Agency Staff,13000,Direct Employee Expenses,5001,Services procurement,30/09/2022,0170400,"1,184.16",Revenue,Matrix SCM Ltd,22128,,
Chorley Borough Council,http://statistics.data.gov.uk/id/local-authority/30UE,Corporate Management,1008,GOVN - Policy & Governance,Agency Staff,13000,Direct Employee Expenses,5001,NAME REDACTED,30/09/2022,0170558,360.40,Revenue,Matrix SCM Ltd,22128,,
Chorley Borough Council,http://statistics.data.gov.uk/id/local-authority/30UE,Corporate Management,1008,GOVN - Policy & Governance,Agency Staff,13000,Direct Employee Expenses,5001,NAME REDACTED,30/09/2022,0170740,470.72,Revenue,Matrix SCM Ltd,22128,,
Chorley Borough Council,http://statistics.data.gov.uk/id/local-authority/30UE,Corporate Management,1008,GOVN - Policy & Governance,Agency Staff,13000,Direct Employee Expenses,5001,NAME REDACTED,30/09/2022,0171059,606.80,Revenue,Matrix SCM Ltd,22128,,
Chorley Borough Council,http://statistics.data.gov.uk/id/local-authority/30UE,Corporate Management,1008,GOVN - Policy & Governance,Agency Staff,13000,Direct Employee Expenses,5001,services procurement,30/09/2022,0171216,599.44,Revenue,Matrix SCM Ltd,22128,,
Chorley Borough Council,http://statistics.data.gov.uk/id/local-authority/30UE,Elections,1012,GOVN - Policy & Governance,Rent/Hire Of Premises,20017,Premises Rents,5007,hire of room for polling station 5 May 2022,09/09/2022,0170552,400.00,Revenue,Mawdesley Village Hall,18423,,
Chorley Borough Council,http://statistics.data.gov.uk/id/local-authority/30UE,Service Management & Support,1009,CUST - Customer & Digital,Supplies-Grounds Maintenance,40025,"Equipment, Furniture & Materia",5023,Supply 40 ton of grade 2 top soil,16/09/2022,0170437,570.00,Revenue,Mc & Ma Stewart (Haulage Ltd),16627,,
Chorley Borough Council,http://statistics.data.gov.uk/id/local-authority/30UE,Business Support,1095,GROW - Commercial & Property,Professional Fees,40063,Services,5027,Accounting Fee DOP service charge. Period 2021/22 1150,16/09/2022,0170803,"1,150.00",Revenue,Menzies LLP,76095,,
Chorley Borough Council,http://statistics.data.gov.uk/id/local-authority/30UE,Business Support,1095,GROW - Commercial & Property,Professional Fees,40063,Services,5027,Review of the service charge accounts for Market Walk and Market Walk Extension for 2021/22,16/09/2022,0170804,"1,150.00",Revenue,Menzies LLP,76095,,
Chorley Borough Council,http://statistics.data.gov.uk/id/local-authority/30UE,Unapportionable Central OHeads,1009,GOVN - Policy & Governance,IT Software - Annual Licences,40101,Communication and Computing,5028,Chorley Council and South Ribble Borough Council MHR and HFX integrations as discussed on call date 25 April 2022.,30/09/2022,0170723,"2,160.00",Revenue,MHR International UK Ltd,84982,,
Chorley Borough Council,http://statistics.data.gov.uk/id/local-authority/30UE,Democratic Represent and  Mgnt,1007,PLAN - Planning & Development,External Contractor,40198,Miscellaneous Expenses,5034,"Works to Manor Road Allotment -  fitting of IBC tanks on raised blocks, guttering and modifying sheds to best collect water ",30/09/2022,0171167,"2,020.00",Revenue,Michael Roe,78294,,
Chorley Borough Council,http://statistics.data.gov.uk/id/local-authority/30UE,General Government Grants,,GOVN - Policy & Governance,Revenue Support Grant,69000,Income not in NCOS,,revenue support grant,01/09/2022,0169424,-42.00,Revenue,Ministry of Housing Communities & Local Government,16280,,
Chorley Borough Council,http://statistics.data.gov.uk/id/local-authority/30UE,Collection Fund Revenue Accoun,,GOVN - Policy & Governance,NNDR Central Share,02034,Precepts & Collection Fund,Precept,central share BR,01/09/2022,0169424,"1,035,695.00",Revenue,Ministry of Housing Communities & Local Government,16280,,
Chorley Borough Council,http://statistics.data.gov.uk/id/local-authority/30UE,Collection Fund Revenue Accoun,,GOVN - Policy & Governance,NNDR Central Share,02034,Precepts & Collection Fund,Precept,deficit collection fund,01/09/2022,0169424,"-264,054.00",Revenue,Ministry of Housing Communities & Local Government,16280,,
Chorley Borough Council,http://statistics.data.gov.uk/id/local-authority/30UE,Central Support Services,1009,GOVN - Policy & Governance,Legal Fees,40171,Miscellaneous Expenses,5034,"Professional fees of NAME REDACTED, ADDRESS REDACTED 03/08/2022 Reviewing Application and Advising",23/09/2022,0170661,450.00,Revenue,Miss Rebecca Cattermole,78532,,
Chorley Borough Council,http://statistics.data.gov.uk/id/local-authority/30UE,Capital,Capital,GROW - Commercial & Property,Purchase Of Vehicles & Plant,03013,Capital Expenditure,Capital,Agreed termination settlement,23/09/2022,0171063,"18,500.00",Capital,Mr Zaishan Jahangir,85667,,
Chorley Borough Council,http://statistics.data.gov.uk/id/local-authority/30UE,Central Support Services,1009,EARL - Communities,Core Funding Grants,40133,Grants and Subscriptions,5031,Small community grants,23/09/2022,0170965,500.00,Revenue,MS Society - Chorley and District Branch,59034,,
Chorley Borough Council,http://statistics.data.gov.uk/id/local-authority/30UE,Central Support Services,1009,GROW - Commercial & Property,Legal Fees,40171,Miscellaneous Expenses,5034,"Professional solicitors fees for the Strawberry Meadows Business Park precedent leases, heads of terms etc.",02/09/2022,0170286,"1,000.00",Revenue,Napthens Solicitors,20427,,
Chorley Borough Council,http://statistics.data.gov.uk/id/local-authority/30UE,Tourism,1039,GOVN - Policy & Governance,Misc Expenses,40200,Miscellaneous Expenses,5034,CFS prize money,02/09/2022,0170380,250.00,Revenue,National Begonia Society,76965,,
Chorley Borough Council,http://statistics.data.gov.uk/id/local-authority/30UE,Tourism,1039,GOVN - Policy & Governance,Misc Expenses,40200,Miscellaneous Expenses,5034,CFS Prize money,02/09/2022,0170392,300.00,Revenue,National Vegetable Society Lancashire District Ass,76959,,
Chorley Borough Council,http://statistics.data.gov.uk/id/local-authority/30UE,Business Support,1095,GROW - Commercial & Property,Security Service,40062,Services,5027,To provide evening Site Security Services at Market Walk Shopping Centre from 5pm until midnight 7 days a week.,02/09/2022,0170295,661.50,Revenue,New Concept Security NW Ltd T/A New Concept Goup,80488,,
Chorley Borough Council,http://statistics.data.gov.uk/id/local-authority/30UE,Business Support,1095,GROW - Commercial & Property,Security Service,40062,Services,5027,To provide evening Site Security Services at Market Walk Shopping Centre from 5pm until midnight 7 days a week.,02/09/2022,0170462,661.50,Revenue,New Concept Security NW Ltd T/A New Concept Goup,80488,,
Chorley Borough Council,http://statistics.data.gov.uk/id/local-authority/30UE,Business Support,1095,GROW - Commercial & Property,Security Service,40062,Services,5027,To provide evening Site Security Services at Market Walk Shopping Centre from 5pm until midnight 7 days a week.,23/09/2022,0170662,661.50,Revenue,New Concept Security NW Ltd T/A New Concept Goup,80488,,
Chorley Borough Council,http://statistics.data.gov.uk/id/local-authority/30UE,Business Support,1095,GROW - Commercial & Property,Security Service,40062,Services,5027,To provide evening Site Security Services at Market Walk Shopping Centre from 5pm until midnight 7 days a week.,30/09/2022,0171093,499.50,Revenue,New Concept Security NW Ltd T/A New Concept Goup,80488,,
Chorley Borough Council,http://statistics.data.gov.uk/id/local-authority/30UE,Business Support,1095,GROW - Commercial & Property,Security Service,40062,Services,5027,To provide evening Site Security Services at Market Walk Shopping Centre from 5pm until midnight 7 days a week.,30/09/2022,0171112,371.26,Revenue,New Concept Security NW Ltd T/A New Concept Goup,80488,,
Chorley Borough Council,http://statistics.data.gov.uk/id/local-authority/30UE,Business Support,1095,GROW - Commercial & Property,Security Service,40062,Services,5027,To provide evening Site Security Services at Market Walk Shopping Centre from 5pm until midnight 7 days a week.,30/09/2022,0172705,607.50,Revenue,New Concept Security NW Ltd T/A New Concept Goup,80488,,
Chorley Borough Council,http://statistics.data.gov.uk/id/local-authority/30UE,Regulatory Services,1048,PLAN - Planning & Development,"Hackney Badges, Plates Etc.",40023,"Equipment, Furniture & Materia",5023,Private Hire door signs to include tamper evident hologram and cover  ,16/09/2022,0170812,358.90,Revenue,NewAuto Ltd t/a MOGO UK,17187,,
Chorley Borough Council,http://statistics.data.gov.uk/id/local-authority/30UE,Service Management & Support,1009,CUST - Customer & Digital,Supplies-Grounds Maintenance,40025,"Equipment, Furniture & Materia",5023,Nomix Conqueror 5litre pack   ,09/09/2022,0170073,"3,074.00",Revenue,Nomix Enviro Ltd,82223,,
Chorley Borough Council,http://statistics.data.gov.uk/id/local-authority/30UE,Central Support Services,1009,GOVN - Policy & Governance,Publicity - Advertising,40157,Miscellaneous Expenses,5034,As Per Invoice No: CC001 Re: Film production/Event Coverage at Chorley Flower Show on Sunday 31 July 2022,02/09/2022,0170303,650.00,Revenue,North Film Studios Limited,85582,,
Chorley Borough Council,http://statistics.data.gov.uk/id/local-authority/30UE,Central Support Services,1009,GOVN - Policy & Governance,Publicity - Advertising,40157,Miscellaneous Expenses,5034,With Re: to invoice no: CC002 Film Production Event Coverage - Peter Rabbit Theatrical Event,02/09/2022,0170419,650.00,Revenue,North Film Studios Limited,85582,,
Chorley Borough Council,http://statistics.data.gov.uk/id/local-authority/30UE,Central Support Services,1009,GOVN - Policy & Governance,Publicity - Advertising,40157,Miscellaneous Expenses,5034,Re: Invoice No. CC003 Film Production Event Coverage (Last Night of the Proms),16/09/2022,0170702,650.00,Revenue,North Film Studios Limited,85582,,
Chorley Borough Council,http://statistics.data.gov.uk/id/local-authority/30UE,Central Support Services,1009,CUST - Customer & Digital,Consultants` Fees,40077,Services,5027,chorley - market walk shopping centre,09/09/2022,0170476,"1,610.00",Revenue,North VS Limited,78379,,
Chorley Borough Council,http://statistics.data.gov.uk/id/local-authority/30UE,Tourism,1039,GOVN - Policy & Governance,Misc Expenses,40200,Miscellaneous Expenses,5034,CFS Prize money,02/09/2022,0170378,250.00,Revenue,North West Cottage Garden Society,77590,,
Chorley Borough Council,http://statistics.data.gov.uk/id/local-authority/30UE,Business Support,1095,GROW - Commercial & Property,Refreshments,40036,Catering,5024,Clipper Fairtrade Everyday One Cup 1100 Tea bags- x5,30/09/2022,0171119,129.95,Revenue,North West Tea FM Solutions,78255,,
Chorley Borough Council,http://statistics.data.gov.uk/id/local-authority/30UE,Business Support,1095,GROW - Commercial & Property,Refreshments,40036,Catering,5024,Clipper Fairtrade Medium Roast Organic Arabica Coffee 500g - SINGLE x 5,30/09/2022,0171119,88.75,Revenue,North West Tea FM Solutions,78255,,
Chorley Borough Council,http://statistics.data.gov.uk/id/local-authority/30UE,Business Support,1095,GROW - Commercial & Property,Refreshments,40036,Catering,5024,Tate & Lyle Granulated Sugar 1kg - PACK (15) x2,30/09/2022,0171119,25.80,Revenue,North West Tea FM Solutions,78255,,
Chorley Borough Council,http://statistics.data.gov.uk/id/local-authority/30UE,Business Support,1095,GROW - Commercial & Property,Contract Catering,40038,Catering,5024,Tate & Lyle Fairtrade White Sugar Sticks 1000`s- x2,30/09/2022,0171119,10.98,Revenue,North West Tea FM Solutions,78255,,
Chorley Borough Council,http://statistics.data.gov.uk/id/local-authority/30UE,Business Support,1095,GROW - Commercial & Property,Contract Catering,40038,Catering,5024,Clipper Fairtrade Instant Hot Chocolate Sticks 100x28g x 2,30/09/2022,0171119,47.98,Revenue,North West Tea FM Solutions,78255,,
Chorley Borough Council,http://statistics.data.gov.uk/id/local-authority/30UE,Business Support,1095,GROW - Commercial & Property,Contract Catering,40038,Catering,5024,Lakeland Semi Skimmed (Green) Milk Jiggers 120`s x10,30/09/2022,0171119,41.90,Revenue,North West Tea FM Solutions,78255,,
Chorley Borough Council,http://statistics.data.gov.uk/id/local-authority/30UE,Central Support Services,1009,CUST - Customer & Digital,Hire Of Vehicles and Plant,30028,Contrct Hire & Operating Lease,5018,Vehicle hire 3.5ton Luton Van with tail-lift,16/09/2022,0170596,683.20,Revenue,Northgate Vehicle Hire (NW) Ltd,17360,,
Chorley Borough Council,http://statistics.data.gov.uk/id/local-authority/30UE,Central Support Services,1009,CUST - Customer & Digital,Hire Of Vehicles and Plant,30028,Contrct Hire & Operating Lease,5018,Vehicle hire 3.5ton Luton Van with tail-lift,16/09/2022,0170617,683.20,Revenue,Northgate Vehicle Hire (NW) Ltd,17360,,
Chorley Borough Council,http://statistics.data.gov.uk/id/local-authority/30UE,Recreation & Sport,1037,GROW - Commercial & Property,Electricity,20013,Energy Costs,5006,1/7 to 31/7/22,23/09/2022,0170258,803.96,Revenue,Npower Commercial Gas,16814,,
Chorley Borough Council,http://statistics.data.gov.uk/id/local-authority/30UE,Recreation & Sport,1037,GROW - Commercial & Property,Electricity,20013,Energy Costs,5006,1/6 to 30/6/22,23/09/2022,0170341,389.02,Revenue,Npower Commercial Gas,16814,,
Chorley Borough Council,http://statistics.data.gov.uk/id/local-authority/30UE,Business Support,1095,GROW - Commercial & Property,Electricity,20013,Energy Costs,5006,Market walk extension,02/09/2022,0170444,483.58,Revenue,Npower Commercial Gas,16814,,
Chorley Borough Council,http://statistics.data.gov.uk/id/local-authority/30UE,Business Support,1095,GROW - Commercial & Property,Electricity,20013,Energy Costs,5006,Market walk extension,02/09/2022,0170445,480.72,Revenue,Npower Commercial Gas,16814,,
Chorley Borough Council,http://statistics.data.gov.uk/id/local-authority/30UE,Business Support,1095,GROW - Commercial & Property,Electricity,20013,Energy Costs,5006,Market Walk Extension,02/09/2022,0170446,527.09,Revenue,Npower Commercial Gas,16814,,
Chorley Borough Council,http://statistics.data.gov.uk/id/local-authority/30UE,Business Support,1095,GROW - Commercial & Property,Electricity,20013,Energy Costs,5006,Market Walk extension,02/09/2022,0170447,600.27,Revenue,Npower Commercial Gas,16814,,
Chorley Borough Council,http://statistics.data.gov.uk/id/local-authority/30UE,Business Support,1095,GROW - Commercial & Property,Electricity,20013,Energy Costs,5006,Market Walk Extension,02/09/2022,0170448,530.29,Revenue,Npower Commercial Gas,16814,,
Chorley Borough Council,http://statistics.data.gov.uk/id/local-authority/30UE,Recreation & Sport,1037,GROW - Commercial & Property,Electricity,20013,Energy Costs,5006,1/8 to 31/8/22,23/09/2022,0170867,293.77,Revenue,Npower Commercial Gas,16814,,
Chorley Borough Council,http://statistics.data.gov.uk/id/local-authority/30UE,Recreation & Sport,1037,GROW - Commercial & Property,Electricity,20013,Energy Costs,5006,,23/09/2022,0170867,1.02,Revenue,Npower Commercial Gas,16814,,
Chorley Borough Council,http://statistics.data.gov.uk/id/local-authority/30UE,Democratic Represent and  Mgnt,1007,GROW - Commercial & Property,Electricity,20013,Energy Costs,5006,1/8 to 31/8/22,23/09/2022,0170879,"2,363.38",Revenue,Npower Commercial Gas,16814,,
Chorley Borough Council,http://statistics.data.gov.uk/id/local-authority/30UE,Unapportionable Central OHeads,1009,GROW - Commercial & Property,Electricity,20013,Energy Costs,5006,1/8 to 31/8/22,23/09/2022,0170880,"1,663.96",Revenue,Npower Commercial Gas,16814,,
Chorley Borough Council,http://statistics.data.gov.uk/id/local-authority/30UE,Parking Services,1066,GROW - Commercial & Property,Electricity,20013,Energy Costs,5006,Oak House car park,23/09/2022,0171001,"2,033.68",Revenue,Npower Commercial Gas,16814,,
Chorley Borough Council,http://statistics.data.gov.uk/id/local-authority/30UE,Business Support,1095,GROW - Commercial & Property,Electricity,20013,Energy Costs,5006,Strawberry fields digital hub,23/09/2022,0171004,"8,463.48",Revenue,Npower Commercial Gas,16814,,
Chorley Borough Council,http://statistics.data.gov.uk/id/local-authority/30UE,Central Support Services,1009,GROW - Commercial & Property,Electricity,20013,Energy Costs,5006,"Union street, civic office",23/09/2022,0171005,"7,097.31",Revenue,Npower Commercial Gas,16814,,
Chorley Borough Council,http://statistics.data.gov.uk/id/local-authority/30UE,Recreation & Sport,1037,GROW - Commercial & Property,Electricity,20013,Energy Costs,5006,Brinscall baths,23/09/2022,0171007,"2,627.98",Revenue,Npower Commercial Gas,16814,,
Chorley Borough Council,http://statistics.data.gov.uk/id/local-authority/30UE,Democratic Represent and  Mgnt,1007,GROW - Commercial & Property,Electricity,20013,Energy Costs,5006,All seasons,23/09/2022,0171008,"14,266.99",Revenue,Npower Commercial Gas,16814,,
Chorley Borough Council,http://statistics.data.gov.uk/id/local-authority/30UE,Recreation & Sport,1037,GROW - Commercial & Property,Electricity,20013,Energy Costs,5006,Clayton green sports centre,23/09/2022,0171009,"2,286.13",Revenue,Npower Commercial Gas,16814,,
Chorley Borough Council,http://statistics.data.gov.uk/id/local-authority/30UE,Unapportionable Central OHeads,1009,GROW - Commercial & Property,Electricity,20013,Energy Costs,5006,Town Hall,23/09/2022,0171011,"4,522.23",Revenue,Npower Commercial Gas,16814,,
Chorley Borough Council,http://statistics.data.gov.uk/id/local-authority/30UE,Parking Services,1066,GROW - Commercial & Property,Electricity,20013,Energy Costs,5006,Friday street,23/09/2022,0171017,546.14,Revenue,Npower Commercial Gas,16814,,
Chorley Borough Council,http://statistics.data.gov.uk/id/local-authority/30UE,Parking Services,1066,GROW - Commercial & Property,Electricity,20013,Energy Costs,5006,Car park union street,23/09/2022,0171018,"2,210.88",Revenue,Npower Commercial Gas,16814,,
Chorley Borough Council,http://statistics.data.gov.uk/id/local-authority/30UE,Homelessness,1075,GROW - Commercial & Property,Electricity,20013,Energy Costs,5006,Cotswold house two Storey wing,23/09/2022,0171021,534.72,Revenue,Npower Commercial Gas,16814,,
Chorley Borough Council,http://statistics.data.gov.uk/id/local-authority/30UE,Business Support,1095,GROW - Commercial & Property,Electricity,20013,Energy Costs,5006,Landlords communal area market walk,23/09/2022,0171023,"1,146.64",Revenue,Npower Commercial Gas,16814,,
Chorley Borough Council,http://statistics.data.gov.uk/id/local-authority/30UE,Democratic Represent and  Mgnt,1007,GROW - Commercial & Property,Electricity,20013,Energy Costs,5006,Astley park Changing rooms,23/09/2022,0171027,502.45,Revenue,Npower Commercial Gas,16814,,
Chorley Borough Council,http://statistics.data.gov.uk/id/local-authority/30UE,Homelessness,1075,GROW - Commercial & Property,Electricity,20013,Energy Costs,5006,1/8 to 31/8/22,23/09/2022,0171061,253.64,Revenue,Npower Commercial Gas,16814,,
Chorley Borough Council,http://statistics.data.gov.uk/id/local-authority/30UE,Democratic Represent and  Mgnt,1007,GROW - Commercial & Property,Electricity,20013,Energy Costs,5006,,23/09/2022,0171075,557.75,Revenue,Npower Commercial Gas,16814,,
Chorley Borough Council,http://statistics.data.gov.uk/id/local-authority/30UE,Recreation & Sport,1037,GROW - Commercial & Property,Electricity,20013,Energy Costs,5006,1/8 to 31/8/22,23/09/2022,0171077,806.81,Revenue,Npower Commercial Gas,16814,,
Chorley Borough Council,http://statistics.data.gov.uk/id/local-authority/30UE,Homelessness,1075,GROW - Commercial & Property,Electricity,20013,Energy Costs,5006,1/8 to 31/8/22,23/09/2022,0171087,884.02,Revenue,Npower Commercial Gas,16814,,
Chorley Borough Council,http://statistics.data.gov.uk/id/local-authority/30UE,Parking Services,1066,GROW - Commercial & Property,External Contractors,50008,Private Contractors,5042,Provision of Off Street Car Park Cash Collection & Enforcement � final year of contract 01.11.21 to 31.10.22,16/09/2022,0170674,"5,373.08",Revenue,NSL Limited,67253,,
Chorley Borough Council,http://statistics.data.gov.uk/id/local-authority/30UE,Open Spaces,1038,CUST - Customer & Digital,Supplies-Grounds Maintenance,40025,"Equipment, Furniture & Materia",5023,"Sand and paint bike railings, wooden posts and memorial benches in the Walled Garden, Astley Park",16/09/2022,0170306,350.00,Revenue,Nuchoice Limited,75454,,
Chorley Borough Council,http://statistics.data.gov.uk/id/local-authority/30UE,Parking Services,1066,GROW - Commercial & Property,Printing,40043,"Printing, Stationery & General",5026,Please supply 200k ~Stelio Adhesive Check Out Chorley tickets ,23/09/2022,0170747,"1,740.66",Revenue,Paperwork (UK) Limited,18296,,
Chorley Borough Council,http://statistics.data.gov.uk/id/local-authority/30UE,Planning Policy,1092,PLAN - Planning & Development,Operational Employees Salaries,10000,Direct Employee Expenses,5001,Supply of agency staff to work on the Central Lancashire Local Plan,23/09/2022,0170957,"4,715.00",Revenue,Park Avenue Recruitment Ltd,82305,,
Chorley Borough Council,http://statistics.data.gov.uk/id/local-authority/30UE,Business Support,1095,GROW - Commercial & Property,Cleaning Materials,40019,"Equipment, Furniture & Materia",5023,match off against credit,16/09/2022,0168773,470.00,Revenue,Pattersons Holdings (Bristol),77537,,
Chorley Borough Council,http://statistics.data.gov.uk/id/local-authority/30UE,Business Support,1095,GROW - Commercial & Property,Cleaning Materials,40019,"Equipment, Furniture & Materia",5023,6 x Mini Smart one AA301 ,09/09/2022,0170343,210.72,Revenue,Pattersons Holdings (Bristol),77537,,
Chorley Borough Council,http://statistics.data.gov.uk/id/local-authority/30UE,Business Support,1095,GROW - Commercial & Property,Cleaning Materials,40019,"Equipment, Furniture & Materia",5023,8 X Hand towels Ae208 (AE214 NEW CODE) ,09/09/2022,0170343,142.40,Revenue,Pattersons Holdings (Bristol),77537,,
Chorley Borough Council,http://statistics.data.gov.uk/id/local-authority/30UE,Business Support,1095,GROW - Commercial & Property,Cleaning Materials,40019,"Equipment, Furniture & Materia",5023,2 x Blue roll AF113 - ,09/09/2022,0170343,15.54,Revenue,Pattersons Holdings (Bristol),77537,,
Chorley Borough Council,http://statistics.data.gov.uk/id/local-authority/30UE,Business Support,1095,GROW - Commercial & Property,Cleaning Materials,40019,"Equipment, Furniture & Materia",5023,6 X Washing up liquid BB028-1 ,09/09/2022,0170343,6.18,Revenue,Pattersons Holdings (Bristol),77537,,
Chorley Borough Council,http://statistics.data.gov.uk/id/local-authority/30UE,Business Support,1095,GROW - Commercial & Property,Cleaning Materials,40019,"Equipment, Furniture & Materia",5023,4 x Dishwasher cleaner px00012,09/09/2022,0170343,6.86,Revenue,Pattersons Holdings (Bristol),77537,,
Chorley Borough Council,http://statistics.data.gov.uk/id/local-authority/30UE,Business Support,1095,GROW - Commercial & Property,Cleaning Materials,40019,"Equipment, Furniture & Materia",5023,2x Bleach BC015-5 ,09/09/2022,0170343,4.66,Revenue,Pattersons Holdings (Bristol),77537,,
Chorley Borough Council,http://statistics.data.gov.uk/id/local-authority/30UE,Business Support,1095,GROW - Commercial & Property,Cleaning Materials,40019,"Equipment, Furniture & Materia",5023,2 X Katrin wash BK081-50 (PACK12) ,09/09/2022,0170343,81.00,Revenue,Pattersons Holdings (Bristol),77537,,
Chorley Borough Council,http://statistics.data.gov.uk/id/local-authority/30UE,Business Support,1095,GROW - Commercial & Property,Cleaning Materials,40019,"Equipment, Furniture & Materia",5023,2 X Blue cloth CG106-b ,09/09/2022,0170343,7.80,Revenue,Pattersons Holdings (Bristol),77537,,
Chorley Borough Council,http://statistics.data.gov.uk/id/local-authority/30UE,Business Support,1095,GROW - Commercial & Property,Cleaning Materials,40019,"Equipment, Furniture & Materia",5023,1X Yellow cloth CG106-Y ,09/09/2022,0170343,3.90,Revenue,Pattersons Holdings (Bristol),77537,,
Chorley Borough Council,http://statistics.data.gov.uk/id/local-authority/30UE,Business Support,1095,GROW - Commercial & Property,Cleaning Materials,40019,"Equipment, Furniture & Materia",5023,1X Refuse sack CM160-C ,09/09/2022,0170343,9.90,Revenue,Pattersons Holdings (Bristol),77537,,
Chorley Borough Council,http://statistics.data.gov.uk/id/local-authority/30UE,Business Support,1095,GROW - Commercial & Property,Cleaning Materials,40019,"Equipment, Furniture & Materia",5023,1X Black Refuse CM180 ,09/09/2022,0170343,12.57,Revenue,Pattersons Holdings (Bristol),77537,,
Chorley Borough Council,http://statistics.data.gov.uk/id/local-authority/30UE,Business Support,1095,GROW - Commercial & Property,Cleaning Materials,40019,"Equipment, Furniture & Materia",5023,2 large gloves DG150-l ,09/09/2022,0170343,18.50,Revenue,Pattersons Holdings (Bristol),77537,,
Chorley Borough Council,http://statistics.data.gov.uk/id/local-authority/30UE,Business Support,1095,GROW - Commercial & Property,Cleaning Materials,40019,"Equipment, Furniture & Materia",5023,2 X sponge HL085 ,09/09/2022,0170343,3.14,Revenue,Pattersons Holdings (Bristol),77537,,
Chorley Borough Council,http://statistics.data.gov.uk/id/local-authority/30UE,Business Support,1095,GROW - Commercial & Property,Cleaning Materials,40019,"Equipment, Furniture & Materia",5023,AA301- JUMBO ROLL 12 PACK,23/09/2022,0170583,316.08,Revenue,Pattersons Holdings (Bristol),77537,,
Chorley Borough Council,http://statistics.data.gov.uk/id/local-authority/30UE,Business Support,1095,GROW - Commercial & Property,Cleaning Materials,40019,"Equipment, Furniture & Materia",5023,AE214- HAND TOWELS. ,23/09/2022,0170583,213.60,Revenue,Pattersons Holdings (Bristol),77537,,
Chorley Borough Council,http://statistics.data.gov.uk/id/local-authority/30UE,Business Support,1095,GROW - Commercial & Property,Cleaning Materials,40019,"Equipment, Furniture & Materia",5023,AF113- BLUE ROLL ,23/09/2022,0170583,15.54,Revenue,Pattersons Holdings (Bristol),77537,,
Chorley Borough Council,http://statistics.data.gov.uk/id/local-authority/30UE,Business Support,1095,GROW - Commercial & Property,Cleaning Materials,40019,"Equipment, Furniture & Materia",5023,BA010-5 - MULTI PURPOSE CLEANER,23/09/2022,0170583,7.87,Revenue,Pattersons Holdings (Bristol),77537,,
Chorley Borough Council,http://statistics.data.gov.uk/id/local-authority/30UE,Business Support,1095,GROW - Commercial & Property,Cleaning Materials,40019,"Equipment, Furniture & Materia",5023,BA036-5- MEDICAL SANITISER ,23/09/2022,0170583,6.86,Revenue,Pattersons Holdings (Bristol),77537,,
Chorley Borough Council,http://statistics.data.gov.uk/id/local-authority/30UE,Business Support,1095,GROW - Commercial & Property,Cleaning Materials,40019,"Equipment, Furniture & Materia",5023,BB028-1- WASHING UP LIQUID ,23/09/2022,0170583,2.06,Revenue,Pattersons Holdings (Bristol),77537,,
Chorley Borough Council,http://statistics.data.gov.uk/id/local-authority/30UE,Business Support,1095,GROW - Commercial & Property,Cleaning Materials,40019,"Equipment, Furniture & Materia",5023,PX-00012- DISHWASHER CLEANER ,23/09/2022,0170583,10.29,Revenue,Pattersons Holdings (Bristol),77537,,
Chorley Borough Council,http://statistics.data.gov.uk/id/local-authority/30UE,Business Support,1095,GROW - Commercial & Property,Cleaning Materials,40019,"Equipment, Furniture & Materia",5023,BC060-1- TOILET CLEANER AND LIMSCALE REMOVER- 1.53 X7,23/09/2022,0170583,10.71,Revenue,Pattersons Holdings (Bristol),77537,,
Chorley Borough Council,http://statistics.data.gov.uk/id/local-authority/30UE,Business Support,1095,GROW - Commercial & Property,Cleaning Materials,40019,"Equipment, Furniture & Materia",5023,BK081-50-FOAM WASH SOAP (12),23/09/2022,0170583,40.50,Revenue,Pattersons Holdings (Bristol),77537,,
Chorley Borough Council,http://statistics.data.gov.uk/id/local-authority/30UE,Business Support,1095,GROW - Commercial & Property,Cleaning Materials,40019,"Equipment, Furniture & Materia",5023,CG106-B1- MICROFIBRE CLOTH- BLUE,23/09/2022,0170583,3.10,Revenue,Pattersons Holdings (Bristol),77537,,
Chorley Borough Council,http://statistics.data.gov.uk/id/local-authority/30UE,Business Support,1095,GROW - Commercial & Property,Cleaning Materials,40019,"Equipment, Furniture & Materia",5023,CG106-G1- MICROFIBRE CLOTH- GREEN ,23/09/2022,0170583,3.10,Revenue,Pattersons Holdings (Bristol),77537,,
Chorley Borough Council,http://statistics.data.gov.uk/id/local-authority/30UE,Business Support,1095,GROW - Commercial & Property,Cleaning Materials,40019,"Equipment, Furniture & Materia",5023,CG106-P1- MICROFIBRE CLOTH- PINK ,23/09/2022,0170583,3.10,Revenue,Pattersons Holdings (Bristol),77537,,
Chorley Borough Council,http://statistics.data.gov.uk/id/local-authority/30UE,Business Support,1095,GROW - Commercial & Property,Cleaning Materials,40019,"Equipment, Furniture & Materia",5023,CG106-Y1- MICROFIBRE CLOTH- YELLOW ,23/09/2022,0170583,3.10,Revenue,Pattersons Holdings (Bristol),77537,,
Chorley Borough Council,http://statistics.data.gov.uk/id/local-authority/30UE,Business Support,1095,GROW - Commercial & Property,Cleaning Materials,40019,"Equipment, Furniture & Materia",5023,CM160-C- REFUSE SACKS CLEAR- ,23/09/2022,0170583,9.90,Revenue,Pattersons Holdings (Bristol),77537,,
Chorley Borough Council,http://statistics.data.gov.uk/id/local-authority/30UE,Business Support,1095,GROW - Commercial & Property,Cleaning Materials,40019,"Equipment, Furniture & Materia",5023,CM180- EFUSE SACKS BLAC ,23/09/2022,0170583,12.57,Revenue,Pattersons Holdings (Bristol),77537,,
Chorley Borough Council,http://statistics.data.gov.uk/id/local-authority/30UE,Business Support,1095,GROW - Commercial & Property,Cleaning Materials,40019,"Equipment, Furniture & Materia",5023,HA001-16- MOP HEADS,23/09/2022,0170583,4.96,Revenue,Pattersons Holdings (Bristol),77537,,
Chorley Borough Council,http://statistics.data.gov.uk/id/local-authority/30UE,Business Support,1095,GROW - Commercial & Property,Cleaning Materials,40019,"Equipment, Furniture & Materia",5023,HL005-B- SOFT SPONDGES BLUE/WHITE- ,23/09/2022,0170583,1.44,Revenue,Pattersons Holdings (Bristol),77537,,
Chorley Borough Council,http://statistics.data.gov.uk/id/local-authority/30UE,Capital,Capital,GOVN - Policy & Governance,Other Contractor,03012,Capital Expenditure,Capital,Bookcase for room of reflection.,09/09/2022,0170485,"2,310.00",Capital,Paul Case Furniture,80860,,
Chorley Borough Council,http://statistics.data.gov.uk/id/local-authority/30UE,Tourism,1039,GOVN - Policy & Governance,Professional Fees,40063,Services,5027,Photography at events 2022,23/09/2022,0170860,800.00,Revenue,Paul Heyes Photographer,20909,,
Chorley Borough Council,http://statistics.data.gov.uk/id/local-authority/30UE,Homelessness,1075,EARL - Communities,Service Fees,40056,Services,5027,Storage costs for NAME REDACTED currently housed in TA,09/09/2022,0170599,240.00,Revenue,Pay Store Limited T/A Store First,85507,,
Chorley Borough Council,http://statistics.data.gov.uk/id/local-authority/30UE,Homelessness,1075,EARL - Communities,Service Fees,40056,Services,5027,Storage costs for NAME REDACTED currently housed in TA,09/09/2022,0170599,33.33,Revenue,Pay Store Limited T/A Store First,85507,,
Chorley Borough Council,http://statistics.data.gov.uk/id/local-authority/30UE,Central Support Services,1009,CUST - Customer & Digital,Printing,40043,"Printing, Stationery & General",5026,Garden waste subscription permits 2022/23 for Chorley and South Ribble,16/09/2022,0170679,345.92,Revenue,Permiserv Ltd,77202,,
Chorley Borough Council,http://statistics.data.gov.uk/id/local-authority/30UE,Development Control,1091,PLAN - Planning & Development,Legal Fees,40171,Miscellaneous Expenses,5034,ADVOCACY AT 2 DAY PLANNING ENFORCEMENT APPEAL - ADDRESS REDACTED,23/09/2022,0170910,"4,500.00",Revenue,Piers Riley-Smith,84151,,
Chorley Borough Council,http://statistics.data.gov.uk/id/local-authority/30UE,Service Management & Support,1009,CUST - Customer & Digital,Diesel/Derv,30007,Direct Transport Costs,5016,Fuel order as per chest 7500 litre road diesel ,16/09/2022,0169820,"2,129.06",Revenue,Pilkington Oils,18075,,
Chorley Borough Council,http://statistics.data.gov.uk/id/local-authority/30UE,Service Management & Support,1009,CUST - Customer & Digital,Diesel/Derv,30007,Direct Transport Costs,5016,Fuel order as per chest 7500 litre road diesel ,30/09/2022,0169824,"10,514.25",Revenue,Pilkington Oils,18075,,
Chorley Borough Council,http://statistics.data.gov.uk/id/local-authority/30UE,Service Management & Support,1009,CUST - Customer & Digital,Supplies-Grounds Maintenance,40025,"Equipment, Furniture & Materia",5023,2 x 200 litre barrel Ad blue,23/09/2022,0170746,640.00,Revenue,Pilkington Oils,18075,,
Chorley Borough Council,http://statistics.data.gov.uk/id/local-authority/30UE,Service Management & Support,1009,CUST - Customer & Digital,Vehicles and Plant Maintenance,30045,Direct Transport Costs,5016,As per Work Order Number: 1815031 Repairs to PO67 BYU,16/09/2022,0170491,305.31,Revenue,Pirtek Preston,84626,,
Chorley Borough Council,http://statistics.data.gov.uk/id/local-authority/30UE,Service Management & Support,1009,CUST - Customer & Digital,Vehicles and Plant Maintenance,30045,Direct Transport Costs,5016,As per work order number- 1818478,16/09/2022,0170762,284.77,Revenue,Pirtek Preston,84626,,
Chorley Borough Council,http://statistics.data.gov.uk/id/local-authority/30UE,Business Support,1095,GROW - Commercial & Property,Promotional Expenses,40159,Miscellaneous Expenses,5034, 2 years licence fees for Market Walk and Chorley Town Centre footfall services from 1/7/2022 to 30/6/2024,09/09/2022,0170487,"3,420.00",Revenue,Place Informatics Ltd,82452,,
Chorley Borough Council,http://statistics.data.gov.uk/id/local-authority/30UE,Central Support Services,1009,GROW - Commercial & Property,Professional Fees,40063,Services,5027,Charnock Richard Stage 1 - Concept Masterplan Works,09/09/2022,0170459,"2,700.00",Revenue,Planit IE Limited,62532,,
Chorley Borough Council,http://statistics.data.gov.uk/id/local-authority/30UE,Development Control,1091,CUST - Customer & Digital,Professional Fees,40063,Services,5027,A strategy and fee proposal for professional planning consultancy support - Hybrid planning application seeking: ,16/09/2022,0169004,"8,332.00",Revenue,Planning and Design Group (UK) Ltd,85394,,
Chorley Borough Council,http://statistics.data.gov.uk/id/local-authority/30UE,Development Control,1091,CUST - Customer & Digital,Professional Fees,40063,Services,5027,A strategy and fee proposal for professional planning consultancy support - Hybrid planning application seeking: ,16/09/2022,0170265,"8,969.50",Revenue,Planning and Design Group (UK) Ltd,85394,,
Chorley Borough Council,http://statistics.data.gov.uk/id/local-authority/30UE,Development Control,1091,PLAN - Planning & Development,Professional Fees,40063,Services,5027,Planning Enforcement Services April 2022 to March 2023,23/09/2022,0170055,741.00,Revenue,Planning and PACE Solutions Ltd,82083,,
Chorley Borough Council,http://statistics.data.gov.uk/id/local-authority/30UE,Precepts and Collection Fund,Precepts,GOVN - Policy & Governance,LPA Precept,02010,Precepts & Collection Fund,Precept,ctax precepts,01/09/2022,0169096,"912,252.00",Revenue,Police & Crime Commissioner,17438,,
Chorley Borough Council,http://statistics.data.gov.uk/id/local-authority/30UE,Precepts and Collection Fund,Precepts,GOVN - Policy & Governance,LPA Precept,02010,Precepts & Collection Fund,Precept,PCC Council tax precepts,01/09/2022,0170078,"912,252.00",Revenue,Police & Crime Commissioner,17438,,
Chorley Borough Council,http://statistics.data.gov.uk/id/local-authority/30UE,Central Support Services,1009,GROW - Commercial & Property,Professional Fees,40063,Services,5027,Whittle GP Surgery Site - Clayton-le-Woods Parish Council Sign,09/09/2022,0168542,452.33,Revenue,Poppy Signs Ltd,21898,,
Chorley Borough Council,http://statistics.data.gov.uk/id/local-authority/30UE,Tourism,1039,GOVN - Policy & Governance,Publicity - Advertising,40157,Miscellaneous Expenses,5034,"1 3 Unit(s) CL banner 3000mm x 1000mm Regular PVC Banner, hemmed and eyelets2 1 Unit(s) CL banner 3000 x 500mm",16/09/2022,0170748,416.43,Revenue,Poppy Signs Ltd,21898,,
Chorley Borough Council,http://statistics.data.gov.uk/id/local-authority/30UE,Business Support,1095,GROW - Commercial & Property,Signs:Provision & Maintenance,20065,Grounds Maintenance Costs,5013,Bee`s Kitchen & Deli at Primrose Gardens Signage,30/09/2022,0171193,"2,038.65",Revenue,Poppy Signs Ltd,21898,,
Chorley Borough Council,http://statistics.data.gov.uk/id/local-authority/30UE,Elections,1012,GOVN - Policy & Governance,Rent/Hire Of Premises,20017,Premises Rents,5007,Repairs to hire cabins on elections,02/09/2022,0170307,250.95,Revenue,Portakabin Limited,51521,,
Chorley Borough Council,http://statistics.data.gov.uk/id/local-authority/30UE,Elections,1012,GOVN - Policy & Governance,Postages,40082,Communication and Computing,5028,ITR mailings,16/09/2022,0170699,273.30,Revenue,Print Image Facilities LLP,57870,,
Chorley Borough Council,http://statistics.data.gov.uk/id/local-authority/30UE,Interest Payable on Debt,1020,GOVN - Policy & Governance,Interest Payable,09009,Interest Payments,5067,Interest LN508381,01/09/2022,0170074,"34,422.86",Revenue,Public Works Loans Board,21480,,
Chorley Borough Council,http://statistics.data.gov.uk/id/local-authority/30UE,Interest Payable on Debt,1020,GOVN - Policy & Governance,Interest Payable,09009,Interest Payments,5067,Interest LN508382,01/09/2022,0170074,"35,797.50",Revenue,Public Works Loans Board,21480,,
Chorley Borough Council,http://statistics.data.gov.uk/id/local-authority/30UE,Interest Payable on Debt,1020,GOVN - Policy & Governance,Interest Payable,09009,Interest Payments,5067,Interest LN509641,01/09/2022,0170076,"286,307.74",Revenue,Public Works Loans Board,21480,,
Chorley Borough Council,http://statistics.data.gov.uk/id/local-authority/30UE,Homelessness,1075,EARL - Communities,Bed and Breakfast Accommodation,40232,Miscellaneous Expenses,5034,NAMES REDACTED � Family Room (Room 18) 04/08  05/08. ,16/09/2022,0170703,"1,174.00",Revenue,Purple Roomz,84223,,
Chorley Borough Council,http://statistics.data.gov.uk/id/local-authority/30UE,Regulatory Services,1048,PLAN - Planning & Development,Taxi Testing & Vehicle Safety Report,40234,Services,5027,taxi tests,09/09/2022,0170443,259.40,Revenue,R.C.J Motors,63625,,
Chorley Borough Council,http://statistics.data.gov.uk/id/local-authority/30UE,Democratic Represent and  Mgnt,1007,GOVN - Policy & Governance,Arts Development Initiatives,40187,Miscellaneous Expenses,5034,ACE project Fee to essay by NAME REDACTED,30/09/2022,0171186,"1,259.55",Revenue,Rebecca Chesney,78286,,
Chorley Borough Council,http://statistics.data.gov.uk/id/local-authority/30UE,Central Support Services,1009,EARL - Communities,Core Funding Grants,40133,Grants and Subscriptions,5031,Small community grant,23/09/2022,0170966,300.00,Revenue,Red Admiral Music Academy,76675,,
Chorley Borough Council,http://statistics.data.gov.uk/id/local-authority/30UE,Central Support Services,1009,EARL - Communities,Training Course Fees,17010,Indirect Employee Expenses,5002,Exhumation and Public Health Act Funerals Public Health Act Funerals [Online Training NAMES REDACTED,09/09/2022,0166986,412.50,Revenue,RH Environmental Ltd,64885,,
Chorley Borough Council,http://statistics.data.gov.uk/id/local-authority/30UE,Non Domestic Rates Redistribut,,GOVN - Policy & Governance,Tariff to Business Rates Pool,49002,Expenditure not in NCOS,,Lancs Bus Rates Pool,01/09/2022,0170075,"585,289.00",Revenue,Ribble Valley Borough Council DIRECT DEBIT ONLY,21100,,
Chorley Borough Council,http://statistics.data.gov.uk/id/local-authority/30UE,Service Management & Support,1009,CUST - Customer & Digital,Supplies-Grounds Maintenance,40025,"Equipment, Furniture & Materia",5023,Supply 20 tubs Impact line marker,09/09/2022,0170351,564.00,Revenue,Rigby Taylor Ltd,16299,,
Chorley Borough Council,http://statistics.data.gov.uk/id/local-authority/30UE,Service Management & Support,1009,CUST - Customer & Digital,Supplies-Grounds Maintenance,40025,"Equipment, Furniture & Materia",5023,Supply 20 tubs of line marker,23/09/2022,0170893,526.00,Revenue,Rigby Taylor Ltd,16299,,
Chorley Borough Council,http://statistics.data.gov.uk/id/local-authority/30UE,Central Support Services,1009,GROW - Commercial & Property,Professional Fees,40063,Services,5027,Project Management Consultancy support - Chorley Council - Cowling Farm (CBC land) Project,16/09/2022,0170772,712.50,Revenue,RigDou Ltd,85448,,
Chorley Borough Council,http://statistics.data.gov.uk/id/local-authority/30UE,Central Support Services,1009,GROW - Commercial & Property,Professional Fees,40063,Services,5027,Project Management Consultancy support - Chorley Council - Bengal St Project,16/09/2022,0170773,712.50,Revenue,RigDou Ltd,85448,,
Chorley Borough Council,http://statistics.data.gov.uk/id/local-authority/30UE,Central Support Services,1009,GROW - Commercial & Property,Professional Fees,40063,Services,5027,Marketing fees for council commercial property from May 2022 to April 2023,30/09/2022,0171171,"1,020.00",Revenue,Rightmove Group Ltd,77717,,
Chorley Borough Council,http://statistics.data.gov.uk/id/local-authority/30UE,Cemetery Cremation & Mortuary,1041,CUST - Customer & Digital,Refunds,40220,Miscellaneous Expenses,5034,Exclusive Right of Burial,30/09/2022,0171244,936.00,Revenue,Robert Anderson,85565,,
Chorley Borough Council,http://statistics.data.gov.uk/id/local-authority/30UE,Cemetery Cremation & Mortuary,1041,CUST - Customer & Digital,Refunds,40220,Miscellaneous Expenses,5034,Marker/ Headstone,30/09/2022,0171244,29.00,Revenue,Robert Anderson,85565,,
Chorley Borough Council,http://statistics.data.gov.uk/id/local-authority/30UE,Capital,Capital,GROW - Commercial & Property,Main Contractor,03007,Capital Expenditure,Capital,Delivery of the Tatton regeneration scheme  All in accordance with the executed NEC Engineering & Construct Contract,09/09/2022,0169823,"453,705.27",Capital,Robertson CE Limited,81176,,
Chorley Borough Council,http://statistics.data.gov.uk/id/local-authority/30UE,Capital,Capital,GROW - Commercial & Property,Main Contractor,03007,Capital Expenditure,Capital,Delivery of the Tatton regeneration scheme  All in accordance with the executed NEC Engineering & Construct Contract,23/09/2022,0170481,"333,180.29",Capital,Robertson CE Limited,81176,,
Chorley Borough Council,http://statistics.data.gov.uk/id/local-authority/30UE,Tourism,1039,GOVN - Policy & Governance,Misc Expenses,40200,Miscellaneous Expenses,5034,CFS prize money,02/09/2022,0170388,400.00,Revenue,Roualeyn Fuchsias,76233,,
Chorley Borough Council,http://statistics.data.gov.uk/id/local-authority/30UE,Unapportionable Central OHeads,1009,CUST - Customer & Digital,Professional Fees,14011,Direct Employee Expenses,5001,Anite redirection (PO BOX 13),30/09/2022,0171150,"3,050.00",Revenue,Royal Mail Group Plc,17522,,
Chorley Borough Council,http://statistics.data.gov.uk/id/local-authority/30UE,Central Support Services,1009,EARL - Communities,Core Funding Grants,40133,Grants and Subscriptions,5031,Small community grant,23/09/2022,0170967,490.00,Revenue,Run Fit Chorley,78272,,
Chorley Borough Council,http://statistics.data.gov.uk/id/local-authority/30UE,Service Management & Support,1009,CUST - Customer & Digital,Supplies-Grounds Maintenance,40025,"Equipment, Furniture & Materia",5023,To carryout depot duties w/c 20th,09/09/2022,0169717,300.00,Revenue,Scambler Plant Hire Ltd,16710,,
Chorley Borough Council,http://statistics.data.gov.uk/id/local-authority/30UE,Recreation & Sport,1037,GROW - Commercial & Property,Electricity,20013,Energy Costs,5006,21/8/21 to 19/11/21,02/09/2022,0170362,475.40,Revenue,Scottish Power,18998,,
Chorley Borough Council,http://statistics.data.gov.uk/id/local-authority/30UE,Business Support,1095,GROW - Commercial & Property,External Contractor,40198,Miscellaneous Expenses,5034,For Security services provided at Primrose Gardens,23/09/2022,0170791,"7,406.61",Revenue,Sector Security Services,19269,,
Chorley Borough Council,http://statistics.data.gov.uk/id/local-authority/30UE,Homelessness,1075,GROW - Commercial & Property,External Contractor,40198,Miscellaneous Expenses,5034,For Security services provided at Cotswold House,23/09/2022,0170792,"7,384.25",Revenue,Sector Security Services,19269,,
Chorley Borough Council,http://statistics.data.gov.uk/id/local-authority/30UE,Central Support Services,1009,EARL - Communities,Core Funding Grants,40133,Grants and Subscriptions,5031,Small community grant,23/09/2022,0170970,350.00,Revenue,SHAPE Lancashire Community Interest Company,77935,,
Chorley Borough Council,http://statistics.data.gov.uk/id/local-authority/30UE,Central Support Services,1009,EARL - Communities,Core Funding Grants,40133,Grants and Subscriptions,5031,Small community grant,23/09/2022,0170971,500.00,Revenue,Shooting Stars Fan Club,78287,,
Chorley Borough Council,http://statistics.data.gov.uk/id/local-authority/30UE,Capital,Capital,GROW - Commercial & Property,Main Contractor,03007,Capital Expenditure,Capital,Town Hall Design and tender works for the Decarbonisation scheme to BSRIA BG6 Stage 4,02/09/2022,0170276,"10,716.67",Capital,Silver Energy Management Solutions Ltd,85372,,
Chorley Borough Council,http://statistics.data.gov.uk/id/local-authority/30UE,Capital,Capital,GROW - Commercial & Property,Main Contractor,03007,Capital Expenditure,Capital,Town Hall Design and tender works for the Decarbonisation scheme to BSRIA BG6 Stage 4,02/09/2022,0170319,"16,716.67",Capital,Silver Energy Management Solutions Ltd,85372,,
Chorley Borough Council,http://statistics.data.gov.uk/id/local-authority/30UE,Capital,Capital,GROW - Commercial & Property,Main Contractor,03007,Capital Expenditure,Capital,Town Hall Design and tender works for the Decarbonisation scheme to BSRIA BG6 Stage 4,23/09/2022,0170992,"16,452.16",Capital,Silver Energy Management Solutions Ltd,85372,,
Chorley Borough Council,http://statistics.data.gov.uk/id/local-authority/30UE,Service Management & Support,1009,CUST - Customer & Digital,Supplies-Grounds Maintenance,40025,"Equipment, Furniture & Materia",5023,3x new benches- Powdered coated Green,16/09/2022,0170780,"1,618.80",Revenue,SM Sheet Metal Ltd,21243,,
Chorley Borough Council,http://statistics.data.gov.uk/id/local-authority/30UE,Central Support Services,1009,CUST - Customer & Digital,IT Software - Annual Licences,40101,Communication and Computing,5028,8 x LT Autocad licenses,16/09/2022,0170350,"3,125.76",Revenue,Softcat Ltd,69996,,
Chorley Borough Council,http://statistics.data.gov.uk/id/local-authority/30UE,Unapportionable Central OHeads,1009,GOVN - Policy & Governance,Lone Working System,40097,Communication and Computing,5028,Service Charge for Solo Protect Devices Sept 2022,30/09/2022,0170925,500.80,Revenue,SoloProtect Ltd,76206,,
Chorley Borough Council,http://statistics.data.gov.uk/id/local-authority/30UE,Unapportionable Central OHeads,1009,GOVN - Policy & Governance,Service Fees to other Local Authorities,40076,Services,5027,Quarter 1 recharges 2022/23,23/09/2022,0170907,"480,916.25",Revenue,South Ribble Borough Council,17889,,
Chorley Borough Council,http://statistics.data.gov.uk/id/local-authority/30UE,Service Management & Support,1009,CUST - Customer & Digital,Tools & Equipment - Maintenance,40005,"Equipment, Furniture & Materia",5023,"Quantity x 10 Deluxe Bypass Secateurs-Pan Shovel, Size 2, Open Socket-De-Icer 600ml Aerosol-STIHL HP 2-stroke OiL",16/09/2022,0170176,301.40,Revenue,Spalding (UK) Limited,20264,,
Chorley Borough Council,http://statistics.data.gov.uk/id/local-authority/30UE,Business Support,1095,GROW - Commercial & Property,Window Cleaning,20034,Cleaning and Domestic Supplies,5012,For the window cleaning services and quarterly internal cleans at Primrose gardens,30/09/2022,0170956,680.00,Revenue,Sparkle Window Cleaning (Michael Jennings),77989,,
Chorley Borough Council,http://statistics.data.gov.uk/id/local-authority/30UE,Business Support,1095,GROW - Commercial & Property,Window Cleaning,20034,Cleaning and Domestic Supplies,5012,Window Cleaning strawberry fields,23/09/2022,0171042,374.00,Revenue,Sparkle Window Cleaning (Michael Jennings),77989,,
Chorley Borough Council,http://statistics.data.gov.uk/id/local-authority/30UE,Central Support Services,1009,EARL - Communities,Misc Expenses,40200,Miscellaneous Expenses,5034,2022-2023 tempo community currency (Time Credits) service,02/09/2022,0169668,"7,125.00",Revenue,Spice Innovations Ltd T/A Tempo Time Credits,61318,,
Chorley Borough Council,http://statistics.data.gov.uk/id/local-authority/30UE,Central Support Services,1009,EARL - Communities,Core Funding Grants,40133,Grants and Subscriptions,5031,Small community grant,23/09/2022,0170979,250.00,Revenue,Springfield Park Leisure Centre,70493,,
Chorley Borough Council,http://statistics.data.gov.uk/id/local-authority/30UE,Service Management & Support,1009,CUST - Customer & Digital,Diesel/Derv,30007,Direct Transport Costs,5016,As per order via the chest 7500 litres Road Diesel 2000 Litres of gas oil,30/09/2022,0170886,"11,791.64",Revenue,Standard Fuel Oils,85167,,
Chorley Borough Council,http://statistics.data.gov.uk/id/local-authority/30UE,Service Management & Support,1009,CUST - Customer & Digital,Diesel/Derv,30007,Direct Transport Costs,5016,used the full grn against invoice207578 in error,30/09/2022,0170929,"2,286.08",Revenue,Standard Fuel Oils,85167,,
Chorley Borough Council,http://statistics.data.gov.uk/id/local-authority/30UE,Capital,Capital,EARL - Communities,Grants,03002,Capital Expenditure,Capital,,02/09/2022,0170366,"2,745.00",Capital,Stannah Lift Services Ltd,80943,,
Chorley Borough Council,http://statistics.data.gov.uk/id/local-authority/30UE,Capital,Capital,EARL - Communities,Grants,03002,Capital Expenditure,Capital,ADDRESS REDACTED,16/09/2022,0170652,"3,474.00",Capital,Stannah Lift Services Ltd,80943,,
Chorley Borough Council,http://statistics.data.gov.uk/id/local-authority/30UE,Capital,Capital,EARL - Communities,Grants,03002,Capital Expenditure,Capital,ADDRESS REDACTED,30/09/2022,0171096,"3,540.00",Capital,Stannah Lift Services Ltd,80943,,
Chorley Borough Council,http://statistics.data.gov.uk/id/local-authority/30UE,Capital,Capital,PLAN - Planning & Development,Consultants Fees,03025,Capital Expenditure,Capital,Westway Grass Pitch Contract - contract administration to completion.,09/09/2022,0169633,"5,000.00",Capital,Steve Wells Associates Ltd,77157,,
Chorley Borough Council,http://statistics.data.gov.uk/id/local-authority/30UE,Service Management & Support,1009,GROW - Commercial & Property,External Contractor,40198,Miscellaneous Expenses,5034,Birkacre Reservoir On-site flood plan - NAMES REDACTED,23/09/2022,0171043,750.00,Revenue,Stillwater Associates Limited,84045,,
Chorley Borough Council,http://statistics.data.gov.uk/id/local-authority/30UE,Parking Services,1066,GROW - Commercial & Property,Consultants` Fees,40077,Services,5027,extended services for period 01.07.22 - 30.09.22,16/09/2022,0170648,"4,915.89",Revenue,Street Civil Engineering Limited,76750,,
Chorley Borough Council,http://statistics.data.gov.uk/id/local-authority/30UE,Capital,Capital,EARL - Communities,Grants,03002,Capital Expenditure,Capital,ADDRESS REDACTED,02/09/2022,0170339,"7,980.00",Capital,Stringfellow Bldg Cntrctrs Ltd,17893,,
Chorley Borough Council,http://statistics.data.gov.uk/id/local-authority/30UE,Capital,Capital,GROW - Commercial & Property,Main Contractor,03007,Capital Expenditure,Capital,Town Hall Server Room Works as per tender,09/09/2022,0170496,"11,130.00",Capital,Stringfellow Bldg Cntrctrs Ltd,17893,,
Chorley Borough Council,http://statistics.data.gov.uk/id/local-authority/30UE,Capital,Capital,EARL - Communities,Grants,03002,Capital Expenditure,Capital,ADDRESS REDACTED,16/09/2022,0170595,"15,580.00",Capital,Stringfellow Bldg Cntrctrs Ltd,17893,,
Chorley Borough Council,http://statistics.data.gov.uk/id/local-authority/30UE,Unapportionable Central OHeads,1009,GROW - Commercial & Property,General Repairs - Reactive,20004,Repairs Maintenance & Alts,5005,"Strip back the existing slate hung cladding, cut stone wall to a slope and install new code 5 lead sheet. ",09/09/2022,0170618,"3,690.00",Revenue,Stringfellow Bldg Cntrctrs Ltd,17893,,
Chorley Borough Council,http://statistics.data.gov.uk/id/local-authority/30UE,Capital,Capital,EARL - Communities,Grants,03002,Capital Expenditure,Capital,ADDRESS REDACTED,30/09/2022,0171147,"5,710.00",Capital,Stringfellow Bldg Cntrctrs Ltd,17893,,
Chorley Borough Council,http://statistics.data.gov.uk/id/local-authority/30UE,Economic Development,1096,GROW - Commercial & Property,Refuse Collection,20037,Cleaning and Domestic Supplies,5012,Market Walk/Market Walk Extension/Markets/Calico Lounge/Reel Cinema Waste Removal:Market Walk YARD 1 - ,09/09/2022,0170110,"2,260.26",Revenue,SUEZ R&R UK LTD,17615,,
Chorley Borough Council,http://statistics.data.gov.uk/id/local-authority/30UE,Economic Development,1096,GROW - Commercial & Property,Refuse Collection,20037,Cleaning and Domestic Supplies,5012,Market Walk YARD 1 - GENERAL WASTE (Market Walk) - 8 cubic yard FEL skip ,09/09/2022,0170110,241.77,Revenue,SUEZ R&R UK LTD,17615,,
Chorley Borough Council,http://statistics.data.gov.uk/id/local-authority/30UE,Economic Development,1096,GROW - Commercial & Property,Refuse Collection,20037,Cleaning and Domestic Supplies,5012,Market Walk YARD 1 - CARDBOARD ONLY - 35 cubic yard RoRo skip ,09/09/2022,0170110,25.00,Revenue,SUEZ R&R UK LTD,17615,,
Chorley Borough Council,http://statistics.data.gov.uk/id/local-authority/30UE,Business Support,1095,GROW - Commercial & Property,Refuse Collection,20037,Cleaning and Domestic Supplies,5012,Market Walk YARD 2 - CARDBOARD ONLY - 35 cubic yard RoRo skip,09/09/2022,0170110,25.00,Revenue,SUEZ R&R UK LTD,17615,,
Chorley Borough Council,http://statistics.data.gov.uk/id/local-authority/30UE,Business Support,1095,GROW - Commercial & Property,Refuse Collection,20037,Cleaning and Domestic Supplies,5012,Market Walk YARD 2 - GENERAL WASTE - 8 cubic yard FEL skip ,09/09/2022,0170110,242.64,Revenue,SUEZ R&R UK LTD,17615,,
Chorley Borough Council,http://statistics.data.gov.uk/id/local-authority/30UE,Business Support,1095,GROW - Commercial & Property,Refuse Collection,20037,Cleaning and Domestic Supplies,5012,Market Walk YARD 3 - GENERAL WASTE - 8 cubic yard FEL skip ,09/09/2022,0170110,485.29,Revenue,SUEZ R&R UK LTD,17615,,
Chorley Borough Council,http://statistics.data.gov.uk/id/local-authority/30UE,Business Support,1095,GROW - Commercial & Property,Refuse Collection,20037,Cleaning and Domestic Supplies,5012,Market Walk YARD 3 - CARDBOARD ONLY - 35 cubic yard RoRo skip ,09/09/2022,0170110,25.00,Revenue,SUEZ R&R UK LTD,17615,,
Chorley Borough Council,http://statistics.data.gov.uk/id/local-authority/30UE,Business Support,1095,GROW - Commercial & Property,Refuse Collection,20037,Cleaning and Domestic Supplies,5012,Market Walk YARD 3 - PLASTIC FILM - 35 cubic yard RoRo skip,09/09/2022,0170110,25.00,Revenue,SUEZ R&R UK LTD,17615,,
Chorley Borough Council,http://statistics.data.gov.uk/id/local-authority/30UE,Business Support,1095,GROW - Commercial & Property,Refuse Collection,20037,Cleaning and Domestic Supplies,5012,Market Walk YARD 3 - CARDBOARD ONLY - 12 cubic yard Bakkie cage,09/09/2022,0170110,54.17,Revenue,SUEZ R&R UK LTD,17615,,
Chorley Borough Council,http://statistics.data.gov.uk/id/local-authority/30UE,Business Support,1095,GROW - Commercial & Property,Refuse Collection,20037,Cleaning and Domestic Supplies,5012,"Market Walk Ext, Chorley PR7 1FD - GENERAL WASTE - Euro 1100 Litre ",09/09/2022,0170110,376.71,Revenue,SUEZ R&R UK LTD,17615,,
Chorley Borough Council,http://statistics.data.gov.uk/id/local-authority/30UE,Business Support,1095,GROW - Commercial & Property,Refuse Collection,20037,Cleaning and Domestic Supplies,5012,"Market Walk Ext, Chorley PR7 1FD - MIXED RECYCLING - Euro 1100 Litre ",09/09/2022,0170110,220.11,Revenue,SUEZ R&R UK LTD,17615,,
Chorley Borough Council,http://statistics.data.gov.uk/id/local-authority/30UE,Business Support,1095,GROW - Commercial & Property,Refuse Collection,20037,Cleaning and Domestic Supplies,5012,"Market Walk Ext, Chorley PR7 1FD - GLASS ONLY - 240 Litre bins ",09/09/2022,0170110,97.88,Revenue,SUEZ R&R UK LTD,17615,,
Chorley Borough Council,http://statistics.data.gov.uk/id/local-authority/30UE,Business Support,1095,GROW - Commercial & Property,Refuse Collection,20037,Cleaning and Domestic Supplies,5012,"Calico Lounge, Market Walk, Chorley, PR7 1FD - GENERAL WASTE - Euro 1100 Litre bins ",09/09/2022,0170110,226.03,Revenue,SUEZ R&R UK LTD,17615,,
Chorley Borough Council,http://statistics.data.gov.uk/id/local-authority/30UE,Business Support,1095,GROW - Commercial & Property,Refuse Collection,20037,Cleaning and Domestic Supplies,5012,"Calico Lounge, Market Walk, Chorley, PR7 1FD - MIXED RECYCLING - Euro 1100 Litre bins ",09/09/2022,0170110,66.03,Revenue,SUEZ R&R UK LTD,17615,,
Chorley Borough Council,http://statistics.data.gov.uk/id/local-authority/30UE,Business Support,1095,GROW - Commercial & Property,Refuse Collection,20037,Cleaning and Domestic Supplies,5012,"Calico Lounge, Market Walk, Chorley, PR7 1FD - GLASS ONLY - 240 Litre bins ",09/09/2022,0170110,65.25,Revenue,SUEZ R&R UK LTD,17615,,
Chorley Borough Council,http://statistics.data.gov.uk/id/local-authority/30UE,Business Support,1095,GROW - Commercial & Property,Refuse Collection,20037,Cleaning and Domestic Supplies,5012,REEL Cinema - GENERAL WASTE - Euro 1100 Litre bins,09/09/2022,0170110,301.37,Revenue,SUEZ R&R UK LTD,17615,,
Chorley Borough Council,http://statistics.data.gov.uk/id/local-authority/30UE,Business Support,1095,GROW - Commercial & Property,Refuse Collection,20037,Cleaning and Domestic Supplies,5012,REEL Cinema - MIXED RECYCLING - Euro 1100 Litre bins ,09/09/2022,0170110,88.04,Revenue,SUEZ R&R UK LTD,17615,,
Chorley Borough Council,http://statistics.data.gov.uk/id/local-authority/30UE,Unapportionable Central OHeads,1009,CUST - Customer & Digital,Refuse Collection,20037,Cleaning and Domestic Supplies,5012,"Trade waste collections TOWN HALL, General waste 2022.2023",02/09/2022,0170146,113.01,Revenue,SUEZ R&R UK LTD,17615,,
Chorley Borough Council,http://statistics.data.gov.uk/id/local-authority/30UE,Unapportionable Central OHeads,1009,CUST - Customer & Digital,Refuse Collection,20037,Cleaning and Domestic Supplies,5012,Trade waste collections TOWN HALL MIXED REC 2022.2023,02/09/2022,0170146,22.01,Revenue,SUEZ R&R UK LTD,17615,,
Chorley Borough Council,http://statistics.data.gov.uk/id/local-authority/30UE,Central Support Services,1009,CUST - Customer & Digital,Refuse Collection,20037,Cleaning and Domestic Supplies,5012,"Trade waste Collections, Civic Offices, General Waste 2022.2023",02/09/2022,0170146,226.03,Revenue,SUEZ R&R UK LTD,17615,,
Chorley Borough Council,http://statistics.data.gov.uk/id/local-authority/30UE,Central Support Services,1009,CUST - Customer & Digital,Refuse Collection,20037,Cleaning and Domestic Supplies,5012,"Trade waste Collections, Civic Offices, Mixed Recycling 2022.2023",02/09/2022,0170146,22.01,Revenue,SUEZ R&R UK LTD,17615,,
Chorley Borough Council,http://statistics.data.gov.uk/id/local-authority/30UE,Culture & Heritage,1036,CUST - Customer & Digital,Refuse Collection,20037,Cleaning and Domestic Supplies,5012,"Trade waste Collections, Astley Hall, General Waste 2022.2023",02/09/2022,0170146,37.67,Revenue,SUEZ R&R UK LTD,17615,,
Chorley Borough Council,http://statistics.data.gov.uk/id/local-authority/30UE,Community Development,1097,CUST - Customer & Digital,Refuse Collection,20037,Cleaning and Domestic Supplies,5012,"Trade waste Collections, MPs Constituency Offices, General Waste 2022.2023",02/09/2022,0170146,37.67,Revenue,SUEZ R&R UK LTD,17615,,
Chorley Borough Council,http://statistics.data.gov.uk/id/local-authority/30UE,Democratic Represent and  Mgnt,1007,CUST - Customer & Digital,Refuse Collection,20037,Cleaning and Domestic Supplies,5012,"Trade waste Collections, Eaves Green Community Centre, General Waste 2022.2023",02/09/2022,0170146,20.49,Revenue,SUEZ R&R UK LTD,17615,,
Chorley Borough Council,http://statistics.data.gov.uk/id/local-authority/30UE,Democratic Represent and  Mgnt,1007,CUST - Customer & Digital,Refuse Collection,20037,Cleaning and Domestic Supplies,5012,"Trade waste Collections, Astley Village Community Centre, General Waste 2022.2023",02/09/2022,0170146,20.49,Revenue,SUEZ R&R UK LTD,17615,,
Chorley Borough Council,http://statistics.data.gov.uk/id/local-authority/30UE,Recreation & Sport,1037,CUST - Customer & Digital,Misc Expenses,40200,Miscellaneous Expenses,5034,"Trade waste Collections, Buttermere Green Community Centre, General Waste 2022.2023",02/09/2022,0170146,20.49,Revenue,SUEZ R&R UK LTD,17615,,
Chorley Borough Council,http://statistics.data.gov.uk/id/local-authority/30UE,Recreation & Sport,1037,CUST - Customer & Digital,Misc Expenses,40200,Miscellaneous Expenses,5034,"Trade waste Collections, Lancaster Way Community Centre, General Waste 2022.2023",02/09/2022,0170146,20.49,Revenue,SUEZ R&R UK LTD,17615,,
Chorley Borough Council,http://statistics.data.gov.uk/id/local-authority/30UE,Recreation & Sport,1037,CUST - Customer & Digital,Refuse Collection,20037,Cleaning and Domestic Supplies,5012,"Trade waste Collections, Tatton Community Centre, General Waste 2022.2023",02/09/2022,0170146,20.49,Revenue,SUEZ R&R UK LTD,17615,,
Chorley Borough Council,http://statistics.data.gov.uk/id/local-authority/30UE,Recreation & Sport,1037,CUST - Customer & Digital,Refuse Collection,20037,Cleaning and Domestic Supplies,5012,"Trade waste Collections, Clayton Brook Village Hall, General Waste 2022.2023",02/09/2022,0170146,24.80,Revenue,SUEZ R&R UK LTD,17615,,
Chorley Borough Council,http://statistics.data.gov.uk/id/local-authority/30UE,Business Support,1095,CUST - Customer & Digital,Refuse Collection,20037,Cleaning and Domestic Supplies,5012,"Trade waste collections, Strawberry Fields Digital Hub General waste 2022.2023",02/09/2022,0170146,113.01,Revenue,SUEZ R&R UK LTD,17615,,
Chorley Borough Council,http://statistics.data.gov.uk/id/local-authority/30UE,Business Support,1095,CUST - Customer & Digital,Refuse Collection,20037,Cleaning and Domestic Supplies,5012,"Trade waste collections, Strawberry Fields Digital Hub, Mixed Recycling 2022.2023",02/09/2022,0170146,66.03,Revenue,SUEZ R&R UK LTD,17615,,
Chorley Borough Council,http://statistics.data.gov.uk/id/local-authority/30UE,Service Management & Support,1009,CUST - Customer & Digital,Refuse Collection,20037,Cleaning and Domestic Supplies,5012,Exchange 20 yard Street Sweeping Skip to cover period  01/04/2022 - 31/03/2023,09/09/2022,0170267,"1,376.32",Revenue,SUEZ R&R UK LTD,17615,,
Chorley Borough Council,http://statistics.data.gov.uk/id/local-authority/30UE,Service Management & Support,1009,CUST - Customer & Digital,Refuse Collection,20037,Cleaning and Domestic Supplies,5012,Exchange 35 yard General Waste Skip to cover period  01/04/2022 - 31/03/2023,09/09/2022,0170267,719.52,Revenue,SUEZ R&R UK LTD,17615,,
Chorley Borough Council,http://statistics.data.gov.uk/id/local-authority/30UE,Service Management & Support,1009,CUST - Customer & Digital,Refuse Collection,20037,Cleaning and Domestic Supplies,5012,Exchange 35 yard Green Waste skip to cover period 01/04/2022- 31/03/2023,09/09/2022,0170267,84.26,Revenue,SUEZ R&R UK LTD,17615,,
Chorley Borough Council,http://statistics.data.gov.uk/id/local-authority/30UE,Service Management & Support,1009,CUST - Customer & Digital,Refuse Collection,20037,Cleaning and Domestic Supplies,5012,Disposal charge and processing of Green Waste per tonne,09/09/2022,0170267,120.75,Revenue,SUEZ R&R UK LTD,17615,,
Chorley Borough Council,http://statistics.data.gov.uk/id/local-authority/30UE,Service Management & Support,1009,CUST - Customer & Digital,Refuse Collection,20037,Cleaning and Domestic Supplies,5012,Exchange 35 yard General Waste Skip to cover period  01/09/2021 - 31/03/2022,09/09/2022,0170272,"3,078.58",Revenue,SUEZ R&R UK LTD,17615,,
Chorley Borough Council,http://statistics.data.gov.uk/id/local-authority/30UE,Service Management & Support,1009,CUST - Customer & Digital,Refuse Collection,20037,Cleaning and Domestic Supplies,5012,Exchange 20 yard Street Sweeping Skip  to cover period  01/09/2021 - 31/03/2022,09/09/2022,0170322,"1,560.28",Revenue,SUEZ R&R UK LTD,17615,,
Chorley Borough Council,http://statistics.data.gov.uk/id/local-authority/30UE,Service Management & Support,1009,CUST - Customer & Digital,Refuse Collection,20037,Cleaning and Domestic Supplies,5012,Exchange 35 yard General Waste Skip to cover period  01/09/2021 - 31/03/2022,09/09/2022,0170322,"1,560.28",Revenue,SUEZ R&R UK LTD,17615,,
Chorley Borough Council,http://statistics.data.gov.uk/id/local-authority/30UE,Economic Development,1096,GROW - Commercial & Property,Refuse Collection,20037,Cleaning and Domestic Supplies,5012,Market Walk/Market Walk Extension/Markets/Calico Lounge/Reel Cinema Waste Removal ,09/09/2022,0170494,"2,260.26",Revenue,SUEZ R&R UK LTD,17615,,
Chorley Borough Council,http://statistics.data.gov.uk/id/local-authority/30UE,Economic Development,1096,GROW - Commercial & Property,Refuse Collection,20037,Cleaning and Domestic Supplies,5012,Market Walk YARD 1 - GENERAL WASTE (Market Walk) - 8 cubic yard FEL skip ,09/09/2022,0170494,241.77,Revenue,SUEZ R&R UK LTD,17615,,
Chorley Borough Council,http://statistics.data.gov.uk/id/local-authority/30UE,Economic Development,1096,GROW - Commercial & Property,Refuse Collection,20037,Cleaning and Domestic Supplies,5012,Market Walk YARD 1 - CARDBOARD ONLY - 35 cubic yard RoRo skip ,09/09/2022,0170494,25.00,Revenue,SUEZ R&R UK LTD,17615,,
Chorley Borough Council,http://statistics.data.gov.uk/id/local-authority/30UE,Business Support,1095,GROW - Commercial & Property,Refuse Collection,20037,Cleaning and Domestic Supplies,5012,Market Walk YARD 2 - CARDBOARD ONLY - 35 cubic yard RoRo skip ,09/09/2022,0170494,25.00,Revenue,SUEZ R&R UK LTD,17615,,
Chorley Borough Council,http://statistics.data.gov.uk/id/local-authority/30UE,Business Support,1095,GROW - Commercial & Property,Refuse Collection,20037,Cleaning and Domestic Supplies,5012,Market Walk YARD 2 - GENERAL WASTE - 8 cubic yard FEL skip ,09/09/2022,0170494,242.64,Revenue,SUEZ R&R UK LTD,17615,,
Chorley Borough Council,http://statistics.data.gov.uk/id/local-authority/30UE,Business Support,1095,GROW - Commercial & Property,Refuse Collection,20037,Cleaning and Domestic Supplies,5012,Market Walk YARD 3 - GENERAL WASTE - 8 cubic yard FEL skip ,09/09/2022,0170494,485.29,Revenue,SUEZ R&R UK LTD,17615,,
Chorley Borough Council,http://statistics.data.gov.uk/id/local-authority/30UE,Business Support,1095,GROW - Commercial & Property,Refuse Collection,20037,Cleaning and Domestic Supplies,5012,Market Walk YARD 3 - CARDBOARD ONLY - 35 cubic yard RoRo skip ,09/09/2022,0170494,25.00,Revenue,SUEZ R&R UK LTD,17615,,
Chorley Borough Council,http://statistics.data.gov.uk/id/local-authority/30UE,Business Support,1095,GROW - Commercial & Property,Refuse Collection,20037,Cleaning and Domestic Supplies,5012,Market Walk YARD 3 - PLASTIC FILM - 35 cubic yard RoRo skip ,09/09/2022,0170494,25.00,Revenue,SUEZ R&R UK LTD,17615,,
Chorley Borough Council,http://statistics.data.gov.uk/id/local-authority/30UE,Business Support,1095,GROW - Commercial & Property,Refuse Collection,20037,Cleaning and Domestic Supplies,5012,Market Walk YARD 3 - CARDBOARD ONLY - 12 cubic yard Bakkie cage ,09/09/2022,0170494,54.17,Revenue,SUEZ R&R UK LTD,17615,,
Chorley Borough Council,http://statistics.data.gov.uk/id/local-authority/30UE,Business Support,1095,GROW - Commercial & Property,Refuse Collection,20037,Cleaning and Domestic Supplies,5012,"Market Walk Ext, Chorley PR7 1FD - GENERAL WASTE - Euro 1100 Litre ",09/09/2022,0170494,376.71,Revenue,SUEZ R&R UK LTD,17615,,
Chorley Borough Council,http://statistics.data.gov.uk/id/local-authority/30UE,Business Support,1095,GROW - Commercial & Property,Refuse Collection,20037,Cleaning and Domestic Supplies,5012,"Market Walk Ext, Chorley PR7 1FD - MIXED RECYCLING - Euro 1100 Litre ",09/09/2022,0170494,220.11,Revenue,SUEZ R&R UK LTD,17615,,
Chorley Borough Council,http://statistics.data.gov.uk/id/local-authority/30UE,Business Support,1095,GROW - Commercial & Property,Refuse Collection,20037,Cleaning and Domestic Supplies,5012,"Market Walk Ext, Chorley PR7 1FD - GLASS ONLY ",09/09/2022,0170494,97.88,Revenue,SUEZ R&R UK LTD,17615,,
Chorley Borough Council,http://statistics.data.gov.uk/id/local-authority/30UE,Business Support,1095,GROW - Commercial & Property,Refuse Collection,20037,Cleaning and Domestic Supplies,5012,"Calico Lounge, Market Walk, Chorley, PR7 1FD - GENERAL WASTE - Euro 1100 Litre bins",09/09/2022,0170494,226.03,Revenue,SUEZ R&R UK LTD,17615,,
Chorley Borough Council,http://statistics.data.gov.uk/id/local-authority/30UE,Business Support,1095,GROW - Commercial & Property,Refuse Collection,20037,Cleaning and Domestic Supplies,5012,"Calico Lounge, Market Walk, Chorley, PR7 1FD - MIXED RECYCLING - Euro 1100 Litre bins ",09/09/2022,0170494,66.03,Revenue,SUEZ R&R UK LTD,17615,,
Chorley Borough Council,http://statistics.data.gov.uk/id/local-authority/30UE,Business Support,1095,GROW - Commercial & Property,Refuse Collection,20037,Cleaning and Domestic Supplies,5012,"Calico Lounge, Market Walk, Chorley, PR7 1FD - GLASS ONLY - 240 Litre bins ",09/09/2022,0170494,65.25,Revenue,SUEZ R&R UK LTD,17615,,
Chorley Borough Council,http://statistics.data.gov.uk/id/local-authority/30UE,Business Support,1095,GROW - Commercial & Property,Refuse Collection,20037,Cleaning and Domestic Supplies,5012,REEL Cinema - GENERAL WASTE - Euro 1100 Litre bins ,09/09/2022,0170494,301.37,Revenue,SUEZ R&R UK LTD,17615,,
Chorley Borough Council,http://statistics.data.gov.uk/id/local-authority/30UE,Business Support,1095,GROW - Commercial & Property,Refuse Collection,20037,Cleaning and Domestic Supplies,5012,REEL Cinema - MIXED RECYCLING - Euro 1100 Litre bins,09/09/2022,0170494,88.04,Revenue,SUEZ R&R UK LTD,17615,,
Chorley Borough Council,http://statistics.data.gov.uk/id/local-authority/30UE,Central Support Services,1009,EARL - Communities,Misc Expenses,40200,Miscellaneous Expenses,5034,Hire of community skip on Sat 13th August at Whittle Scout Hut carpark,16/09/2022,0170612,729.43,Revenue,SUEZ R&R UK LTD,17615,,
Chorley Borough Council,http://statistics.data.gov.uk/id/local-authority/30UE,Service Management & Support,1009,CUST - Customer & Digital,Refuse Collection,20037,Cleaning and Domestic Supplies,5012,Exchange 20 yard Street Sweeping Skip to cover period  01/04/2022 - 31/03/2023,16/09/2022,0170671,809.60,Revenue,SUEZ R&R UK LTD,17615,,
Chorley Borough Council,http://statistics.data.gov.uk/id/local-authority/30UE,Service Management & Support,1009,CUST - Customer & Digital,Refuse Collection,20037,Cleaning and Domestic Supplies,5012,Exchange 35 yard General Waste Skip to cover period  01/04/2022 - 31/03/2023,16/09/2022,0170671,809.46,Revenue,SUEZ R&R UK LTD,17615,,
Chorley Borough Council,http://statistics.data.gov.uk/id/local-authority/30UE,Service Management & Support,1009,CUST - Customer & Digital,Refuse Collection,20037,Cleaning and Domestic Supplies,5012,Exchange 35 yard Green Waste skip to cover period 01/04/2022- 31/03/2023,16/09/2022,0170671,84.26,Revenue,SUEZ R&R UK LTD,17615,,
Chorley Borough Council,http://statistics.data.gov.uk/id/local-authority/30UE,Service Management & Support,1009,CUST - Customer & Digital,Refuse Collection,20037,Cleaning and Domestic Supplies,5012,Disposal charge and processing of Green Waste ,16/09/2022,0170671,128.25,Revenue,SUEZ R&R UK LTD,17615,,
Chorley Borough Council,http://statistics.data.gov.uk/id/local-authority/30UE,Central Support Services,1009,EARL - Communities,Play Events,40181,Miscellaneous Expenses,5034,Entertainment package for Summer Playday event. Inflatable Slide Hire * 1 Bouncy Castle * 1 Inflatable Playzone ,16/09/2022,0169077,"1,760.00",Revenue,Sunshine Events,22127,,
Chorley Borough Council,http://statistics.data.gov.uk/id/local-authority/30UE,Central Support Services,1009,EARL - Communities,Misc Expenses,40200,Miscellaneous Expenses,5034,Small environmental improvement funding,23/09/2022,0170996,500.00,Revenue,SVP Chorley Buddies,82307,,
Chorley Borough Council,http://statistics.data.gov.uk/id/local-authority/30UE,Central Support Services,1009,CUST - Customer & Digital,Consultants` Fees,40077,Services,5027,Tender Publication Service,09/09/2022,0168909,900.00,Revenue,Tenet Procurement Services Ltd,84865,,
Chorley Borough Council,http://statistics.data.gov.uk/id/local-authority/30UE,Central Support Services,1009,EARL - Communities,Core Funding Grants,40133,Grants and Subscriptions,5031,Small community grant,23/09/2022,0170981,300.00,Revenue,The Astley Walled Gardeners,70095,,
Chorley Borough Council,http://statistics.data.gov.uk/id/local-authority/30UE,Business Support,1095,GROW - Commercial & Property,Security Service,40062,Services,5027,Security service at Strawberry Fields Digital Hub between April 2022 to end of September 2022,16/09/2022,0170673,"7,289.60",Revenue,The ExcluSec Group Ltd,78056,,
Chorley Borough Council,http://statistics.data.gov.uk/id/local-authority/30UE,Business Support,1095,GROW - Commercial & Property,Security Service,40062,Services,5027,Eviction of travelers,30/09/2022,0171154,"1,850.00",Revenue,The ExcluSec Group Ltd,78056,,
Chorley Borough Council,http://statistics.data.gov.uk/id/local-authority/30UE,Central Support Services,1009,EARL - Communities,Core Funding Grants,40133,Grants and Subscriptions,5031,Small community grant,23/09/2022,0170980,500.00,Revenue,"The Friends of St Laurence`s Church, Chorley",78276,,
Chorley Borough Council,http://statistics.data.gov.uk/id/local-authority/30UE,Tourism,1039,GOVN - Policy & Governance,Misc Expenses,40200,Miscellaneous Expenses,5034,CFS Prize money,02/09/2022,0170391,250.00,Revenue,The Hardy Plant Society,76961,,
Chorley Borough Council,http://statistics.data.gov.uk/id/local-authority/30UE,Central Support Services,1009,CUST - Customer & Digital,Misc Expenses,40200,Miscellaneous Expenses,5034,As per Quotation L1034 Quantity x 50 LP1033 COMMUNITY LITTERPICKER RED 33IN (85CM),16/09/2022,0170521,416.00,Revenue,The Helping Hand Company,17779,,
Chorley Borough Council,http://statistics.data.gov.uk/id/local-authority/30UE,Tourism,1039,GOVN - Policy & Governance,Misc Expenses,40200,Miscellaneous Expenses,5034,CFS Prize money,02/09/2022,0170381,250.00,Revenue,The Lost World Nursery,71495,,
Chorley Borough Council,http://statistics.data.gov.uk/id/local-authority/30UE,Central Support Services,1009,CUST - Customer & Digital,Computer - Support Services,40111,Communication and Computing,5028,"Professional services Scope of works -	BoM Validation and Fibre Survey, Low Level Design for Switching and Security",09/09/2022,0169754,"2,437.50",Revenue,The Networking People (NorthWest) Ltd T/a TNP Ltd,73446,,
Chorley Borough Council,http://statistics.data.gov.uk/id/local-authority/30UE,Central Support Services,1009,CUST - Customer & Digital,IT Consultancy Fees,40223,Services,5027,cloud connect cloud connect per 1000 users,30/09/2022,0170309,"3,450.00",Revenue,The Networking People (NorthWest) Ltd T/a TNP Ltd,73446,,
Chorley Borough Council,http://statistics.data.gov.uk/id/local-authority/30UE,Central Support Services,1009,CUST - Customer & Digital,Computer - Support Services,40111,Communication and Computing,5028,"Professional services Scope of works -	BoM Validation and Fibre Survey, Low Level Design for Switching and Security",16/09/2022,0170600,"4,875.00",Revenue,The Networking People (NorthWest) Ltd T/a TNP Ltd,73446,,
Chorley Borough Council,http://statistics.data.gov.uk/id/local-authority/30UE,Central Support Services,1009,CUST - Customer & Digital,Computer Equipment-Purchase,40098,Communication and Computing,5028,Clearance of Rack 1 as requested by Ampec Removal of Eltek UPS Unit and old Telewest ISDN Equipment.,30/09/2022,0170622,725.00,Revenue,The Networking People (NorthWest) Ltd T/a TNP Ltd,73446,,
Chorley Borough Council,http://statistics.data.gov.uk/id/local-authority/30UE,Central Support Services,1009,CUST - Customer & Digital,Internet Charges,40104,Communication and Computing,5028,"Resilient Internet Route 1: 002 Install 2/10Gb Internet service, 3 year minimum term at Chorley 1",30/09/2022,0170623,"14,520.11",Revenue,The Networking People (NorthWest) Ltd T/a TNP Ltd,73446,,
Chorley Borough Council,http://statistics.data.gov.uk/id/local-authority/30UE,Central Support Services,1009,CUST - Customer & Digital,Computer Software-Purchase,40100,Communication and Computing,5028,"001 TNPSFP-SFP-25G-SR-S - 25G SFP28 SR WITH DUAL CDR 100 m, 850 nm, LC, Multimode Lifetime warranty",16/09/2022,0170816,"2,302.95",Revenue,The Networking People (NorthWest) Ltd T/a TNP Ltd,73446,,
Chorley Borough Council,http://statistics.data.gov.uk/id/local-authority/30UE,Central Support Services,1009,CUST - Customer & Digital,Consultants` Fees,40077,Services,5027,Additional block of RMACs for Chorley.,30/09/2022,0170903,"5,000.00",Revenue,The Networking People (NorthWest) Ltd T/a TNP Ltd,73446,,
Chorley Borough Council,http://statistics.data.gov.uk/id/local-authority/30UE,Central Support Services,1009,GROW - Commercial & Property,Agency Staff,13000,Direct Employee Expenses,5001,Estate surveyor fees for NAME REDACTED,23/09/2022,0170991,"1,176.00",Revenue,The Oyster Partnership Ltd,81409,,
Chorley Borough Council,http://statistics.data.gov.uk/id/local-authority/30UE,Central Support Services,1009,GROW - Commercial & Property,Agency Staff,13000,Direct Employee Expenses,5001,Estate surveyor fees for NAME REDACTED,23/09/2022,0171044,"1,776.45",Revenue,The Oyster Partnership Ltd,81409,,
Chorley Borough Council,http://statistics.data.gov.uk/id/local-authority/30UE,Central Support Services,1009,GROW - Commercial & Property,Agency Staff,13000,Direct Employee Expenses,5001,Estate surveyor fees for NAME REDACTED,23/09/2022,0171045,"1,777.35",Revenue,The Oyster Partnership Ltd,81409,,
Chorley Borough Council,http://statistics.data.gov.uk/id/local-authority/30UE,Central Support Services,1009,GROW - Commercial & Property,Agency Staff,13000,Direct Employee Expenses,5001,Estate surveyor fees for NAME REDACTED,23/09/2022,0171046,"1,668.60",Revenue,The Oyster Partnership Ltd,81409,,
Chorley Borough Council,http://statistics.data.gov.uk/id/local-authority/30UE,Central Support Services,1009,GROW - Commercial & Property,Agency Staff,13000,Direct Employee Expenses,5001,Estate surveyor fees for NAME REDACTED,23/09/2022,0171047,"1,620.00",Revenue,The Oyster Partnership Ltd,81409,,
Chorley Borough Council,http://statistics.data.gov.uk/id/local-authority/30UE,Unapportionable Central OHeads,1009,GROW - Commercial & Property,Planned Maintenance,20006,Repairs Maintenance & Alts,5005,Tatton Gardens Post installation Inspection - Revisit,02/09/2022,0170408,300.00,Revenue,The Play Inspection Company,20632,,
Chorley Borough Council,http://statistics.data.gov.uk/id/local-authority/30UE,Central Support Services,1009,GOVN - Policy & Governance,Processional Routes,40177,Miscellaneous Expenses,5034,400 x Order of Services for the Service to mark the death of HM The Queen on 18 September 2022.,30/09/2022,0171134,410.70,Revenue,The Print Quarter,17987,,
Chorley Borough Council,http://statistics.data.gov.uk/id/local-authority/30UE,Economic Development,1096,GROW - Commercial & Property,Christmas Lights,40179,Miscellaneous Expenses,5034,Town Centre Christmas Tree Display including lights and fitting service for 2022/23 season,16/09/2022,0170814,"12,803.02",Revenue,Town Centre Trees,57436,,
Chorley Borough Council,http://statistics.data.gov.uk/id/local-authority/30UE,Service Management & Support,1009,CUST - Customer & Digital,Grounds Maintenance Contractor,20043,Grounds Maintenance Costs,5013,"Fell 2 Willows and reduce Poplar, Southport Rd",09/09/2022,0170285,840.00,Revenue,Treescape North West Ltd,17688,,
Chorley Borough Council,http://statistics.data.gov.uk/id/local-authority/30UE,Service Management & Support,1009,CUST - Customer & Digital,Grounds Maintenance Contractor,20043,Grounds Maintenance Costs,5013,Invoice 0092,16/09/2022,0170613,"1,581.00",Revenue,Treexpert Tree Care,78580,,
Chorley Borough Council,http://statistics.data.gov.uk/id/local-authority/30UE,Service Management & Support,1009,CUST - Customer & Digital,Tools & Equipment - Maintenance,40005,"Equipment, Furniture & Materia",5023,"Quantity x 8 Tudor Garden Spade, untreaded, wooden PD handle  - CONBDS  @ 13.68 eaQuantity x 4Tudor Spring Steel Lawn Rake, 20 tines, 48`` ash handle- CONL/RAKE- 13.43 eaQuantity x 5Sealey Adjustable Wrench 200mm-  HT-WRENCH-03 - 5.70 ea",09/09/2022,0169994,278.21,Revenue,Tudor (UK) Limited t/a Tudor Environmental,78888,,
Chorley Borough Council,http://statistics.data.gov.uk/id/local-authority/30UE,Unapportionable Central OHeads,1009,GOVN - Policy & Governance,Misc Expenses,40200,Miscellaneous Expenses,5034,01 Sept 22,30/09/2022,0170560,"1,407.60",Revenue,UK Healthcare (BDHSC),17241,,
Chorley Borough Council,http://statistics.data.gov.uk/id/local-authority/30UE,Unapportionable Central OHeads,1009,CUST - Customer & Digital,Professional Fees,14011,Direct Employee Expenses,5001,Daily Hybrid Mail & Annual Billing,30/09/2022,0170575,"7,710.58",Revenue,UKMAIL Ltd (Mail),57758,,
Chorley Borough Council,http://statistics.data.gov.uk/id/local-authority/30UE,Control Accounts,Control,GOVN - Policy & Governance,General Balances,00100,Balance Sheet,Balance,Monthly Deductions from Payroll,23/09/2022,0171038,"1,192.00",Revenue,Unify Credit Union Ltd,55509,,
Chorley Borough Council,http://statistics.data.gov.uk/id/local-authority/30UE,Capital,Capital,EARL - Communities,Grants,03002,Capital Expenditure,Capital,ADDRESS REDACTED,30/09/2022,0171097,"4,280.00",Capital,UPS Building and Maintenance Ltd,76235,,
Chorley Borough Council,http://statistics.data.gov.uk/id/local-authority/30UE,Tourism,1039,GOVN - Policy & Governance,Publicity - Advertising,40157,Miscellaneous Expenses,5034,Digital Marketing for the Chorley Flower Show 2022.,02/09/2022,0170461,"1,200.00",Revenue,Vagabond Digital Ltd,82450,,
Chorley Borough Council,http://statistics.data.gov.uk/id/local-authority/30UE,Development Control,1091,PLAN - Planning & Development,Agency Staff,13000,Direct Employee Expenses,5001,Contract work - Consultant NAME REDACTED.  April 2022 - March 2023,23/09/2022,0169795,"1,687.50",Revenue,Vivid Resourcing Ltd,76938,,
Chorley Borough Council,http://statistics.data.gov.uk/id/local-authority/30UE,Development Control,1091,PLAN - Planning & Development,Agency Staff,13000,Direct Employee Expenses,5001,Contract work - Consultant NAME REDACTED.  April 2022 - March 2023,23/09/2022,0170038,"1,350.00",Revenue,Vivid Resourcing Ltd,76938,,
Chorley Borough Council,http://statistics.data.gov.uk/id/local-authority/30UE,Development Control,1091,PLAN - Planning & Development,Agency Staff,13000,Direct Employee Expenses,5001,Contract work - Consultant NAME REDACTED.  April 2022 - March 2023,23/09/2022,0170274,"1,642.50",Revenue,Vivid Resourcing Ltd,76938,,
Chorley Borough Council,http://statistics.data.gov.uk/id/local-authority/30UE,Development Control,1091,PLAN - Planning & Development,Agency Staff,13000,Direct Employee Expenses,5001,Contract work - Consultant NAME REDACTED.  April 2022 - March 2023,23/09/2022,0170358,"1,642.50",Revenue,Vivid Resourcing Ltd,76938,,
Chorley Borough Council,http://statistics.data.gov.uk/id/local-authority/30UE,Central Support Services,1009,GROW - Commercial & Property,Agency Staff,13000,Direct Employee Expenses,5001,Building surveyor fees and mileage for 6 months General Building,16/09/2022,0170457,"1,030.00",Revenue,Vivid Resourcing Ltd,76938,,
Chorley Borough Council,http://statistics.data.gov.uk/id/local-authority/30UE,Central Support Services,1009,GROW - Commercial & Property,Agency Staff,13000,Direct Employee Expenses,5001,Building surveyor fees and mileage for 6 months General Building,16/09/2022,0170489,"1,288.90",Revenue,Vivid Resourcing Ltd,76938,,
Chorley Borough Council,http://statistics.data.gov.uk/id/local-authority/30UE,Development Control,1091,PLAN - Planning & Development,Agency Staff,13000,Direct Employee Expenses,5001,Contract work - Consultant NAME REDACTED.  April 2022 - March 2023,23/09/2022,0170678,"3,825.00",Revenue,Vivid Resourcing Ltd,76938,,
Chorley Borough Council,http://statistics.data.gov.uk/id/local-authority/30UE,Central Support Services,1009,EARL - Communities,External Contractor,40198,Miscellaneous Expenses,5034,Charge for supply of contractors,16/09/2022,0170683,"1,663.28",Revenue,Vivid Resourcing Ltd,76938,,
Chorley Borough Council,http://statistics.data.gov.uk/id/local-authority/30UE,Central Support Services,1009,EARL - Communities,External Contractor,40198,Miscellaneous Expenses,5034,Charge for supply of contractors,16/09/2022,0170684,333.11,Revenue,Vivid Resourcing Ltd,76938,,
Chorley Borough Council,http://statistics.data.gov.uk/id/local-authority/30UE,Central Support Services,1009,EARL - Communities,External Contractor,40198,Miscellaneous Expenses,5034,Charge for supply of contractors,16/09/2022,0170685,394.80,Revenue,Vivid Resourcing Ltd,76938,,
Chorley Borough Council,http://statistics.data.gov.uk/id/local-authority/30UE,Tourism,1039,GOVN - Policy & Governance,Misc Expenses,40200,Miscellaneous Expenses,5034,CFS prize money,02/09/2022,0170394,400.00,Revenue,W Robinson & Son,76211,,
Chorley Borough Council,http://statistics.data.gov.uk/id/local-authority/30UE,Unapportionable Central OHeads,1009,GROW - Commercial & Property,General Repairs - Reactive,20004,Repairs Maintenance & Alts,5005,Bengal St  - Electrical Reactive Repairs,09/09/2022,0170179,365.00,Revenue,Walker Gabbott Electrical Ltd,83932,,
Chorley Borough Council,http://statistics.data.gov.uk/id/local-authority/30UE,Business Support,1095,GROW - Commercial & Property,General Repairs - Reactive,20004,Repairs Maintenance & Alts,5005,Market Walk  - Electrical Reactive Repairs,30/09/2022,0170184,309.00,Revenue,Walker Gabbott Electrical Ltd,83932,,
Chorley Borough Council,http://statistics.data.gov.uk/id/local-authority/30UE,Capital,Capital,GROW - Commercial & Property,Main Contractor,03007,Capital Expenditure,Capital,All Seasons Reference � Electrical Installation of replacement Pool Hall lighting The existing Pool hall Lighting,30/09/2022,0171219,"4,500.00",Capital,Walker Gabbott Electrical Ltd,83932,,
Chorley Borough Council,http://statistics.data.gov.uk/id/local-authority/30UE,Central Support Services,1009,GROW - Commercial & Property,Professional Fees,40063,Services,5027,Tatton Gardens (Chorley) Hoarding Removal,30/09/2022,0170298,"5,900.00",Revenue,Wallbank Fencing Limited,80942,,
Chorley Borough Council,http://statistics.data.gov.uk/id/local-authority/30UE,Business Support,1095,GROW - Commercial & Property,Water - Metered Supplies,20022,Water Services,5009,14/7 to 13/8/22,02/09/2022,0170336,957.85,Revenue,Water-plus,17926,,
Chorley Borough Council,http://statistics.data.gov.uk/id/local-authority/30UE,Business Support,1095,GROW - Commercial & Property,Water - Metered Supplies,20022,Water Services,5009,14/8 to 13/9/22,23/09/2022,0171098,957.85,Revenue,Water-plus,17926,,
Chorley Borough Council,http://statistics.data.gov.uk/id/local-authority/30UE,Democratic Represent and  Mgnt,1007,GROW - Commercial & Property,Water - Metered Supplies,20022,Water Services,5009,5/6 to 20/8/22,30/09/2022,0171240,383.41,Revenue,WaterPlus,85435,,
Chorley Borough Council,http://statistics.data.gov.uk/id/local-authority/30UE,Unapportionable Central OHeads,1009,GROW - Commercial & Property,Water - Metered Supplies,20022,Water Services,5009,11/7 to 10/8/22,02/09/2022,0170335,567.78,Revenue,WaterPlus,85458,,
Chorley Borough Council,http://statistics.data.gov.uk/id/local-authority/30UE,Unapportionable Central OHeads,1009,GROW - Commercial & Property,Water - Metered Supplies,20022,Water Services,5009,11/8 to 10/9/22,30/09/2022,0171140,567.78,Revenue,WaterPlus,85458,,
Chorley Borough Council,http://statistics.data.gov.uk/id/local-authority/30UE,Culture & Heritage,1036,GROW - Commercial & Property,Water - Metered Supplies,20022,Water Services,5009,28/7 to 27/8/22,30/09/2022,0171243,286.95,Revenue,WaterPlus,84178,,
Chorley Borough Council,http://statistics.data.gov.uk/id/local-authority/30UE,Homelessness,1075,EARL - Communities,Service Fees,40056,Services,5027,"Removal for a client, on behalf of Chorley Council on Monday 15th August 2022",23/09/2022,0170918,680.00,Revenue,Watsons Removals,85598,,
Chorley Borough Council,http://statistics.data.gov.uk/id/local-authority/30UE,Business Support,1095,GROW - Commercial & Property,Stationery,40050,"Printing, Stationery & General",5026,Contour Extra Ballpen,23/09/2022,0170883,870.00,Revenue,WeBrand4You,68716,,
Chorley Borough Council,http://statistics.data.gov.uk/id/local-authority/30UE,Business Support,1095,GROW - Commercial & Property,Stationery,40050,"Printing, Stationery & General",5026,Smart-Pad - Note A4,23/09/2022,0171030,800.00,Revenue,WeBrand4You,68716,,
Chorley Borough Council,http://statistics.data.gov.uk/id/local-authority/30UE,Central Support Services,1009,EARL - Communities,Core Funding Grants,40133,Grants and Subscriptions,5031,small grant,30/09/2022,0171121,300.00,Revenue,West Pennine Villages U3A,85619,,
Chorley Borough Council,http://statistics.data.gov.uk/id/local-authority/30UE,Central Support Services,1009,EARL - Communities,Core Funding Grants,40133,Grants and Subscriptions,5031,small comm grant,30/09/2022,0171100,400.00,Revenue,Wheelton Ping Pong,85603,,
Chorley Borough Council,http://statistics.data.gov.uk/id/local-authority/30UE,Unapportionable Central OHeads,1009,GOVN - Policy & Governance,Postages,40082,Communication and Computing,5028,"Postal Collection from Town Hall and Union Street, April 22 to March 23",16/09/2022,0170059,351.55,Revenue,Whistl North Limited,67256,,
Chorley Borough Council,http://statistics.data.gov.uk/id/local-authority/30UE,Unapportionable Central OHeads,1009,GOVN - Policy & Governance,Postages,40082,Communication and Computing,5028,,16/09/2022,0170059,10.80,Revenue,Whistl North Limited,67256,,
Chorley Borough Council,http://statistics.data.gov.uk/id/local-authority/30UE,Unapportionable Central OHeads,1009,GOVN - Policy & Governance,Postages,40082,Communication and Computing,5028,"Postal Collection from Town Hall and Union Street, April 22 to March 23",16/09/2022,0170321,252.58,Revenue,Whistl North Limited,67256,,
Chorley Borough Council,http://statistics.data.gov.uk/id/local-authority/30UE,Central Support Services,1009,EARL - Communities,Core Funding Grants,40133,Grants and Subscriptions,5031,Small community grant,23/09/2022,0170978,300.00,Revenue,Whittle Wanderers,85636,,
Chorley Borough Council,http://statistics.data.gov.uk/id/local-authority/30UE,Central Support Services,1009,EARL - Communities,Misc Expenses,40200,Miscellaneous Expenses,5034,Small environmental improvement funding,23/09/2022,0171000,490.00,Revenue,Whittle-le-Woods Parish Council,18602,,
Chorley Borough Council,http://statistics.data.gov.uk/id/local-authority/30UE,Parking Services,1066,CUST - Customer & Digital,Fixtures & Fittings - Purchase,20027,Fixtures and Fittings,5010,17 h key padlocks,09/09/2022,0170411,257.21,Revenue,Wilcock & Sons,18008,,
Chorley Borough Council,http://statistics.data.gov.uk/id/local-authority/30UE,Service Management & Support,1009,CUST - Customer & Digital,Supplies-Grounds Maintenance,40025,"Equipment, Furniture & Materia",5023,24 H key Padlocks ,09/09/2022,0170413,363.12,Revenue,Wilcock & Sons,18008,,
Chorley Borough Council,http://statistics.data.gov.uk/id/local-authority/30UE,Central Support Services,1009,EARL - Communities,Core Funding Grants,40133,Grants and Subscriptions,5031,Small community grant,23/09/2022,0170976,360.00,Revenue,Wildwood Days,78507,,
Chorley Borough Council,http://statistics.data.gov.uk/id/local-authority/30UE,Control Accounts,Control,GROW - Commercial & Property,Manual Control Account,00001,Balance Sheet,Balance,,30/09/2022,0171217,461.00,Revenue,Workforce Systems Limited,85669,,
Chorley Borough Council,http://statistics.data.gov.uk/id/local-authority/30UE,Development Control,1091,PLAN - Planning & Development,Professional Fees,40063,Services,5027,HM Justice : New Prison Chorley - Consultancy,23/09/2022,0170497,"5,061.00",Revenue,WSP UK Ltd,77416,,
Chorley Borough Council,http://statistics.data.gov.uk/id/local-authority/30UE,Capital,Capital,GOVN - Policy & Governance,Main Contractor,03007,Capital Expenditure,Capital,Remaining items for Astley Hall Oak Bureau: 1922:184 Re-glue feet and base moulding,16/09/2022,0170759,"2,790.00",Capital,Wynn Griffiths & Tarr Limited Business,77085,,
Chorley Borough Council,http://statistics.data.gov.uk/id/local-authority/30UE,Capital,Capital,GOVN - Policy & Governance,Main Contractor,03007,Capital Expenditure,Capital,"Astley Hall Museum, Walnut secretaire cabinet: Re-attach hinged secretaire drawer front, replace missing handle and post. ",16/09/2022,0170761,"3,030.00",Capital,Wynn Griffiths & Tarr Limited Business,77085,,
Chorley Borough Council,http://statistics.data.gov.uk/id/local-authority/30UE,Culture & Heritage,1036,GOVN - Policy & Governance,Conservation Of Exhibits,40059,Services,5027,Upholstery work to Exercise Chair (1922:256) 460,16/09/2022,0170764,460.00,Revenue,Wynn Griffiths & Tarr Limited Business,77085,,
Chorley Borough Council,http://statistics.data.gov.uk/id/local-authority/30UE,Unapportionable Central OHeads,1009,GROW - Commercial & Property,General Repairs - Reactive,20004,Repairs Maintenance & Alts,5005,To attend site and prep above the opening ready for the installation of the automatic opener. Install one heavy duty backing plate ,16/09/2022,0170555,"2,310.00",Revenue,Yates Entrance Solutions Ltd,84714,,
